Workbook

Sheet Data
A1: SURVIVED | B1: PCLASS | C1: SEX | D1: EMBARKED | E1: AGE | F1: SIBSP | G1: PARCH | H1: FARE | M1: PASSENGER | N1: PCLASS | O1: SEX | P1: EMBARKED | Q1: AGE | R1: SIBSP | S1: PARCH | T1: FARE
A2: 1 | B2: 1 | C2: female | D2: S | E2: 29 | F2: 0 | G2: 0 | H2: 211.3375 | M2: Thalia | N2: 1 | O2: female | P2: S | Q2: 29 | R2: 0 | S2: 0 | T2: 221.7792
A3: 1 | B3: 1 | C3: male | D3: S | E3: 0.9167 | F3: 1 | G3: 2 | H3: 151.55 | M3: Alexandre | N3: 1 | O3: male | P3: C | Q3: 25 | R3: 0 | S3: 0 | T3: 26
A4: 0 | B4: 1 | C4: female | D4: S | E4: 2 | F4: 1 | G4: 2 | H4: 151.55 | M4: Damien | N4: 2 | O4: male | P4: C | Q4: 25 | R4: 1 | S4: 0 | T4: 91.0792
A5: 0 | B5: 1 | C5: male | D5: S | E5: 30 | F5: 1 | G5: 2 | H5: 151.55 | M5: Clemence | N5: 1 | O5: female | P5: C | Q5: 19 | R5: 1 | S5: 0 | T5: 121
A6: 0 | B6: 1 | C6: female | D6: S | E6: 25 | F6: 1 | G6: 2 | H6: 151.55
A7: 1 | B7: 1 | C7: male | D7: S | E7: 48 | F7: 0 | G7: 0 | H7: 26.55
A8: 1 | B8: 1 | C8: female | D8: S | E8: 63 | F8: 1 | G8: 0 | H8: 77.9583
A9: 0 | B9: 1 | C9: male | D9: S | E9: 39 | F9: 0 | G9: 0 | H9: 0
A10: 1 | B10: 1 | C10: female | D10: S | E10: 53 | F10: 2 | G10: 0 | H10: 51.4792
A11: 0 | B11: 1 | C11: male | D11: C | E11: 71 | F11: 0 | G11: 0 | H11: 49.5042
A12: 0 | B12: 1 | C12: male | D12: C | E12: 47 | F12: 1 | G12: 0 | H12: 227.525
A13: 1 | B13: 1 | C13: female | D13: C | E13: 18 | F13: 1 | G13: 0 | H13: 227.525
A14: 1 | B14: 1 | C14: female | D14: C | E14: 24 | F14: 0 | G14: 0 | H14: 69.3
A15: 1 | B15: 1 | C15: female | D15: S | E15: 26 | F15: 0 | G15: 0 | H15: 78.85
A16: 1 | B16: 1 | C16: male | D16: S | E16: 80 | F16: 0 | G16: 0 | H16: 30
A17: 0 | B17: 1 | C17: male | D17: S | F17: 0 | G17: 0 | H17: 25.925
A18: 0 | B18: 1 | C18: male | D18: C | E18: 24 | F18: 0 | G18: 1 | H18: 247.5208
A19: 1 | B19: 1 | C19: female | D19: C | E19: 50 | F19: 0 | G19: 1 | H19: 247.5208
A20: 1 | B20: 1 | C20: female | D20: C | E20: 32 | F20: 0 | G20: 0 | H20: 76.2917
A21: 0 | B21: 1 | C21: male | D21: C | E21: 36 | F21: 0 | G21: 0 | H21: 75.2417
A22: 1 | B22: 1 | C22: male | D22: S | E22: 37 | F22: 1 | G22: 1 | H22: 52.5542
A23: 1 | B23: 1 | C23: female | D23: S | E23: 47 | F23: 1 | G23: 1 | H23: 52.5542
A24: 1 | B24: 1 | C24: male | D24: C | E24: 26 | F24: 0 | G24: 0 | H24: 30
A25: 1 | B25: 1 | C25: female | D25: C | E25: 42 | F25: 0 | G25: 0 | H25: 227.525
A26: 1 | B26: 1 | C26: female | D26: S | E26: 29 | F26: 0 | G26: 0 | H26: 221.7792
A27: 0 | B27: 1 | C27: male | D27: C | E27: 25 | F27: 0 | G27: 0 | H27: 26
A28: 1 | B28: 1 | C28: male | D28: C | E28: 25 | F28: 1 | G28: 0 | H28: 91.0792
A29: 1 | B29: 1 | C29: female | D29: C | E29: 19 | F29: 1 | G29: 0 | H29: 91.0792
A30: 1 | B30: 1 | C30: female | D30: S | E30: 35 | F30: 0 | G30: 0 | H30: 135.6333
A31: 1 | B31: 1 | C31: male | D31: S | E31: 28 | F31: 0 | G31: 0 | H31: 26.55
A32: 0 | B32: 1 | C32: male | D32: S | E32: 45 | F32: 0 | G32: 0 | H32: 35.5
A33: 1 | B33: 1 | C33: male | D33: C | E33: 40 | F33: 0 | G33: 0 | H33: 31
A34: 1 | B34: 1 | C34: female | D34: S | E34: 30 | F34: 0 | G34: 0 | H34: 164.8667
A35: 1 | B35: 1 | C35: female | D35: S | E35: 58 | F35: 0 | G35: 0 | H35: 26.55
A36: 0 | B36: 1 | C36: male | D36: S | E36: 42 | F36: 0 | G36: 0 | H36: 26.55
A37: 1 | B37: 1 | C37: female | D37: C | E37: 45 | F37: 0 | G37: 0 | H37: 262.375
A38: 1 | B38: 1 | C38: female | D38: S | E38: 22 | F38: 0 | G38: 1 | H38: 55
A39: 1 | B39: 1 | C39: male | D39: S | F39: 0 | G39: 0 | H39: 26.55
A40: 0 | B40: 1 | C40: male | D40: S | E40: 41 | F40: 0 | G40: 0 | H40: 30.5
A41: 0 | B41: 1 | C41: male | D41: C | E41: 48 | F41: 0 | G41: 0 | H41: 50.4958
A42: 0 | B42: 1 | C42: male | D42: C | F42: 0 | G42: 0 | H42: 39.6
A43: 1 | B43: 1 | C43: female | D43: C | E43: 44 | F43: 0 | G43: 0 | H43: 27.7208
A44: 1 | B44: 1 | C44: female | D44: S | E44: 59 | F44: 2 | G44: 0 | H44: 51.4792
A45: 1 | B45: 1 | C45: female | D45: C | E45: 60 | F45: 0 | G45: 0 | H45: 76.2917
A46: 1 | B46: 1 | C46: female | D46: C | E46: 41 | F46: 0 | G46: 0 | H46: 134.5
A47: 0 | B47: 1 | C47: male | D47: S | E47: 45 | F47: 0 | G47: 0 | H47: 26.55
A48: 0 | B48: 1 | C48: male | D48: S | F48: 0 | G48: 0 | H48: 31
A49: 1 | B49: 1 | C49: male | D49: S | E49: 42 | F49: 0 | G49: 0 | H49: 26.2875
A50: 1 | B50: 1 | C50: female | D50: C | E50: 53 | F50: 0 | G50: 0 | H50: 27.4458
A51: 1 | B51: 1 | C51: male | D51: C | E51: 36 | F51: 0 | G51: 1 | H51: 512.3292
A52: 1 | B52: 1 | C52: female | D52: C | E52: 58 | F52: 0 | G52: 1 | H52: 512.3292
A53: 0 | B53: 1 | C53: male | D53: S | E53: 33 | F53: 0 | G53: 0 | H53: 5
A54: 0 | B54: 1 | C54: male | D54: S | E54: 28 | F54: 0 | G54: 0 | H54: 47.1
A55: 0 | B55: 1 | C55: male | D55: S | E55: 17 | F55: 0 | G55: 0 | H55: 47.1
A56: 1 | B56: 1 | C56: male | D56: S | E56: 11 | F56: 1 | G56: 2 | H56: 120
A57: 1 | B57: 1 | C57: female | D57: S | E57: 14 | F57: 1 | G57: 2 | H57: 120
A58: 1 | B58: 1 | C58: male | D58: S | E58: 36 | F58: 1 | G58: 2 | H58: 120
A59: 1 | B59: 1 | C59: female | D59: S | E59: 36 | F59: 1 | G59: 2 | H59: 120
A60: 0 | B60: 1 | C60: male | D60: S | E60: 49 | F60: 0 | G60: 0 | H60: 26
A61: 1 | B61: 1 | C61: female | D61: C | F61: 0 | G61: 0 | H61: 27.7208
A62: 0 | B62: 1 | C62: male | D62: S | E62: 36 | F62: 1 | G62: 0 | H62: 78.85
A63: 1 | B63: 1 | C63: female | D63: S | E63: 76 | F63: 1 | G63: 0 | H63: 78.85
A64: 0 | B64: 1 | C64: male | D64: S | E64: 46 | F64: 1 | G64: 0 | H64: 61.175
A65: 1 | B65: 1 | C65: female | D65: S | E65: 47 | F65: 1 | G65: 0 | H65: 61.175
A66: 1 | B66: 1 | C66: male | D66: S | E66: 27 | F66: 1 | G66: 0 | H66: 53.1
A67: 1 | B67: 1 | C67: female | D67: S | E67: 33 | F67: 1 | G67: 0 | H67: 53.1
A68: 1 | B68: 1 | C68: female | D68: C | E68: 36 | F68: 0 | G68: 0 | H68: 262.375
A69: 1 | B69: 1 | C69: female | D69: S | E69: 30 | F69: 0 | G69: 0 | H69: 86.5
A70: 1 | B70: 1 | C70: male | D70: C | E70: 45 | F70: 0 | G70: 0 | H70: 29.7
A71: 1 | B71: 1 | C71: female | D71: S | F71: 0 | G71: 1 | H71: 55
A72: 0 | B72: 1 | C72: male | D72: S | F72: 0 | G72: 0 | H72: 0
A73: 0 | B73: 1 | C73: male | D73: C | E73: 27 | F73: 1 | G73: 0 | H73: 136.7792
A74: 1 | B74: 1 | C74: female | D74: C | E74: 26 | F74: 1 | G74: 0 | H74: 136.7792
A75: 1 | B75: 1 | C75: female | D75: S | E75: 22 | F75: 0 | G75: 0 | H75: 151.55
A76: 0 | B76: 1 | C76: male | D76: S | F76: 0 | G76: 0 | H76: 52
A77: 0 | B77: 1 | C77: male | D77: S | E77: 47 | F77: 0 | G77: 0 | H77: 25.5875
A78: 1 | B78: 1 | C78: female | D78: C | E78: 39 | F78: 1 | G78: 1 | H78: 83.1583
A79: 0 | B79: 1 | C79: male | D79: C | E79: 37 | F79: 1 | G79: 1 | H79: 83.1583
A80: 1 | B80: 1 | C80: female | D80: C | E80: 64 | F80: 0 | G80: 2 | H80: 83.1583
A81: 1 | B81: 1 | C81: female | D81: S | E81: 55 | F81: 2 | G81: 0 | H81: 25.7
A82: 0 | B82: 1 | C82: male | D82: S | F82: 0 | G82: 0 | H82: 26.55
A83: 0 | B83: 1 | C83: male | D83: S | E83: 70 | F83: 1 | G83: 1 | H83: 71
A84: 1 | B84: 1 | C84: female | D84: S | E84: 36 | F84: 0 | G84: 2 | H84: 71
A85: 1 | B85: 1 | C85: female | D85: S | E85: 64 | F85: 1 | G85: 1 | H85: 26.55
A86: 0 | B86: 1 | C86: male | D86: C | E86: 39 | F86: 1 | G86: 0 | H86: 71.2833
A87: 1 | B87: 1 | C87: female | D87: C | E87: 38 | F87: 1 | G87: 0 | H87: 71.2833
A88: 1 | B88: 1 | C88: male | D88: S | E88: 51 | F88: 0 | G88: 0 | H88: 26.55
A89: 1 | B89: 1 | C89: male | D89: S | E89: 27 | F89: 0 | G89: 0 | H89: 30.5
A90: 1 | B90: 1 | C90: female | D90: S | E90: 33 | F90: 0 | G90: 0 | H90: 151.55
A91: 0 | B91: 1 | C91: male | D91: S | E91: 31 | F91: 1 | G91: 0 | H91: 52
A92: 1 | B92: 1 | C92: female | D92: S | E92: 27 | F92: 1 | G92: 2 | H92: 52
A93: 1 | B93: 1 | C93: male | D93: S | E93: 31 | F93: 1 | G93: 0 | H93: 57
A94: 1 | B94: 1 | C94: female | D94: S | E94: 17 | F94: 1 | G94: 0 | H94: 57
A95: 1 | B95: 1 | C95: male | D95: S | E95: 53 | F95: 1 | G95: 1 | H95: 81.8583
A96: 1 | B96: 1 | C96: male | D96: S | E96: 4 | F96: 0 | G96: 2 | H96: 81.8583
A97: 1 | B97: 1 | C97: female | D97: S | E97: 54 | F97: 1 | G97: 1 | H97: 81.8583
A98: 0 | B98: 1 | C98: male | D98: C | E98: 50 | F98: 1 | G98: 0 | H98: 106.425
A99: 1 | B99: 1 | C99: female | D99: C | E99: 27 | F99: 1 | G99: 1 | H99: 247.5208
A100: 1 | B100: 1 | C100: female | D100: C | E100: 48 | F100: 1 | G100: 0 | H100: 106.425
A101: 1 | B101: 1 | C101: female | D101: C | E101: 48 | F101: 1 | G101: 0 | H101: 39.6
A102: 1 | B102: 1 | C102: male | D102: C | E102: 49 | F102: 1 | G102: 0 | H102: 56.9292
A103: 0 | B103: 1 | C103: male | D103: C | E103: 39 | F103: 0 | G103: 0 | H103: 29.7
A104: 1 | B104: 1 | C104: female | D104: C | E104: 23 | F104: 0 | G104: 1 | H104: 83.1583
A105: 1 | B105: 1 | C105: female | D105: C | E105: 38 | F105: 0 | G105: 0 | H105: 227.525
A106: 1 | B106: 1 | C106: female | D106: C | E106: 54 | F106: 1 | G106: 0 | H106: 78.2667
A107: 0 | B107: 1 | C107: female | D107: C | E107: 36 | F107: 0 | G107: 0 | H107: 31.6792
A108: 0 | B108: 1 | C108: male | D108: S | F108: 0 | G108: 0 | H108: 221.7792
A109: 1 | B109: 1 | C109: female | D109: S | F109: 0 | G109: 0 | H109: 31.6833
A110: 1 | B110: 1 | C110: female | D110: C | F110: 0 | G110: 0 | H110: 110.8833
A111: 1 | B111: 1 | C111: male | D111: S | E111: 36 | F111: 0 | G111: 0 | H111: 26.3875
A112: 0 | B112: 1 | C112: male | D112: C | E112: 30 | F112: 0 | G112: 0 | H112: 27.75
A113: 1 | B113: 1 | C113: female | D113: S | E113: 24 | F113: 3 | G113: 2 | H113: 263
A114: 1 | B114: 1 | C114: female | D114: S | E114: 28 | F114: 3 | G114: 2 | H114: 263
A115: 1 | B115: 1 | C115: female | D115: S | E115: 23 | F115: 3 | G115: 2 | H115: 263
A116: 0 | B116: 1 | C116: male | D116: S | E116: 19 | F116: 3 | G116: 2 | H116: 263
A117: 0 | B117: 1 | C117: male | D117: S | E117: 64 | F117: 1 | G117: 4 | H117: 263
A118: 1 | B118: 1 | C118: female | D118: S | E118: 60 | F118: 1 | G118: 4 | H118: 263
A119: 1 | B119: 1 | C119: female | D119: C | E119: 30 | F119: 0 | G119: 0 | H119: 56.9292
A120: 0 | B120: 1 | C120: male | D120: S | F120: 0 | G120: 0 | H120: 26.55
A121: 1 | B121: 1 | C121: male | D121: S | E121: 50 | F121: 2 | G121: 0 | H121: 133.65
A122: 1 | B122: 1 | C122: male | D122: C | E122: 43 | F122: 1 | G122: 0 | H122: 27.7208
A123: 1 | B123: 1 | C123: female | D123: S | F123: 1 | G123: 0 | H123: 133.65
A124: 1 | B124: 1 | C124: female | D124: C | E124: 22 | F124: 0 | G124: 2 | H124: 49.5
A125: 1 | B125: 1 | C125: male | D125: C | E125: 60 | F125: 1 | G125: 1 | H125: 79.2
A126: 1 | B126: 1 | C126: female | D126: C | E126: 48 | F126: 1 | G126: 1 | H126: 79.2
A127: 0 | B127: 1 | C127: male | D127: S | F127: 0 | G127: 0 | H127: 0
A128: 0 | B128: 1 | C128: male | D128: S | E128: 37 | F128: 1 | G128: 0 | H128: 53.1
A129: 1 | B129: 1 | C129: female | D129: S | E129: 35 | F129: 1 | G129: 0 | H129: 53.1
A130: 0 | B130: 1 | C130: male | D130: S | E130: 47 | F130: 0 | G130: 0 | H130: 38.5
A131: 1 | B131: 1 | C131: female | D131: C | E131: 35 | F131: 0 | G131: 0 | H131: 211.5
A132: 1 | B132: 1 | C132: female | D132: C | E132: 22 | F132: 0 | G132: 1 | H132: 59.4
A133: 1 | B133: 1 | C133: female | D133: C | E133: 45 | F133: 0 | G133: 1 | H133: 59.4
A134: 0 | B134: 1 | C134: male | D134: C | E134: 24 | F134: 0 | G134: 0 | H134: 79.2
A135: 1 | B135: 1 | C135: male | D135: C | E135: 49 | F135: 1 | G135: 0 | H135: 89.1042
A136: 1 | B136: 1 | C136: female | D136: C | F136: 1 | G136: 0 | H136: 89.1042
A137: 0 | B137: 1 | C137: male | D137: C | E137: 71 | F137: 0 | G137: 0 | H137: 34.6542
A138: 1 | B138: 1 | C138: male | D138: C | E138: 53 | F138: 0 | G138: 0 | H138: 28.5
A139: 1 | B139: 1 | C139: female | D139: S | E139: 19 | F139: 0 | G139: 0 | H139: 30
A140: 0 | B140: 1 | C140: male | D140: S | E140: 38 | F140: 0 | G140: 1 | H140: 153.4625
A141: 1 | B141: 1 | C141: female | D141: S | E141: 58 | F141: 0 | G141: 1 | H141: 153.4625
A142: 1 | B142: 1 | C142: male | D142: C | E142: 23 | F142: 0 | G142: 1 | H142: 63.3583
A143: 1 | B143: 1 | C143: female | D143: C | E143: 45 | F143: 0 | G143: 1 | H143: 63.3583
A144: 0 | B144: 1 | C144: male | D144: C | E144: 46 | F144: 0 | G144: 0 | H144: 79.2
A145: 1 | B145: 1 | C145: male | D145: C | E145: 25 | F145: 1 | G145: 0 | H145: 55.4417
A146: 1 | B146: 1 | C146: female | D146: C | E146: 25 | F146: 1 | G146: 0 | H146: 55.4417
A147: 1 | B147: 1 | C147: male | D147: C | E147: 48 | F147: 1 | G147: 0 | H147: 76.7292
A148: 1 | B148: 1 | C148: female | D148: C | E148: 49 | F148: 1 | G148: 0 | H148: 76.7292
A149: 0 | B149: 1 | C149: male | D149: S | F149: 0 | G149: 0 | H149: 42.4
A150: 0 | B150: 1 | C150: male | D150: S | E150: 45 | F150: 1 | G150: 0 | H150: 83.475
A151: 1 | B151: 1 | C151: female | D151: S | E151: 35 | F151: 1 | G151: 0 | H151: 83.475
A152: 0 | B152: 1 | C152: male | D152: S | E152: 40 | F152: 0 | G152: 0 | H152: 0
A153: 1 | B153: 1 | C153: male | D153: C | E153: 27 | F153: 0 | G153: 0 | H153: 76.7292
A154: 1 | B154: 1 | C154: male | D154: S | F154: 0 | G154: 0 | H154: 30
A155: 1 | B155: 1 | C155: female | D155: C | E155: 24 | F155: 0 | G155: 0 | H155: 83.1583
A156: 0 | B156: 1 | C156: male | D156: S | E156: 55 | F156: 1 | G156: 1 | H156: 93.5
A157: 1 | B157: 1 | C157: female | D157: S | E157: 52 | F157: 1 | G157: 1 | H157: 93.5
A158: 0 | B158: 1 | C158: male | D158: S | E158: 42 | F158: 0 | G158: 0 | H158: 42.5
A159: 0 | B159: 1 | C159: male | D159: S | F159: 0 | G159: 0 | H159: 51.8625
A160: 0 | B160: 1 | C160: male | D160: S | E160: 55 | F160: 0 | G160: 0 | H160: 50
A161: 1 | B161: 1 | C161: female | D161: C | E161: 16 | F161: 0 | G161: 1 | H161: 57.9792
A162: 1 | B162: 1 | C162: female | D162: C | E162: 44 | F162: 0 | G162: 1 | H162: 57.9792
A163: 1 | B163: 1 | C163: female | D163: S | E163: 51 | F163: 1 | G163: 0 | H163: 77.9583
A164: 0 | B164: 1 | C164: male | D164: S | E164: 42 | F164: 1 | G164: 0 | H164: 52
A165: 1 | B165: 1 | C165: female | D165: S | E165: 35 | F165: 1 | G165: 0 | H165: 52
A166: 1 | B166: 1 | C166: male | D166: C | E166: 35 | F166: 0 | G166: 0 | H166: 26.55
A167: 1 | B167: 1 | C167: male | D167: S | E167: 38 | F167: 1 | G167: 0 | H167: 90
A168: 0 | B168: 1 | C168: male | D168: C | F168: 0 | G168: 0 | H168: 30.6958
A169: 1 | B169: 1 | C169: female | D169: S | E169: 35 | F169: 1 | G169: 0 | H169: 90
A170: 1 | B170: 1 | C170: female | E170: 38 | F170: 0 | G170: 0 | H170: 80
A171: 0 | B171: 1 | C171: female | D171: C | E171: 50 | F171: 0 | G171: 0 | H171: 28.7125
A172: 1 | B172: 1 | C172: male | D172: S | E172: 49 | F172: 0 | G172: 0 | H172: 0
A173: 0 | B173: 1 | C173: male | D173: S | E173: 46 | F173: 0 | G173: 0 | H173: 26
A174: 0 | B174: 1 | C174: male | D174: S | E174: 50 | F174: 0 | G174: 0 | H174: 26
A175: 0 | B175: 1 | C175: male | D175: C | E175: 32.5 | F175: 0 | G175: 0 | H175: 211.5
A176: 0 | B176: 1 | C176: male | D176: C | E176: 58 | F176: 0 | G176: 0 | H176: 29.7
A177: 0 | B177: 1 | C177: male | D177: S | E177: 41 | F177: 1 | G177: 0 | H177: 51.8625
A178: 1 | B178: 1 | C178: female | D178: S | F178: 1 | G178: 0 | H178: 51.8625
A179: 1 | B179: 1 | C179: male | D179: S | E179: 42 | F179: 1 | G179: 0 | H179: 52.5542
A180: 1 | B180: 1 | C180: female | D180: S | E180: 45 | F180: 1 | G180: 0 | H180: 52.5542
A181: 0 | B181: 1 | C181: male | D181: S | F181: 0 | G181: 0 | H181: 26.55
A182: 1 | B182: 1 | C182: female | D182: S | E182: 39 | F182: 0 | G182: 0 | H182: 211.3375
A183: 1 | B183: 1 | C183: female | D183: S | E183: 49 | F183: 0 | G183: 0 | H183: 25.9292
A184: 1 | B184: 1 | C184: female | D184: C | E184: 30 | F184: 0 | G184: 0 | H184: 106.425
A185: 1 | B185: 1 | C185: male | D185: C | E185: 35 | F185: 0 | G185: 0 | H185: 512.3292
A186: 0 | B186: 1 | C186: male | D186: C | F186: 0 | G186: 0 | H186: 27.7208
A187: 0 | B187: 1 | C187: male | D187: S | E187: 42 | F187: 0 | G187: 0 | H187: 26.55
A188: 1 | B188: 1 | C188: female | D188: C | E188: 55 | F188: 0 | G188: 0 | H188: 27.7208
A189: 1 | B189: 1 | C189: female | D189: S | E189: 16 | F189: 0 | G189: 1 | H189: 39.4
A190: 1 | B190: 1 | C190: female | D190: S | E190: 51 | F190: 0 | G190: 1 | H190: 39.4
A191: 0 | B191: 1 | C191: male | D191: S | E191: 29 | F191: 0 | G191: 0 | H191: 30
A192: 1 | B192: 1 | C192: female | D192: S | E192: 21 | F192: 0 | G192: 0 | H192: 77.9583
A193: 0 | B193: 1 | C193: male | D193: S | E193: 30 | F193: 0 | G193: 0 | H193: 45.5
A194: 1 | B194: 1 | C194: female | D194: C | E194: 58 | F194: 0 | G194: 0 | H194: 146.5208
A195: 1 | B195: 1 | C195: female | D195: S | E195: 15 | F195: 0 | G195: 1 | H195: 211.3375
A196: 0 | B196: 1 | C196: male | D196: S | E196: 30 | F196: 0 | G196: 0 | H196: 26
A197: 1 | B197: 1 | C197: female | D197: S | E197: 16 | F197: 0 | G197: 0 | H197: 86.5
A198: 1 | B198: 1 | C198: male | D198: C | F198: 0 | G198: 0 | H198: 29.7
A199: 0 | B199: 1 | C199: male | D199: S | E199: 19 | F199: 1 | G199: 0 | H199: 53.1
A200: 1 | B200: 1 | C200: female | D200: S | E200: 18 | F200: 1 | G200: 0 | H200: 53.1
... 1110 more rows

Sheet Easy Fit
B1: XLSTAT 2022.1.2.12345 - Easy Fit - Start time: 30/03/2022 at 16:35:07 / End time: 30/03/2022 at 16:35:16 / Microsoft Excel 16.014931
B2: Y / Qualitative variable: Workbook = demoEasyFitAndPred.xlsm / Sheet = Data / Range = 'Data'!$A:$A / 1309 rows and 1 column
B3: X / Quantitative variables: Workbook = demoEasyFitAndPred.xlsm / Sheet = Data / Range = 'Data'!$E:$H / 1309 rows and 4 columns
B4: X / Qualitative variables: Workbook = demoEasyFitAndPred.xlsm / Sheet = Data / Range = 'Data'!$B:$D / 1309 rows and 3 columns
B5: Seed (random numbers): 123456789
B10: Missing data:
B12: Number of removed observations: 266
B18: Data you selected were randomly separated into two samples. 80% of the observations were used to train the model and 20% for validation.
B22: You have chosen to use the following methods:
B23: - Logistic regression
B24: - Random forests
B25: - K Nearest Neighbors
B26: - SVM
B27: - Discriminant Analysis
B29: You will find below a summary table containing several indices, computed on the validation sample, corresponding to these methods. You will then find detailed results for each method.
B34: Summary table:
B36: Performance metrics | C36: Logistic regression | D36: Random forests | E36: K Nearest Neighbors | F36: SVM | G36: Discriminant Analysis
B37: Accuracy | C37: 0.7900763359 | D37: 0.7709923664 | E37: 0.606870229 | F37: 0.7786259542 | G37: 0.5
B38: Precision | C38: 0.8198757764 | D38: 0.80625 | E38: 0.6708074534 | F38: 0.8086419753 | G38: 0.6363636364
B39: Recall | C39: 0.835443038 | D39: 0.8164556962 | E39: 0.6835443038 | F39: 0.8291139241 | G39: 0.3987341772
B40: Correct classification | C40: 207 | D40: 202 | E40: 159 | F40: 204 | G40: 131
B41: Misclassification | C41: 55 | D41: 60 | E41: 103 | F41: 58 | G41: 131
B42: F-score | C42: 0.8275862069 | D42: 0.8113207547 | E42: 0.6771159875 | F42: 0.81875 | G42: 0.4902723735
B43: The best model, according to the statistic Misclassification computed on the validation sample, is colored in green in the table above.
B46: You will find at the beginning of the results of each method the following buttons:
C49: Click this button to automatically launch the method interface with all available options
C51: Click this button to launch the interface to make predictions for a set of new observations.
F55: Logistic regression
B61: Regression of variable SURVIVED (Control category = 0):
B63: Model parameters (Variable SURVIVED):
B65: Source | C65: Value | D65: Standard error | E65: Wald Chi-Square | F65: Pr > Chi² | G65: Wald Lower bound (95%) | H65: Wald Upper bound (95%) | I65: Odds ratio | J65: Odds ratio Lower bound (95%) | K65: Odds ratio Upper bound (95%)
B66: Intercept | C66: 4.21983136 | D66: 0.4900979588 | E66: 74.13518969 | F66: 7.318364664e-18 | G66: 3.259257012 | H66: 5.180405709
B67: AGE | C67: -0.0348033777 | D67: 0.007549418758 | E67: 21.25278054 | F67: 4.025260329e-06 | G67: -0.04959996657 | H67: -0.02000678883 | I67: 0.9657952945 | J67: 0.9516100242 | K67: 0.9801920189
B68: SIBSP | C68: -0.4064492375 | D68: 0.1338030841 | E68: 9.227421918 | F68: 0.002384171124 | G68: -0.6686984633 | H68: -0.1442000117 | I68: 0.6660109031 | J68: 0.5123750189 | K68: 0.8657145777
B69: PARCH | C69: 0.03349657674 | D69: 0.1234552849 | E69: 0.07361757019 | F69: 0.7861406344 | G69: -0.2084713354 | H69: 0.2754644889 | I69: 1.034063904 | J69: 0.811824305 | K69: 1.317142331
B70: FARE | C70: -0.0009697112933 | D70: 0.002528282221 | E70: 0.147107158 | F70: 0.7013153335 | G70: -0.00592505339 | H70: 0.003985630804 | I70: 0.9990307587 | J70: 0.9940924651 | K70: 1.003993584
B71: PCLASS-1 | C71: 0 | D71: 0
B72: PCLASS-2 | C72: -1.286084829 | D72: 0.3123170567 | E72: 16.9569533 | F72: 3.823701545e-05 | G72: -1.898215012 | H72: -0.6739546463 | I72: 0.2763506277 | J72: 0.1498358358 | K72: 0.5096889475
B73: PCLASS-3 | C73: -2.238078208 | D73: 0.3275205268 | E73: 46.6953322 | F73: 8.292629766e-12 | G73: -2.880006645 | H73: -1.596149771 | I73: 0.1066632922 | J73: 0.05613438984 | K73: 0.2026753642
B74: SEX-female | C74: 0 | D74: 0
B75: SEX-male | C75: -2.60260176 | D75: 0.208913003 | E75: 155.197419 | F75: 0 | G75: -3.012063722 | H75: -2.193139798 | I75: 0.07408058734 | J75: 0.04919005933 | K75: 0.1115659037
B76: EMBARKED-C | C76: 0 | D76: 0
B77: EMBARKED-Q | C77: -0.8594948042 | D77: 0.5115276787 | E77: 2.823242835 | F77: 0.09290852435 | G77: -1.862070632 | H77: 0.1430810232 | I77: 0.423375916 | J77: 0.1553506232 | K77: 1.153823284
B78: EMBARKED-S | C78: -0.4651794212 | D78: 0.2478946221 | E78: 3.521330415 | F78: 0.06058379757 | G78: -0.9510439524 | H78: 0.02068510997 | I78: 0.6280224145 | J78: 0.3863374949 | K78: 1.02090053
B81: Classification table for the training sample (Variable SURVIVED):
B83: from \ to | C83: 0 | D83: 1 | E83: Total | F83: % correct
B84: 0 | C84: 385 | D84: 75 | E84: 460 | F84: 0.8369565217
B85: 1 | C85: 93 | D85: 228 | E85: 321 | F85: 0.7102803738
B86: Total | C86: 478 | D86: 303 | E86: 781 | F86: 0.7848911652
B109: Classification table for the validation sample (Variable SURVIVED):
B111: from \ to | C111: 0 | D111: 1 | E111: Total | F111: % correct
B112: 0 | C112: 132 | D112: 26 | E112: 158 | F112: 0.835443038
B113: 1 | C113: 29 | D113: 75 | E113: 104 | F113: 0.7211538462
B114: Total | C114: 161 | D114: 101 | E114: 262 | F114: 0.7900763359
F139: Random forests
B145: Misclassification rate:
B147: OOB sample | C147: 0.2163892446
B148: Validation sample | C148: 0.2290076336
B151: Confusion matrix (OOB sample):
B153: from \ to | C153: 0 | D153: 1 | E153: Total | F153: % correct
B154: 0 | C154: 391 | D154: 100 | E154: 491 | F154: 79.63340122
B155: 1 | C155: 69 | D155: 221 | E155: 290 | F155: 76.20689655
B156: Total | C156: 460 | D156: 321 | E156: 781 | F156: 78.36107554
B159: Confusion matrix (Validation sample):
B161: from \ to | C161: 0 | D161: 1 | E161: Total | F161: % correct
B162: 0 | C162: 129 | D162: 31 | E162: 160 | F162: 80.625
B163: 1 | C163: 29 | D163: 73 | E163: 102 | F163: 71.56862745
B164: Total | C164: 158 | D164: 104 | E164: 262 | F164: 77.09923664
B167: Variable importance:
B169: Variables | C169: 0 | D169: 1 | E169: Overall
B170: AGE | C170: 10.10587617 | D170: 8.638330582 | E170: 13.94960038
B171: SIBSP | C171: 8.344584637 | D171: 4.223639131 | E171: 9.468987716
B172: PARCH | C172: 1.705865432 | D172: 2.717573074 | E172: 3.397416232
B173: FARE | C173: -0.5196291483 | D173: 19.64747938 | E173: 14.68786348
B174: PCLASS | C174: 5.910959347 | D174: 34.87623132 | E174: 27.46791877
B175: SEX | C175: 36.8100007 | D175: 48.65211311 | E175: 61.79569312
B176: EMBARKED | C176: 6.505277994 | D176: 0.3375676239 | E176: 6.033207213
B179: Importance chart:
F203: K Nearest Neighbors
B209: Results by class:
B211: Class | C211: 0 | D211: 1
B212: Objects | C212: 161 | D212: 101
C213: Obs2 | D213: Obs5
C214: Obs8 | D214: Obs12
C215: Obs30 | D215: Obs22
C216: Obs39 | D216: Obs24
C217: Obs42 | D217: Obs28
C218: Obs46 | D218: Obs31
C219: Obs49 | D219: Obs36
C220: Obs52 | D220: Obs40
C221: Obs84 | D221: Obs43
C222: Obs85 | D222: Obs50
C223: Obs86 | D223: Obs61
C224: Obs100 | D224: Obs63
C225: Obs102 | D225: Obs64
C226: Obs111 | D226: Obs68
C227: Obs136 | D227: Obs69
C228: Obs152 | D228: Obs89
C229: Obs189 | D229: Obs91
C230: Obs245 | D230: Obs120
C231: Obs292 | D231: Obs130
C232: Obs301 | D232: Obs131
C233: Obs302 | D233: Obs137
C234: Obs329 | D234: Obs139
C235: Obs332 | D235: Obs143
C236: Obs334 | D236: Obs145
C237: Obs337 | D237: Obs146
C238: Obs346 | D238: Obs147
C239: Obs348 | D239: Obs159
C240: Obs350 | D240: Obs163
C241: Obs352 | D241: Obs173
C242: Obs359 | D242: Obs174
C243: Obs375 | D243: Obs176
C244: Obs399 | D244: Obs184
C245: Obs410 | D245: Obs196
C246: Obs421 | D246: Obs202
C247: Obs424 | D247: Obs208
C248: Obs425 | D248: Obs209
C249: Obs427 | D249: Obs225
C250: Obs433 | D250: Obs231
C251: Obs443 | D251: Obs243
C252: Obs462 | D252: Obs244
C253: Obs466 | D253: Obs247
C254: Obs477 | D254: Obs256
C255: Obs483 | D255: Obs261
C256: Obs485 | D256: Obs264
C257: Obs488 | D257: Obs266
C258: Obs502 | D258: Obs271
C259: Obs506 | D259: Obs274
C260: Obs511 | D260: Obs277
C261: Obs538 | D261: Obs281
C262: Obs539 | D262: Obs282
C263: Obs542 | D263: Obs291
C264: Obs544 | D264: Obs293
C265: Obs557 | D265: Obs295
C266: Obs565 | D266: Obs304
C267: Obs566 | D267: Obs307
C268: Obs584 | D268: Obs311
C269: Obs585 | D269: Obs317
C270: Obs600 | D270: Obs330
C271: Obs603 | D271: Obs341
C272: Obs605 | D272: Obs354
C273: Obs608 | D273: Obs360
C274: Obs610 | D274: Obs366
C275: Obs614 | D275: Obs370
C276: Obs622 | D276: Obs371
C277: Obs625 | D277: Obs400
C278: Obs626 | D278: Obs415
C279: Obs627 | D279: Obs435
C280: Obs640 | D280: Obs438
C281: Obs642 | D281: Obs469
C282: Obs643 | D282: Obs494
C283: Obs644 | D283: Obs501
C284: Obs647 | D284: Obs545
C285: Obs648 | D285: Obs549
C286: Obs649 | D286: Obs575
C287: Obs652 | D287: Obs579
C288: Obs663 | D288: Obs581
C289: Obs665 | D289: Obs589
C290: Obs690 | D290: Obs632
C291: Obs699 | D291: Obs654
C292: Obs708 | D292: Obs679
C293: Obs711 | D293: Obs703
C294: Obs731 | D294: Obs736
C295: Obs732 | D295: Obs763
C296: Obs737 | D296: Obs764
C297: Obs744 | D297: Obs777
C298: Obs752 | D298: Obs822
C299: Obs753 | D299: Obs835
C300: Obs754 | D300: Obs870
C301: Obs756 | D301: Obs938
C302: Obs785 | D302: Obs969
C303: Obs786 | D303: Obs1097
C304: Obs791 | D304: Obs1101
C305: Obs794 | D305: Obs1104
C306: Obs797 | D306: Obs1106
C307: Obs807 | D307: Obs1111
C308: Obs808 | D308: Obs1145
C309: Obs821 | D309: Obs1190
C310: Obs825 | D310: Obs1207
C311: Obs831 | D311: Obs1221
C312: Obs837 | D312: Obs1233
C313: Obs841 | D313: Obs1261
C314: Obs845
C315: Obs846
C316: Obs860
C317: Obs863
C318: Obs865
C319: Obs868
C320: Obs869
C321: Obs871
C322: Obs879
C323: Obs891
C324: Obs892
C325: Obs900
C326: Obs907
C327: Obs936
C328: Obs942
C329: Obs954
C330: Obs967
... 335 more rows

Sheet XLSTAT_20220330_163506_1_HID4 (hidden)
A1: 0 | B1: 0
A2: 0 | B2: 0.006329113924
A3: 0 | B3: 0.01265822785
A4: 0 | B4: 0.01898734177
A5: 0 | B5: 0.0253164557
A6: 0.009615384615 | B6: 0.0253164557
A7: 0.009615384615 | B7: 0.03164556962
A8: 0.009615384615 | B8: 0.03797468354
A9: 0.009615384615 | B9: 0.04430379747
A10: 0.009615384615 | B10: 0.05063291139
A11: 0.009615384615 | B11: 0.05696202532
A12: 0.01923076923 | B12: 0.05696202532
A13: 0.02884615385 | B13: 0.05696202532
A14: 0.02884615385 | B14: 0.06329113924
A15: 0.02884615385 | B15: 0.06962025316
A16: 0.02884615385 | B16: 0.07594936709
A17: 0.02884615385 | B17: 0.08227848101
A18: 0.03846153846 | B18: 0.08227848101
A19: 0.03846153846 | B19: 0.08860759494
A20: 0.04807692308 | B20: 0.08860759494
A21: 0.04807692308 | B21: 0.09493670886
A22: 0.04807692308 | B22: 0.1012658228
A23: 0.04807692308 | B23: 0.1075949367
A24: 0.04807692308 | B24: 0.1139240506
A25: 0.04807692308 | B25: 0.1202531646
A26: 0.04807692308 | B26: 0.1265822785
A27: 0.05769230769 | B27: 0.1265822785
A28: 0.05769230769 | B28: 0.1329113924
A29: 0.05769230769 | B29: 0.1392405063
A30: 0.05769230769 | B30: 0.1455696203
A31: 0.06730769231 | B31: 0.1455696203
A32: 0.06730769231 | B32: 0.1455696203
A33: 0.06730769231 | B33: 0.1582278481
A34: 0.06730769231 | B34: 0.164556962
A35: 0.06730769231 | B35: 0.1708860759
A36: 0.06730769231 | B36: 0.1772151899
A37: 0.07692307692 | B37: 0.1772151899
A38: 0.07692307692 | B38: 0.1835443038
A39: 0.08653846154 | B39: 0.1835443038
A40: 0.09615384615 | B40: 0.1835443038
A41: 0.09615384615 | B41: 0.1898734177
A42: 0.09615384615 | B42: 0.1962025316
A43: 0.1057692308 | B43: 0.1962025316
A44: 0.1057692308 | B44: 0.2025316456
A45: 0.1153846154 | B45: 0.2025316456
A46: 0.1153846154 | B46: 0.2088607595
A47: 0.125 | B47: 0.2088607595
A48: 0.125 | B48: 0.2151898734
A49: 0.125 | B49: 0.2215189873
A50: 0.125 | B50: 0.2278481013
A51: 0.1346153846 | B51: 0.2278481013
A52: 0.1346153846 | B52: 0.2341772152
A53: 0.1442307692 | B53: 0.2341772152
A54: 0.1538461538 | B54: 0.2341772152
A55: 0.1634615385 | B55: 0.2341772152
A56: 0.1634615385 | B56: 0.2405063291
A57: 0.1730769231 | B57: 0.2405063291
A58: 0.1730769231 | B58: 0.246835443
A59: 0.1730769231 | B59: 0.253164557
A60: 0.1730769231 | B60: 0.2594936709
A61: 0.1826923077 | B61: 0.2594936709
A62: 0.1923076923 | B62: 0.2594936709
A63: 0.1923076923 | B63: 0.2658227848
A64: 0.1923076923 | B64: 0.2658227848
A65: 0.2019230769 | B65: 0.2721518987
A66: 0.2115384615 | B66: 0.2721518987
A67: 0.2211538462 | B67: 0.2721518987
A68: 0.2307692308 | B68: 0.2721518987
A69: 0.2307692308 | B69: 0.2784810127
A70: 0.2307692308 | B70: 0.2848101266
A71: 0.2307692308 | B71: 0.2911392405
A72: 0.2403846154 | B72: 0.2911392405
A73: 0.2403846154 | B73: 0.2974683544
A74: 0.2403846154 | B74: 0.3037974684
A75: 0.25 | B75: 0.3037974684
A76: 0.2596153846 | B76: 0.3037974684
A77: 0.2596153846 | B77: 0.3101265823
A78: 0.2596153846 | B78: 0.3164556962
A79: 0.2596153846 | B79: 0.3227848101
A80: 0.2596153846 | B80: 0.3291139241
A81: 0.2692307692 | B81: 0.3291139241
A82: 0.2692307692 | B82: 0.335443038
A83: 0.2692307692 | B83: 0.335443038
A84: 0.2692307692 | B84: 0.3481012658
A85: 0.2692307692 | B85: 0.3544303797
A86: 0.2788461538 | B86: 0.3544303797
A87: 0.2788461538 | B87: 0.3607594937
A88: 0.2788461538 | B88: 0.3670886076
A89: 0.2884615385 | B89: 0.3670886076
A90: 0.2980769231 | B90: 0.3670886076
A91: 0.3076923077 | B91: 0.3670886076
A92: 0.3076923077 | B92: 0.3734177215
A93: 0.3076923077 | B93: 0.3797468354
A94: 0.3076923077 | B94: 0.3860759494
A95: 0.3076923077 | B95: 0.3924050633
A96: 0.3076923077 | B96: 0.3987341772
A97: 0.3076923077 | B97: 0.4050632911
A98: 0.3173076923 | B98: 0.4050632911
A99: 0.3269230769 | B99: 0.4050632911
A100: 0.3365384615 | B100: 0.4050632911
A101: 0.3461538462 | B101: 0.4050632911
A102: 0.3461538462 | B102: 0.4113924051
A103: 0.3557692308 | B103: 0.4113924051
A104: 0.3557692308 | B104: 0.417721519
A105: 0.3653846154 | B105: 0.417721519
A106: 0.375 | B106: 0.417721519
A107: 0.3846153846 | B107: 0.417721519
A108: 0.3846153846 | B108: 0.4240506329
A109: 0.3942307692 | B109: 0.4240506329
A110: 0.4038461538 | B110: 0.4240506329
A111: 0.4038461538 | B111: 0.4303797468
A112: 0.4134615385 | B112: 0.4303797468
A113: 0.4134615385 | B113: 0.4367088608
A114: 0.4134615385 | B114: 0.4430379747
A115: 0.4230769231 | B115: 0.4430379747
A116: 0.4326923077 | B116: 0.4430379747
A117: 0.4423076923 | B117: 0.4430379747
A118: 0.4519230769 | B118: 0.4430379747
A119: 0.4615384615 | B119: 0.4430379747
A120: 0.4615384615 | B120: 0.4493670886
A121: 0.4615384615 | B121: 0.4556962025
A122: 0.4615384615 | B122: 0.4620253165
A123: 0.4615384615 | B123: 0.4683544304
A124: 0.4615384615 | B124: 0.4746835443
A125: 0.4615384615 | B125: 0.4810126582
A126: 0.4615384615 | B126: 0.4873417722
A127: 0.4615384615 | B127: 0.4936708861
A128: 0.4615384615 | B128: 0.5
A129: 0.4711538462 | B129: 0.5
A130: 0.4711538462 | B130: 0.5063291139
A131: 0.4711538462 | B131: 0.5126582278
A132: 0.4807692308 | B132: 0.5126582278
A133: 0.4807692308 | B133: 0.5189873418
A134: 0.4807692308 | B134: 0.5253164557
A135: 0.4903846154 | B135: 0.5253164557
A136: 0.4903846154 | B136: 0.5316455696
A137: 0.4903846154 | B137: 0.5379746835
A138: 0.4903846154 | B138: 0.5443037975
A139: 0.4903846154 | B139: 0.5506329114
A140: 0.4903846154 | B140: 0.5569620253
A141: 0.5 | B141: 0.5569620253
A142: 0.5096153846 | B142: 0.5569620253
A143: 0.5096153846 | B143: 0.5632911392
A144: 0.5192307692 | B144: 0.5632911392
A145: 0.5192307692 | B145: 0.5696202532
A146: 0.5192307692 | B146: 0.5759493671
A147: 0.5192307692 | B147: 0.582278481
A148: 0.5288461538 | B148: 0.582278481
A149: 0.5288461538 | B149: 0.5886075949
A150: 0.5288461538 | B150: 0.5949367089
A151: 0.5384615385 | B151: 0.5949367089
A152: 0.5384615385 | B152: 0.6012658228
A153: 0.5384615385 | B153: 0.6075949367
A154: 0.5480769231 | B154: 0.6075949367
A155: 0.5576923077 | B155: 0.6075949367
A156: 0.5576923077 | B156: 0.6139240506
A157: 0.5673076923 | B157: 0.6139240506
A158: 0.5673076923 | B158: 0.6202531646
A159: 0.5769230769 | B159: 0.6202531646
A160: 0.5769230769 | B160: 0.6265822785
A161: 0.5769230769 | B161: 0.6329113924
A162: 0.5769230769 | B162: 0.6392405063
A163: 0.5769230769 | B163: 0.6455696203
A164: 0.5769230769 | B164: 0.6518987342
A165: 0.5865384615 | B165: 0.6518987342
A166: 0.5865384615 | B166: 0.6582278481
A167: 0.5865384615 | B167: 0.664556962
A168: 0.5961538462 | B168: 0.664556962
A169: 0.5961538462 | B169: 0.6708860759
A170: 0.6057692308 | B170: 0.6708860759
A171: 0.6153846154 | B171: 0.6708860759
A172: 0.6153846154 | B172: 0.6772151899
A173: 0.625 | B173: 0.6772151899
A174: 0.6346153846 | B174: 0.6772151899
A175: 0.6346153846 | B175: 0.6835443038
A176: 0.6442307692 | B176: 0.6835443038
A177: 0.6442307692 | B177: 0.6898734177
A178: 0.6538461538 | B178: 0.6898734177
A179: 0.6538461538 | B179: 0.6962025316
A180: 0.6634615385 | B180: 0.6962025316
A181: 0.6634615385 | B181: 0.7025316456
A182: 0.6730769231 | B182: 0.7025316456
A183: 0.6730769231 | B183: 0.7088607595
A184: 0.6826923077 | B184: 0.7088607595
A185: 0.6826923077 | B185: 0.7151898734
A186: 0.6826923077 | B186: 0.7215189873
A187: 0.6923076923 | B187: 0.7215189873
A188: 0.6923076923 | B188: 0.7278481013
A189: 0.7019230769 | B189: 0.7278481013
A190: 0.7019230769 | B190: 0.7341772152
A191: 0.7019230769 | B191: 0.7405063291
A192: 0.7019230769 | B192: 0.746835443
A193: 0.7115384615 | B193: 0.746835443
A194: 0.7115384615 | B194: 0.753164557
A195: 0.7115384615 | B195: 0.7594936709
A196: 0.7115384615 | B196: 0.7658227848
A197: 0.7115384615 | B197: 0.7721518987
A198: 0.7211538462 | B198: 0.7721518987
A199: 0.7307692308 | B199: 0.7721518987
A200: 0.7403846154 | B200: 0.7721518987
... 589 more rows

Sheet XLSTAT_20220330_163506_1_HID3 (hidden)
A1: 0 | B1: 0 | C1: 0 | D1: 0
A2: 0 | B2: 0.002173913043 | C2: 0 | D2: 0.006329113924
A3: 0 | B3: 0.004347826087 | C3: 0 | D3: 0.01265822785
A4: 0 | B4: 0.00652173913 | C4: 0 | D4: 0.01898734177
A5: 0 | B5: 0.008695652174 | C5: 0 | D5: 0.0253164557
A6: 0 | B6: 0.01086956522 | C6: 0 | D6: 0.03164556962
A7: 0 | B7: 0.01304347826 | C7: 0 | D7: 0.03797468354
A8: 0 | B8: 0.0152173913 | C8: 0 | D8: 0.04430379747
A9: 0 | B9: 0.01739130435 | C9: 0 | D9: 0.05063291139
A10: 0 | B10: 0.01956521739 | C10: 0 | D10: 0.05696202532
A11: 0 | B11: 0.02173913043 | C11: 0.009615384615 | D11: 0.05696202532
A12: 0 | B12: 0.02391304348 | C12: 0.01923076923 | D12: 0.05696202532
A13: 0 | B13: 0.02608695652 | C13: 0.01923076923 | D13: 0.06329113924
A14: 0 | B14: 0.02826086957 | C14: 0.01923076923 | D14: 0.06962025316
A15: 0 | B15: 0.03043478261 | C15: 0.01923076923 | D15: 0.07594936709
A16: 0 | B16: 0.03260869565 | C16: 0.01923076923 | D16: 0.08227848101
A17: 0 | B17: 0.0347826087 | C17: 0.01923076923 | D17: 0.08860759494
A18: 0 | B18: 0.03695652174 | C18: 0.01923076923 | D18: 0.09493670886
A19: 0 | B19: 0.03913043478 | C19: 0.01923076923 | D19: 0.1012658228
A20: 0 | B20: 0.04130434783 | C20: 0.01923076923 | D20: 0.1075949367
A21: 0 | B21: 0.04347826087 | C21: 0.01923076923 | D21: 0.1139240506
A22: 0.003115264798 | B22: 0.04347826087 | C22: 0.01923076923 | D22: 0.1202531646
A23: 0.003115264798 | B23: 0.04565217391 | C23: 0.01923076923 | D23: 0.1265822785
A24: 0.003115264798 | B24: 0.04782608696 | C24: 0.01923076923 | D24: 0.1329113924
A25: 0.003115264798 | B25: 0.05 | C25: 0.01923076923 | D25: 0.1392405063
A26: 0.003115264798 | B26: 0.05217391304 | C26: 0.02884615385 | D26: 0.1392405063
A27: 0.003115264798 | B27: 0.05434782609 | C27: 0.02884615385 | D27: 0.1455696203
A28: 0.003115264798 | B28: 0.05652173913 | C28: 0.02884615385 | D28: 0.1518987342
A29: 0.003115264798 | B29: 0.05869565217 | C29: 0.02884615385 | D29: 0.1582278481
A30: 0.006230529595 | B30: 0.05869565217 | C30: 0.03846153846 | D30: 0.1582278481
A31: 0.009345794393 | B31: 0.05869565217 | C31: 0.03846153846 | D31: 0.164556962
A32: 0.009345794393 | B32: 0.06086956522 | C32: 0.03846153846 | D32: 0.1708860759
A33: 0.009345794393 | B33: 0.06304347826 | C33: 0.03846153846 | D33: 0.1772151899
A34: 0.009345794393 | B34: 0.0652173913 | C34: 0.03846153846 | D34: 0.1835443038
A35: 0.009345794393 | B35: 0.0652173913 | C35: 0.03846153846 | D35: 0.1898734177
A36: 0.01557632399 | B36: 0.0652173913 | C36: 0.03846153846 | D36: 0.1962025316
A37: 0.01557632399 | B37: 0.06739130435 | C37: 0.03846153846 | D37: 0.2025316456
A38: 0.01557632399 | B38: 0.06956521739 | C38: 0.03846153846 | D38: 0.2088607595
A39: 0.01869158879 | B39: 0.06956521739 | C39: 0.03846153846 | D39: 0.2151898734
A40: 0.01869158879 | B40: 0.07173913043 | C40: 0.03846153846 | D40: 0.2215189873
A41: 0.01869158879 | B41: 0.07391304348 | C41: 0.03846153846 | D41: 0.2278481013
A42: 0.01869158879 | B42: 0.07608695652 | C42: 0.03846153846 | D42: 0.2341772152
A43: 0.01869158879 | B43: 0.07826086957 | C43: 0.03846153846 | D43: 0.2405063291
A44: 0.01869158879 | B44: 0.08043478261 | C44: 0.03846153846 | D44: 0.246835443
A45: 0.02180685358 | B45: 0.08043478261 | C45: 0.04807692308 | D45: 0.246835443
A46: 0.02180685358 | B46: 0.08260869565 | C46: 0.04807692308 | D46: 0.253164557
A47: 0.02180685358 | B47: 0.0847826087 | C47: 0.05769230769 | D47: 0.253164557
A48: 0.02492211838 | B48: 0.0847826087 | C48: 0.05769230769 | D48: 0.253164557
A49: 0.02492211838 | B49: 0.08695652174 | C49: 0.05769230769 | D49: 0.2658227848
A50: 0.02492211838 | B50: 0.08913043478 | C50: 0.05769230769 | D50: 0.2721518987
A51: 0.02492211838 | B51: 0.09130434783 | C51: 0.05769230769 | D51: 0.2784810127
A52: 0.02803738318 | B52: 0.09130434783 | C52: 0.05769230769 | D52: 0.2848101266
A53: 0.02803738318 | B53: 0.09347826087 | C53: 0.05769230769 | D53: 0.2911392405
A54: 0.02803738318 | B54: 0.09565217391 | C54: 0.05769230769 | D54: 0.2974683544
A55: 0.02803738318 | B55: 0.09782608696 | C55: 0.05769230769 | D55: 0.3037974684
A56: 0.02803738318 | B56: 0.1 | C56: 0.05769230769 | D56: 0.3101265823
A57: 0.02803738318 | B57: 0.102173913 | C57: 0.05769230769 | D57: 0.3164556962
A58: 0.02803738318 | B58: 0.1043478261 | C58: 0.05769230769 | D58: 0.3227848101
A59: 0.02803738318 | B59: 0.1065217391 | C59: 0.05769230769 | D59: 0.3291139241
A60: 0.02803738318 | B60: 0.1086956522 | C60: 0.05769230769 | D60: 0.335443038
A61: 0.03115264798 | B61: 0.1086956522 | C61: 0.06730769231 | D61: 0.335443038
A62: 0.03115264798 | B62: 0.1108695652 | C62: 0.06730769231 | D62: 0.3417721519
A63: 0.03115264798 | B63: 0.1108695652 | C63: 0.06730769231 | D63: 0.3481012658
A64: 0.03115264798 | B64: 0.1152173913 | C64: 0.06730769231 | D64: 0.3481012658
A65: 0.03426791277 | B65: 0.1152173913 | C65: 0.06730769231 | D65: 0.3607594937
A66: 0.03426791277 | B66: 0.1173913043 | C66: 0.06730769231 | D66: 0.3670886076
A67: 0.03426791277 | B67: 0.1195652174 | C67: 0.07692307692 | D67: 0.3670886076
A68: 0.03426791277 | B68: 0.1217391304 | C68: 0.07692307692 | D68: 0.3734177215
A69: 0.03426791277 | B69: 0.1239130435 | C69: 0.07692307692 | D69: 0.3797468354
A70: 0.03426791277 | B70: 0.1260869565 | C70: 0.07692307692 | D70: 0.3860759494
A71: 0.03426791277 | B71: 0.1282608696 | C71: 0.07692307692 | D71: 0.3924050633
A72: 0.03426791277 | B72: 0.1304347826 | C72: 0.07692307692 | D72: 0.3924050633
A73: 0.03426791277 | B73: 0.1326086957 | C73: 0.07692307692 | D73: 0.4050632911
A74: 0.03426791277 | B74: 0.1347826087 | C74: 0.07692307692 | D74: 0.4113924051
A75: 0.03426791277 | B75: 0.1369565217 | C75: 0.07692307692 | D75: 0.417721519
A76: 0.03738317757 | B76: 0.1369565217 | C76: 0.08653846154 | D76: 0.417721519
A77: 0.03738317757 | B77: 0.1391304348 | C77: 0.08653846154 | D77: 0.4240506329
A78: 0.03738317757 | B78: 0.1413043478 | C78: 0.08653846154 | D78: 0.4303797468
A79: 0.03738317757 | B79: 0.1434782609 | C79: 0.09615384615 | D79: 0.4303797468
A80: 0.03738317757 | B80: 0.1456521739 | C80: 0.1057692308 | D80: 0.4303797468
A81: 0.03738317757 | B81: 0.147826087 | C81: 0.1057692308 | D81: 0.4367088608
A82: 0.03738317757 | B82: 0.15 | C82: 0.1153846154 | D82: 0.4367088608
A83: 0.03738317757 | B83: 0.152173913 | C83: 0.125 | D83: 0.4367088608
A84: 0.04049844237 | B84: 0.152173913 | C84: 0.125 | D84: 0.4430379747
A85: 0.04049844237 | B85: 0.1543478261 | C85: 0.1346153846 | D85: 0.4430379747
A86: 0.04049844237 | B86: 0.1565217391 | C86: 0.1346153846 | D86: 0.4493670886
A87: 0.04049844237 | B87: 0.1586956522 | C87: 0.1346153846 | D87: 0.4556962025
A88: 0.04049844237 | B88: 0.1586956522 | C88: 0.1346153846 | D88: 0.4620253165
A89: 0.04049844237 | B89: 0.1630434783 | C89: 0.1442307692 | D89: 0.4620253165
A90: 0.04049844237 | B90: 0.1652173913 | C90: 0.1442307692 | D90: 0.4620253165
A91: 0.04049844237 | B91: 0.1673913043 | C91: 0.1442307692 | D91: 0.4746835443
A92: 0.04049844237 | B92: 0.1695652174 | C92: 0.1442307692 | D92: 0.4810126582
A93: 0.04049844237 | B93: 0.1695652174 | C93: 0.1442307692 | D93: 0.4873417722
A94: 0.04049844237 | B94: 0.1739130435 | C94: 0.1442307692 | D94: 0.4936708861
A95: 0.04049844237 | B95: 0.1760869565 | C95: 0.1538461538 | D95: 0.4936708861
A96: 0.04049844237 | B96: 0.1782608696 | C96: 0.1538461538 | D96: 0.5
A97: 0.04049844237 | B97: 0.1804347826 | C97: 0.1538461538 | D97: 0.5063291139
A98: 0.04049844237 | B98: 0.1826086957 | C98: 0.1538461538 | D98: 0.5126582278
A99: 0.04049844237 | B99: 0.1847826087 | C99: 0.1538461538 | D99: 0.5189873418
A100: 0.04049844237 | B100: 0.1869565217 | C100: 0.1634615385 | D100: 0.5189873418
A101: 0.04049844237 | B101: 0.1891304348 | C101: 0.1730769231 | D101: 0.5189873418
A102: 0.04049844237 | B102: 0.1913043478 | C102: 0.1730769231 | D102: 0.5253164557
A103: 0.04361370717 | B103: 0.1913043478 | C103: 0.1730769231 | D103: 0.5316455696
A104: 0.04361370717 | B104: 0.1913043478 | C104: 0.1730769231 | D104: 0.5379746835
A105: 0.04361370717 | B105: 0.1913043478 | C105: 0.1730769231 | D105: 0.5443037975
A106: 0.04672897196 | B106: 0.1956521739 | C106: 0.1730769231 | D106: 0.5506329114
A107: 0.04984423676 | B107: 0.1956521739 | C107: 0.1730769231 | D107: 0.5569620253
A108: 0.05295950156 | B108: 0.1956521739 | C108: 0.1730769231 | D108: 0.5632911392
A109: 0.05607476636 | B109: 0.1956521739 | C109: 0.1730769231 | D109: 0.5632911392
A110: 0.05919003115 | B110: 0.1956521739 | C110: 0.1730769231 | D110: 0.5759493671
A111: 0.06230529595 | B111: 0.1956521739 | C111: 0.1730769231 | D111: 0.582278481
A112: 0.06230529595 | B112: 0.197826087 | C112: 0.1730769231 | D112: 0.582278481
A113: 0.06230529595 | B113: 0.2 | C113: 0.1730769231 | D113: 0.5949367089
A114: 0.06230529595 | B114: 0.202173913 | C114: 0.1730769231 | D114: 0.6012658228
A115: 0.06230529595 | B115: 0.2043478261 | C115: 0.1730769231 | D115: 0.6075949367
A116: 0.06230529595 | B116: 0.2065217391 | C116: 0.1730769231 | D116: 0.6139240506
A117: 0.06230529595 | B117: 0.2086956522 | C117: 0.1730769231 | D117: 0.6202531646
A118: 0.06230529595 | B118: 0.2086956522 | C118: 0.1730769231 | D118: 0.6265822785
A119: 0.06230529595 | B119: 0.2130434783 | C119: 0.1730769231 | D119: 0.6329113924
A120: 0.06230529595 | B120: 0.2152173913 | C120: 0.1826923077 | D120: 0.6329113924
A121: 0.06230529595 | B121: 0.2173913043 | C121: 0.1923076923 | D121: 0.6329113924
A122: 0.06230529595 | B122: 0.2195652174 | C122: 0.2019230769 | D122: 0.6329113924
A123: 0.06230529595 | B123: 0.2217391304 | C123: 0.2019230769 | D123: 0.6392405063
A124: 0.06230529595 | B124: 0.2239130435 | C124: 0.2019230769 | D124: 0.6455696203
A125: 0.06230529595 | B125: 0.2260869565 | C125: 0.2115384615 | D125: 0.6455696203
A126: 0.06230529595 | B126: 0.2282608696 | C126: 0.2115384615 | D126: 0.6518987342
A127: 0.06542056075 | B127: 0.2282608696 | C127: 0.2115384615 | D127: 0.6582278481
A128: 0.06542056075 | B128: 0.2304347826 | C128: 0.2115384615 | D128: 0.664556962
A129: 0.06542056075 | B129: 0.2326086957 | C129: 0.2211538462 | D129: 0.664556962
A130: 0.06542056075 | B130: 0.2347826087 | C130: 0.2211538462 | D130: 0.6708860759
A131: 0.06542056075 | B131: 0.2347826087 | C131: 0.2211538462 | D131: 0.6772151899
A132: 0.06542056075 | B132: 0.2391304348 | C132: 0.2211538462 | D132: 0.6835443038
A133: 0.06542056075 | B133: 0.2391304348 | C133: 0.2211538462 | D133: 0.6898734177
A134: 0.06542056075 | B134: 0.2391304348 | C134: 0.2307692308 | D134: 0.6898734177
A135: 0.06853582555 | B135: 0.2434782609 | C135: 0.2307692308 | D135: 0.6962025316
A136: 0.06853582555 | B136: 0.2456521739 | C136: 0.2307692308 | D136: 0.7025316456
A137: 0.06853582555 | B137: 0.247826087 | C137: 0.2403846154 | D137: 0.7025316456
A138: 0.07165109034 | B138: 0.247826087 | C138: 0.2403846154 | D138: 0.7088607595
A139: 0.07476635514 | B139: 0.247826087 | C139: 0.2403846154 | D139: 0.7151898734
A140: 0.07476635514 | B140: 0.25 | C140: 0.2403846154 | D140: 0.7215189873
A141: 0.07476635514 | B141: 0.252173913 | C141: 0.2403846154 | D141: 0.7278481013
A142: 0.07476635514 | B142: 0.252173913 | C142: 0.2403846154 | D142: 0.7341772152
A143: 0.07476635514 | B143: 0.252173913 | C143: 0.2403846154 | D143: 0.7405063291
A144: 0.07476635514 | B144: 0.2586956522 | C144: 0.2403846154 | D144: 0.746835443
A145: 0.07476635514 | B145: 0.2608695652 | C145: 0.2403846154 | D145: 0.753164557
A146: 0.07788161994 | B146: 0.2608695652 | C146: 0.2403846154 | D146: 0.7594936709
A147: 0.07788161994 | B147: 0.2630434783 | C147: 0.2403846154 | D147: 0.7658227848
A148: 0.07788161994 | B148: 0.2630434783 | C148: 0.25 | D148: 0.7658227848
A149: 0.08099688474 | B149: 0.2652173913 | C149: 0.25 | D149: 0.7658227848
A150: 0.08099688474 | B150: 0.2673913043 | C150: 0.25 | D150: 0.7784810127
A151: 0.08099688474 | B151: 0.2695652174 | C151: 0.2596153846 | D151: 0.7784810127
A152: 0.08099688474 | B152: 0.2717391304 | C152: 0.2692307692 | D152: 0.7784810127
A153: 0.08411214953 | B153: 0.2717391304 | C153: 0.2692307692 | D153: 0.7848101266
A154: 0.08411214953 | B154: 0.2739130435 | C154: 0.2692307692 | D154: 0.7911392405
A155: 0.08722741433 | B155: 0.2739130435 | C155: 0.2692307692 | D155: 0.7974683544
A156: 0.08722741433 | B156: 0.2760869565 | C156: 0.2692307692 | D156: 0.8037974684
A157: 0.08722741433 | B157: 0.2782608696 | C157: 0.2788461538 | D157: 0.8037974684
A158: 0.08722741433 | B158: 0.2804347826 | C158: 0.2788461538 | D158: 0.8101265823
A159: 0.08722741433 | B159: 0.2804347826 | C159: 0.2884615385 | D159: 0.8101265823
A160: 0.08722741433 | B160: 0.2847826087 | C160: 0.2884615385 | D160: 0.8164556962
A161: 0.08722741433 | B161: 0.2869565217 | C161: 0.2980769231 | D161: 0.8164556962
A162: 0.08722741433 | B162: 0.2891304348 | C162: 0.2980769231 | D162: 0.8227848101
A163: 0.08722741433 | B163: 0.2913043478 | C163: 0.2980769231 | D163: 0.8291139241
A164: 0.08722741433 | B164: 0.2934782609 | C164: 0.2980769231 | D164: 0.835443038
A165: 0.08722741433 | B165: 0.2956521739 | C165: 0.3076923077 | D165: 0.835443038
A166: 0.08722741433 | B166: 0.297826087 | C166: 0.3076923077 | D166: 0.8417721519
A167: 0.08722741433 | B167: 0.3 | C167: 0.3173076923 | D167: 0.8417721519
A168: 0.09034267913 | B168: 0.3 | C168: 0.3173076923 | D168: 0.8481012658
A169: 0.09034267913 | B169: 0.302173913 | C169: 0.3173076923 | D169: 0.8544303797
A170: 0.09034267913 | B170: 0.3043478261 | C170: 0.3173076923 | D170: 0.8607594937
A171: 0.09034267913 | B171: 0.3065217391 | C171: 0.3269230769 | D171: 0.8607594937
A172: 0.09034267913 | B172: 0.3086956522 | C172: 0.3269230769 | D172: 0.8670886076
A173: 0.09034267913 | B173: 0.3108695652 | C173: 0.3269230769 | D173: 0.8734177215
A174: 0.09345794393 | B174: 0.3108695652 | C174: 0.3365384615 | D174: 0.8734177215
A175: 0.09345794393 | B175: 0.3108695652 | C175: 0.3461538462 | D175: 0.8734177215
A176: 0.09345794393 | B176: 0.3152173913 | C176: 0.3461538462 | D176: 0.8797468354
A177: 0.09345794393 | B177: 0.3173913043 | C177: 0.3557692308 | D177: 0.8797468354
A178: 0.09345794393 | B178: 0.3195652174 | C178: 0.3653846154 | D178: 0.8797468354
A179: 0.09345794393 | B179: 0.3217391304 | C179: 0.375 | D179: 0.8797468354
A180: 0.09345794393 | B180: 0.3239130435 | C180: 0.375 | D180: 0.8860759494
A181: 0.09345794393 | B181: 0.3260869565 | C181: 0.375 | D181: 0.8924050633
A182: 0.09345794393 | B182: 0.3282608696 | C182: 0.375 | D182: 0.8987341772
A183: 0.09345794393 | B183: 0.3304347826 | C183: 0.375 | D183: 0.9050632911
A184: 0.09345794393 | B184: 0.3326086957 | C184: 0.3846153846 | D184: 0.9050632911
A185: 0.09345794393 | B185: 0.3347826087 | C185: 0.3846153846 | D185: 0.9113924051
A186: 0.09345794393 | B186: 0.3347826087 | C186: 0.3846153846 | D186: 0.917721519
A187: 0.09345794393 | B187: 0.3391304348 | C187: 0.3942307692 | D187: 0.917721519
A188: 0.09345794393 | B188: 0.3391304348 | C188: 0.3942307692 | D188: 0.9240506329
A189: 0.09345794393 | B189: 0.3391304348 | C189: 0.3942307692 | D189: 0.9303797468
A190: 0.09345794393 | B190: 0.3456521739 | C190: 0.3942307692 | D190: 0.9367088608
A191: 0.09345794393 | B191: 0.347826087 | C191: 0.3942307692 | D191: 0.9430379747
A192: 0.09345794393 | B192: 0.347826087 | C192: 0.4038461538 | D192: 0.9430379747
A193: 0.09345794393 | B193: 0.352173913 | C193: 0.4134615385 | D193: 0.9430379747
A194: 0.09345794393 | B194: 0.3543478261 | C194: 0.4230769231 | D194: 0.9430379747
A195: 0.09345794393 | B195: 0.3565217391 | C195: 0.4326923077 | D195: 0.9430379747
A196: 0.09345794393 | B196: 0.3586956522 | C196: 0.4326923077 | D196: 0.9493670886
A197: 0.09345794393 | B197: 0.3586956522 | C197: 0.4423076923 | D197: 0.9493670886
A198: 0.09968847352 | B198: 0.3586956522 | C198: 0.4423076923 | D198: 0.9556962025
A199: 0.09968847352 | B199: 0.3586956522 | C199: 0.4519230769 | D199: 0.9556962025
A200: 0.1028037383 | B200: 0.3608695652 | C200: 0.4615384615 | D200: 0.9556962025
... 582 more rows

Sheet XLSTAT_20220330_163506_1_HID2 (hidden)

Sheet XLSTAT_20220330_163506_1_HID1 (hidden)
A1: 1 | B1: =(A1-1) -> 0 | C1: =0+B1*0.0014306152 -> 0 | D1: =IF(B1/2-INT(B1/2)<0.1,1,2) -> 1 | E1: 1 | F1: =(E1-1) -> 0 | G1: =0.0425733606+F1*0.001308803 -> 0.0425733606 | H1: =IF(F1/2-INT(F1/2)<0.1,1.0425733606,1.9574266394) -> 1.042573361 | I1: 1 | J1: =(I1-1) -> 0 | K1: =1.2981067867+J1*0.000577663 -> 1.298106787 | L1: =IF(J1/2-INT(J1/2)<0.1,1.2981067867,1.7018932133) -> 1.298106787 | M1: 1 | N1: =(M1-1) -> 0 | O1: =0.2751812324+N1*0.0006432583 -> 0.2751812324 | P1: =IF(N1/2-INT(N1/2)<0.1,0.2751812324,0.7248187676) -> 0.2751812324 | Q1: 1 | R1: =(Q1-1) -> 0 | S1: =1.0823200726+R1*0.0011950785 -> 1.082320073 | T1: =IF(R1/2-INT(R1/2)<0.1,0.0823200726,0.9176799274) -> 0.0823200726 | U1: 1 | V1: =(U1-1) -> 0 | W1: =1.1479871544+V1*0.0010071898 -> 1.147987154 | X1: =IF(V1/2-INT(V1/2)<0.1,0.1479871544,0.8520128456) -> 0.1479871544 | Y1: 1 | Z1: =(Y1-1) -> 0 | AA1: =0+Z1*0.0014306152 -> 0 | AB1: =IF(Z1/2-INT(Z1/2)<0.1,1,2) -> 1 | AC1: 1 | AD1: =(AC1-1) -> 0 | AE1: =0.0429871342+AD1*0.0013076191 -> 0.0429871342 | AF1: =IF(AD1/2-INT(AD1/2)<0.1,1.0429871342,1.9570128658) -> 1.042987134 | AG1: 1 | AH1: =(AG1-1) -> 0 | AI1: =1.2971718942+AH1*0.0005803379 -> 1.297171894 | AJ1: =IF(AH1/2-INT(AH1/2)<0.1,1.2971718942,1.7028281058) -> 1.297171894 | AK1: 1 | AL1: =(AK1-1) -> 0 | AM1: =0.2857896456+AL1*0.0006129052 -> 0.2857896456 | AN1: =IF(AL1/2-INT(AL1/2)<0.1,0.2857896456,0.7142103544) -> 0.2857896456 | AO1: 1 | AP1: =(AO1-1) -> 0 | AQ1: =1.0943437884+AP1*0.0011606759 -> 1.094343788 | AR1: =IF(AP1/2-INT(AP1/2)<0.1,0.0943437884,0.9056562116) -> 0.0943437884 | AS1: 1 | AT1: =(AS1-1) -> 0 | AU1: =1.1555135909+AT1*0.000985655 -> 1.155513591 | AV1: =IF(AT1/2-INT(AT1/2)<0.1,0.1555135909,0.8444864091) -> 0.1555135909 | AW1: 1 | AY1: =0+(AW1-1)*0.0101010101 -> 0 | AZ1: =1 -> 1
A2: 2 | B2: 1 | C2: 0.0014306152 | D2: 2 | E2: 2 | F2: 1 | G2: 0.0438821636 | H2: 1.957426639 | I2: 2 | J2: 1 | K2: 1.29868445 | L2: 1.701893213 | M2: 2 | N2: 1 | O2: 0.2758244907 | P2: 0.7248187676 | Q2: 2 | R2: 1 | S2: 1.083515151 | T2: 0.9176799274 | U2: 2 | V2: 1 | W2: 1.148994344 | X2: 0.8520128456 | Y2: 2 | Z2: 1 | AA2: 0.0014306152 | AB2: 2 | AC2: 2 | AD2: 1 | AE2: 0.0442947533 | AF2: 1.957012866 | AG2: 2 | AH2: 1 | AI2: 1.297752232 | AJ2: 1.702828106 | AK2: 2 | AL2: 1 | AM2: 0.2864025508 | AN2: 0.7142103544 | AO2: 2 | AP2: 1 | AQ2: 1.095504464 | AR2: 0.9056562116 | AS2: 2 | AT2: 1 | AU2: 1.156499246 | AV2: 0.8444864091 | AW2: 2 | AY2: 0.0101010101 | AZ2: =1 -> 1
A3: 3 | B3: 2 | C3: 0.0028612304 | D3: 1 | E3: 3 | F3: 2 | G3: 0.0451909666 | H3: 1.042573361 | I3: 3 | J3: 2 | K3: 1.299262113 | L3: 1.298106787 | M3: 3 | N3: 2 | O3: 0.276467749 | P3: 0.2751812324 | Q3: 3 | R3: 2 | S3: 1.08471023 | T3: 0.0823200726 | U3: 3 | V3: 2 | W3: 1.150001534 | X3: 0.1479871544 | Y3: 3 | Z3: 2 | AA3: 0.0028612304 | AB3: 1 | AC3: 3 | AD3: 2 | AE3: 0.0456023724 | AF3: 1.042987134 | AG3: 3 | AH3: 2 | AI3: 1.29833257 | AJ3: 1.297171894 | AK3: 3 | AL3: 2 | AM3: 0.287015456 | AN3: 0.2857896456 | AO3: 3 | AP3: 2 | AQ3: 1.09666514 | AR3: 0.0943437884 | AS3: 3 | AT3: 2 | AU3: 1.157484901 | AV3: 0.1555135909 | AW3: 3 | AY3: 0.0202020202 | AZ3: =1 -> 1
A4: 4 | B4: 3 | C4: 0.0042918456 | D4: 2 | E4: 4 | F4: 3 | G4: 0.0464997696 | H4: 1.957426639 | I4: 4 | J4: 3 | K4: 1.299839776 | L4: 1.701893213 | M4: 4 | N4: 3 | O4: 0.2771110073 | P4: 0.7248187676 | Q4: 4 | R4: 3 | S4: 1.085905308 | T4: 0.9176799274 | U4: 4 | V4: 3 | W4: 1.151008724 | X4: 0.8520128456 | Y4: 4 | Z4: 3 | AA4: 0.0042918456 | AB4: 2 | AC4: 4 | AD4: 3 | AE4: 0.0469099915 | AF4: 1.957012866 | AG4: 4 | AH4: 3 | AI4: 1.298912908 | AJ4: 1.702828106 | AK4: 4 | AL4: 3 | AM4: 0.2876283612 | AN4: 0.7142103544 | AO4: 4 | AP4: 3 | AQ4: 1.097825816 | AR4: 0.9056562116 | AS4: 4 | AT4: 3 | AU4: 1.158470556 | AV4: 0.8444864091 | AW4: 4 | AY4: 0.0303030303 | AZ4: =1 -> 1
A5: 5 | B5: 4 | C5: 0.0057224608 | D5: 1 | E5: 5 | F5: 4 | G5: 0.0478085726 | H5: 1.042573361 | I5: 5 | J5: 4 | K5: 1.300417439 | L5: 1.298106787 | M5: 5 | N5: 4 | O5: 0.2777542656 | P5: 0.2751812324 | Q5: 5 | R5: 4 | S5: 1.087100387 | T5: 0.0823200726 | U5: 5 | V5: 4 | W5: 1.152015914 | X5: 0.1479871544 | Y5: 5 | Z5: 4 | AA5: 0.0057224608 | AB5: 1 | AC5: 5 | AD5: 4 | AE5: 0.0482176106 | AF5: 1.042987134 | AG5: 5 | AH5: 4 | AI5: 1.299493246 | AJ5: 1.297171894 | AK5: 5 | AL5: 4 | AM5: 0.2882412664 | AN5: 0.2857896456 | AO5: 5 | AP5: 4 | AQ5: 1.098986492 | AR5: 0.0943437884 | AS5: 5 | AT5: 4 | AU5: 1.159456211 | AV5: 0.1555135909 | AW5: 5 | AY5: 0.0404040404 | AZ5: =1 -> 1
A6: 6 | B6: 5 | C6: 0.007153076 | D6: 2 | E6: 6 | F6: 5 | G6: 0.0491173756 | H6: 1.957426639 | I6: 6 | J6: 5 | K6: 1.300995102 | L6: 1.701893213 | M6: 6 | N6: 5 | O6: 0.2783975239 | P6: 0.7248187676 | Q6: 6 | R6: 5 | S6: 1.088295465 | T6: 0.9176799274 | U6: 6 | V6: 5 | W6: 1.153023103 | X6: 0.8520128456 | Y6: 6 | Z6: 5 | AA6: 0.007153076 | AB6: 2 | AC6: 6 | AD6: 5 | AE6: 0.0495252297 | AF6: 1.957012866 | AG6: 6 | AH6: 5 | AI6: 1.300073584 | AJ6: 1.702828106 | AK6: 6 | AL6: 5 | AM6: 0.2888541716 | AN6: 0.7142103544 | AO6: 6 | AP6: 5 | AQ6: 1.100147168 | AR6: 0.9056562116 | AS6: 6 | AT6: 5 | AU6: 1.160441866 | AV6: 0.8444864091 | AW6: 6 | AY6: 0.0505050505 | AZ6: =1 -> 1
A7: 7 | B7: 6 | C7: 0.0085836912 | D7: 1 | E7: 7 | F7: 6 | G7: 0.0504261786 | H7: 1.042573361 | I7: 7 | J7: 6 | K7: 1.301572765 | L7: 1.298106787 | M7: 7 | N7: 6 | O7: 0.2790407822 | P7: 0.2751812324 | Q7: 7 | R7: 6 | S7: 1.089490544 | T7: 0.0823200726 | U7: 7 | V7: 6 | W7: 1.154030293 | X7: 0.1479871544 | Y7: 7 | Z7: 6 | AA7: 0.0085836912 | AB7: 1 | AC7: 7 | AD7: 6 | AE7: 0.0508328488 | AF7: 1.042987134 | AG7: 7 | AH7: 6 | AI7: 1.300653922 | AJ7: 1.297171894 | AK7: 7 | AL7: 6 | AM7: 0.2894670768 | AN7: 0.2857896456 | AO7: 7 | AP7: 6 | AQ7: 1.101307844 | AR7: 0.0943437884 | AS7: 7 | AT7: 6 | AU7: 1.161427521 | AV7: 0.1555135909 | AW7: 7 | AY7: 0.0606060606 | AZ7: =1 -> 1
A8: 8 | B8: 7 | C8: 0.0100143064 | D8: 2 | E8: 8 | F8: 7 | G8: 0.0517349816 | H8: 1.957426639 | I8: 8 | J8: 7 | K8: 1.302150428 | L8: 1.701893213 | M8: 8 | N8: 7 | O8: 0.2796840405 | P8: 0.7248187676 | Q8: 8 | R8: 7 | S8: 1.090685622 | T8: 0.9176799274 | U8: 8 | V8: 7 | W8: 1.155037483 | X8: 0.8520128456 | Y8: 8 | Z8: 7 | AA8: 0.0100143064 | AB8: 2 | AC8: 8 | AD8: 7 | AE8: 0.0521404679 | AF8: 1.957012866 | AG8: 8 | AH8: 7 | AI8: 1.301234259 | AJ8: 1.702828106 | AK8: 8 | AL8: 7 | AM8: 0.290079982 | AN8: 0.7142103544 | AO8: 8 | AP8: 7 | AQ8: 1.10246852 | AR8: 0.9056562116 | AS8: 8 | AT8: 7 | AU8: 1.162413176 | AV8: 0.8444864091 | AW8: 8 | AY8: 0.0707070707 | AZ8: =1 -> 1
A9: 9 | B9: 8 | C9: 0.0114449216 | D9: 1 | E9: 9 | F9: 8 | G9: 0.0530437846 | H9: 1.042573361 | I9: 9 | J9: 8 | K9: 1.302728091 | L9: 1.298106787 | M9: 9 | N9: 8 | O9: 0.2803272988 | P9: 0.2751812324 | Q9: 9 | R9: 8 | S9: 1.091880701 | T9: 0.0823200726 | U9: 9 | V9: 8 | W9: 1.156044673 | X9: 0.1479871544 | Y9: 9 | Z9: 8 | AA9: 0.0114449216 | AB9: 1 | AC9: 9 | AD9: 8 | AE9: 0.053448087 | AF9: 1.042987134 | AG9: 9 | AH9: 8 | AI9: 1.301814597 | AJ9: 1.297171894 | AK9: 9 | AL9: 8 | AM9: 0.2906928872 | AN9: 0.2857896456 | AO9: 9 | AP9: 8 | AQ9: 1.103629196 | AR9: 0.0943437884 | AS9: 9 | AT9: 8 | AU9: 1.163398831 | AV9: 0.1555135909 | AW9: 9 | AY9: 0.0808080808 | AZ9: =1 -> 1
A10: 10 | B10: 9 | C10: 0.0128755368 | D10: 2 | E10: 10 | F10: 9 | G10: 0.0543525876 | H10: 1.957426639 | I10: 10 | J10: 9 | K10: 1.303305754 | L10: 1.701893213 | M10: 10 | N10: 9 | O10: 0.2809705571 | P10: 0.7248187676 | Q10: 10 | R10: 9 | S10: 1.093075779 | T10: 0.9176799274 | U10: 10 | V10: 9 | W10: 1.157051863 | X10: 0.8520128456 | Y10: 10 | Z10: 9 | AA10: 0.0128755368 | AB10: 2 | AC10: 10 | AD10: 9 | AE10: 0.0547557061 | AF10: 1.957012866 | AG10: 10 | AH10: 9 | AI10: 1.302394935 | AJ10: 1.702828106 | AK10: 10 | AL10: 9 | AM10: 0.2913057924 | AN10: 0.7142103544 | AO10: 10 | AP10: 9 | AQ10: 1.104789871 | AR10: 0.9056562116 | AS10: 10 | AT10: 9 | AU10: 1.164384486 | AV10: 0.8444864091 | AW10: 10 | AY10: 0.0909090909 | AZ10: =1 -> 1
A11: 11 | B11: 10 | C11: 0.014306152 | D11: 1 | E11: 11 | F11: 10 | G11: 0.0556613906 | H11: 1.042573361 | I11: 11 | J11: 10 | K11: 1.303883417 | L11: 1.298106787 | M11: 11 | N11: 10 | O11: 0.2816138154 | P11: 0.2751812324 | Q11: 11 | R11: 10 | S11: 1.094270858 | T11: 0.0823200726 | U11: 11 | V11: 10 | W11: 1.158059052 | X11: 0.1479871544 | Y11: 11 | Z11: 10 | AA11: 0.014306152 | AB11: 1 | AC11: 11 | AD11: 10 | AE11: 0.0560633252 | AF11: 1.042987134 | AG11: 11 | AH11: 10 | AI11: 1.302975273 | AJ11: 1.297171894 | AK11: 11 | AL11: 10 | AM11: 0.2919186976 | AN11: 0.2857896456 | AO11: 11 | AP11: 10 | AQ11: 1.105950547 | AR11: 0.0943437884 | AS11: 11 | AT11: 10 | AU11: 1.165370141 | AV11: 0.1555135909 | AW11: 11 | AY11: 0.101010101 | AZ11: =1 -> 1
A12: 12 | B12: 11 | C12: 0.0157367672 | D12: 2 | E12: 12 | F12: 11 | G12: 0.0569701936 | H12: 1.957426639 | I12: 12 | J12: 11 | K12: 1.30446108 | L12: 1.701893213 | M12: 12 | N12: 11 | O12: 0.2822570737 | P12: 0.7248187676 | Q12: 12 | R12: 11 | S12: 1.095465936 | T12: 0.9176799274 | U12: 12 | V12: 11 | W12: 1.159066242 | X12: 0.8520128456 | Y12: 12 | Z12: 11 | AA12: 0.0157367672 | AB12: 2 | AC12: 12 | AD12: 11 | AE12: 0.0573709443 | AF12: 1.957012866 | AG12: 12 | AH12: 11 | AI12: 1.303555611 | AJ12: 1.702828106 | AK12: 12 | AL12: 11 | AM12: 0.2925316028 | AN12: 0.7142103544 | AO12: 12 | AP12: 11 | AQ12: 1.107111223 | AR12: 0.9056562116 | AS12: 12 | AT12: 11 | AU12: 1.166355796 | AV12: 0.8444864091 | AW12: 12 | AY12: 0.1111111111 | AZ12: =1 -> 1
A13: 13 | B13: 12 | C13: 0.0171673824 | D13: 1 | E13: 13 | F13: 12 | G13: 0.0582789966 | H13: 1.042573361 | I13: 13 | J13: 12 | K13: 1.305038743 | L13: 1.298106787 | M13: 13 | N13: 12 | O13: 0.282900332 | P13: 0.2751812324 | Q13: 13 | R13: 12 | S13: 1.096661015 | T13: 0.0823200726 | U13: 13 | V13: 12 | W13: 1.160073432 | X13: 0.1479871544 | Y13: 13 | Z13: 12 | AA13: 0.0171673824 | AB13: 1 | AC13: 13 | AD13: 12 | AE13: 0.0586785634 | AF13: 1.042987134 | AG13: 13 | AH13: 12 | AI13: 1.304135949 | AJ13: 1.297171894 | AK13: 13 | AL13: 12 | AM13: 0.293144508 | AN13: 0.2857896456 | AO13: 13 | AP13: 12 | AQ13: 1.108271899 | AR13: 0.0943437884 | AS13: 13 | AT13: 12 | AU13: 1.167341451 | AV13: 0.1555135909 | AW13: 13 | AY13: 0.1212121212 | AZ13: =1 -> 1
A14: 14 | B14: 13 | C14: 0.0185979976 | D14: 2 | E14: 14 | F14: 13 | G14: 0.0595877996 | H14: 1.957426639 | I14: 14 | J14: 13 | K14: 1.305616406 | L14: 1.701893213 | M14: 14 | N14: 13 | O14: 0.2835435903 | P14: 0.7248187676 | Q14: 14 | R14: 13 | S14: 1.097856093 | T14: 0.9176799274 | U14: 14 | V14: 13 | W14: 1.161080622 | X14: 0.8520128456 | Y14: 14 | Z14: 13 | AA14: 0.0185979976 | AB14: 2 | AC14: 14 | AD14: 13 | AE14: 0.0599861825 | AF14: 1.957012866 | AG14: 14 | AH14: 13 | AI14: 1.304716287 | AJ14: 1.702828106 | AK14: 14 | AL14: 13 | AM14: 0.2937574132 | AN14: 0.7142103544 | AO14: 14 | AP14: 13 | AQ14: 1.109432575 | AR14: 0.9056562116 | AS14: 14 | AT14: 13 | AU14: 1.168327106 | AV14: 0.8444864091 | AW14: 14 | AY14: 0.1313131313 | AZ14: =1 -> 1
A15: 15 | B15: 14 | C15: 0.0200286128 | D15: 1 | E15: 15 | F15: 14 | G15: 0.0608966026 | H15: 1.042573361 | I15: 15 | J15: 14 | K15: 1.306194069 | L15: 1.298106787 | M15: 15 | N15: 14 | O15: 0.2841868486 | P15: 0.2751812324 | Q15: 15 | R15: 14 | S15: 1.099051172 | T15: 0.0823200726 | U15: 15 | V15: 14 | W15: 1.162087812 | X15: 0.1479871544 | Y15: 15 | Z15: 14 | AA15: 0.0200286128 | AB15: 1 | AC15: 15 | AD15: 14 | AE15: 0.0612938016 | AF15: 1.042987134 | AG15: 15 | AH15: 14 | AI15: 1.305296625 | AJ15: 1.297171894 | AK15: 15 | AL15: 14 | AM15: 0.2943703184 | AN15: 0.2857896456 | AO15: 15 | AP15: 14 | AQ15: 1.110593251 | AR15: 0.0943437884 | AS15: 15 | AT15: 14 | AU15: 1.169312761 | AV15: 0.1555135909 | AW15: 15 | AY15: 0.1414141414 | AZ15: =1 -> 1
A16: 16 | B16: 15 | C16: 0.021459228 | D16: 2 | E16: 16 | F16: 15 | G16: 0.0622054056 | H16: 1.957426639 | I16: 16 | J16: 15 | K16: 1.306771732 | L16: 1.701893213 | M16: 16 | N16: 15 | O16: 0.2848301069 | P16: 0.7248187676 | Q16: 16 | R16: 15 | S16: 1.10024625 | T16: 0.9176799274 | U16: 16 | V16: 15 | W16: 1.163095001 | X16: 0.8520128456 | Y16: 16 | Z16: 15 | AA16: 0.021459228 | AB16: 2 | AC16: 16 | AD16: 15 | AE16: 0.0626014207 | AF16: 1.957012866 | AG16: 16 | AH16: 15 | AI16: 1.305876963 | AJ16: 1.702828106 | AK16: 16 | AL16: 15 | AM16: 0.2949832236 | AN16: 0.7142103544 | AO16: 16 | AP16: 15 | AQ16: 1.111753927 | AR16: 0.9056562116 | AS16: 16 | AT16: 15 | AU16: 1.170298416 | AV16: 0.8444864091 | AW16: 16 | AY16: 0.1515151515 | AZ16: =1 -> 1
A17: 17 | B17: 16 | C17: 0.0228898432 | D17: 1 | E17: 17 | F17: 16 | G17: 0.0635142086 | H17: 1.042573361 | I17: 17 | J17: 16 | K17: 1.307349395 | L17: 1.298106787 | M17: 17 | N17: 16 | O17: 0.2854733652 | P17: 0.2751812324 | Q17: 17 | R17: 16 | S17: 1.101441329 | T17: 0.0823200726 | U17: 17 | V17: 16 | W17: 1.164102191 | X17: 0.1479871544 | Y17: 17 | Z17: 16 | AA17: 0.0228898432 | AB17: 1 | AC17: 17 | AD17: 16 | AE17: 0.0639090398 | AF17: 1.042987134 | AG17: 17 | AH17: 16 | AI17: 1.306457301 | AJ17: 1.297171894 | AK17: 17 | AL17: 16 | AM17: 0.2955961288 | AN17: 0.2857896456 | AO17: 17 | AP17: 16 | AQ17: 1.112914603 | AR17: 0.0943437884 | AS17: 17 | AT17: 16 | AU17: 1.171284071 | AV17: 0.1555135909 | AW17: 17 | AY17: 0.1616161616 | AZ17: =1 -> 1
A18: 18 | B18: 17 | C18: 0.0243204584 | D18: 2 | E18: 18 | F18: 17 | G18: 0.0648230116 | H18: 1.957426639 | I18: 18 | J18: 17 | K18: 1.307927058 | L18: 1.701893213 | M18: 18 | N18: 17 | O18: 0.2861166235 | P18: 0.7248187676 | Q18: 18 | R18: 17 | S18: 1.102636407 | T18: 0.9176799274 | U18: 18 | V18: 17 | W18: 1.165109381 | X18: 0.8520128456 | Y18: 18 | Z18: 17 | AA18: 0.0243204584 | AB18: 2 | AC18: 18 | AD18: 17 | AE18: 0.0652166589 | AF18: 1.957012866 | AG18: 18 | AH18: 17 | AI18: 1.307037638 | AJ18: 1.702828106 | AK18: 18 | AL18: 17 | AM18: 0.296209034 | AN18: 0.7142103544 | AO18: 18 | AP18: 17 | AQ18: 1.114075279 | AR18: 0.9056562116 | AS18: 18 | AT18: 17 | AU18: 1.172269726 | AV18: 0.8444864091 | AW18: 18 | AY18: 0.1717171717 | AZ18: =1 -> 1
A19: 19 | B19: 18 | C19: 0.0257510736 | D19: 1 | E19: 19 | F19: 18 | G19: 0.0661318146 | H19: 1.042573361 | I19: 19 | J19: 18 | K19: 1.308504721 | L19: 1.298106787 | M19: 19 | N19: 18 | O19: 0.2867598818 | P19: 0.2751812324 | Q19: 19 | R19: 18 | S19: 1.103831486 | T19: 0.0823200726 | U19: 19 | V19: 18 | W19: 1.166116571 | X19: 0.1479871544 | Y19: 19 | Z19: 18 | AA19: 0.0257510736 | AB19: 1 | AC19: 19 | AD19: 18 | AE19: 0.066524278 | AF19: 1.042987134 | AG19: 19 | AH19: 18 | AI19: 1.307617976 | AJ19: 1.297171894 | AK19: 19 | AL19: 18 | AM19: 0.2968219392 | AN19: 0.2857896456 | AO19: 19 | AP19: 18 | AQ19: 1.115235955 | AR19: 0.0943437884 | AS19: 19 | AT19: 18 | AU19: 1.173255381 | AV19: 0.1555135909 | AW19: 19 | AY19: 0.1818181818 | AZ19: =1 -> 1
A20: 20 | B20: 19 | C20: 0.0271816888 | D20: 2 | E20: 20 | F20: 19 | G20: 0.0674406176 | H20: 1.957426639 | I20: 20 | J20: 19 | K20: 1.309082384 | L20: 1.701893213 | M20: 20 | N20: 19 | O20: 0.2874031401 | P20: 0.7248187676 | Q20: 20 | R20: 19 | S20: 1.105026564 | T20: 0.9176799274 | U20: 20 | V20: 19 | W20: 1.167123761 | X20: 0.8520128456 | Y20: 20 | Z20: 19 | AA20: 0.0271816888 | AB20: 2 | AC20: 20 | AD20: 19 | AE20: 0.0678318971 | AF20: 1.957012866 | AG20: 20 | AH20: 19 | AI20: 1.308198314 | AJ20: 1.702828106 | AK20: 20 | AL20: 19 | AM20: 0.2974348444 | AN20: 0.7142103544 | AO20: 20 | AP20: 19 | AQ20: 1.11639663 | AR20: 0.9056562116 | AS20: 20 | AT20: 19 | AU20: 1.174241036 | AV20: 0.8444864091 | AW20: 20 | AY20: 0.1919191919 | AZ20: =1 -> 1
A21: 21 | B21: 20 | C21: 0.028612304 | D21: 1 | E21: 21 | F21: 20 | G21: 0.0687494206 | H21: 1.042573361 | I21: 21 | J21: 20 | K21: 1.309660047 | L21: 1.298106787 | M21: 21 | N21: 20 | O21: 0.2880463984 | P21: 0.2751812324 | Q21: 21 | R21: 20 | S21: 1.106221643 | T21: 0.0823200726 | U21: 21 | V21: 20 | W21: 1.16813095 | X21: 0.1479871544 | Y21: 21 | Z21: 20 | AA21: 0.028612304 | AB21: 1 | AC21: 21 | AD21: 20 | AE21: 0.0691395162 | AF21: 1.042987134 | AG21: 21 | AH21: 20 | AI21: 1.308778652 | AJ21: 1.297171894 | AK21: 21 | AL21: 20 | AM21: 0.2980477496 | AN21: 0.2857896456 | AO21: 21 | AP21: 20 | AQ21: 1.117557306 | AR21: 0.0943437884 | AS21: 21 | AT21: 20 | AU21: 1.175226691 | AV21: 0.1555135909 | AW21: 21 | AY21: 0.202020202 | AZ21: =1 -> 1
A22: 22 | B22: 21 | C22: 0.0300429192 | D22: 2 | E22: 22 | F22: 21 | G22: 0.0700582236 | H22: 1.957426639 | I22: 22 | J22: 21 | K22: 1.31023771 | L22: 1.701893213 | M22: 22 | N22: 21 | O22: 0.2886896567 | P22: 0.7248187676 | Q22: 22 | R22: 21 | S22: 1.107416721 | T22: 0.9176799274 | U22: 22 | V22: 21 | W22: 1.16913814 | X22: 0.8520128456 | Y22: 22 | Z22: 21 | AA22: 0.0300429192 | AB22: 2 | AC22: 22 | AD22: 21 | AE22: 0.0704471353 | AF22: 1.957012866 | AG22: 22 | AH22: 21 | AI22: 1.30935899 | AJ22: 1.702828106 | AK22: 22 | AL22: 21 | AM22: 0.2986606548 | AN22: 0.7142103544 | AO22: 22 | AP22: 21 | AQ22: 1.118717982 | AR22: 0.9056562116 | AS22: 22 | AT22: 21 | AU22: 1.176212346 | AV22: 0.8444864091 | AW22: 22 | AY22: 0.2121212121 | AZ22: =1 -> 1
A23: 23 | B23: 22 | C23: 0.0314735344 | D23: 1 | E23: 23 | F23: 22 | G23: 0.0713670266 | H23: 1.042573361 | I23: 23 | J23: 22 | K23: 1.310815373 | L23: 1.298106787 | M23: 23 | N23: 22 | O23: 0.289332915 | P23: 0.2751812324 | Q23: 23 | R23: 22 | S23: 1.1086118 | T23: 0.0823200726 | U23: 23 | V23: 22 | W23: 1.17014533 | X23: 0.1479871544 | Y23: 23 | Z23: 22 | AA23: 0.0314735344 | AB23: 1 | AC23: 23 | AD23: 22 | AE23: 0.0717547544 | AF23: 1.042987134 | AG23: 23 | AH23: 22 | AI23: 1.309939328 | AJ23: 1.297171894 | AK23: 23 | AL23: 22 | AM23: 0.29927356 | AN23: 0.2857896456 | AO23: 23 | AP23: 22 | AQ23: 1.119878658 | AR23: 0.0943437884 | AS23: 23 | AT23: 22 | AU23: 1.177198001 | AV23: 0.1555135909 | AW23: 23 | AY23: 0.2222222222 | AZ23: =1 -> 1
A24: 24 | B24: 23 | C24: 0.0329041496 | D24: 2 | E24: 24 | F24: 23 | G24: 0.0726758296 | H24: 1.957426639 | I24: 24 | J24: 23 | K24: 1.311393036 | L24: 1.701893213 | M24: 24 | N24: 23 | O24: 0.2899761733 | P24: 0.7248187676 | Q24: 24 | R24: 23 | S24: 1.109806878 | T24: 0.9176799274 | U24: 24 | V24: 23 | W24: 1.17115252 | X24: 0.8520128456 | Y24: 24 | Z24: 23 | AA24: 0.0329041496 | AB24: 2 | AC24: 24 | AD24: 23 | AE24: 0.0730623735 | AF24: 1.957012866 | AG24: 24 | AH24: 23 | AI24: 1.310519666 | AJ24: 1.702828106 | AK24: 24 | AL24: 23 | AM24: 0.2998864652 | AN24: 0.7142103544 | AO24: 24 | AP24: 23 | AQ24: 1.121039334 | AR24: 0.9056562116 | AS24: 24 | AT24: 23 | AU24: 1.178183656 | AV24: 0.8444864091 | AW24: 24 | AY24: 0.2323232323 | AZ24: =1 -> 1
A25: 25 | B25: 24 | C25: 0.0343347648 | D25: 1 | E25: 25 | F25: 24 | G25: 0.0739846326 | H25: 1.042573361 | I25: 25 | J25: 24 | K25: 1.311970699 | L25: 1.298106787 | M25: 25 | N25: 24 | O25: 0.2906194316 | P25: 0.2751812324 | Q25: 25 | R25: 24 | S25: 1.111001957 | T25: 0.0823200726 | U25: 25 | V25: 24 | W25: 1.17215971 | X25: 0.1479871544 | Y25: 25 | Z25: 24 | AA25: 0.0343347648 | AB25: 1 | AC25: 25 | AD25: 24 | AE25: 0.0743699926 | AF25: 1.042987134 | AG25: 25 | AH25: 24 | AI25: 1.311100004 | AJ25: 1.297171894 | AK25: 25 | AL25: 24 | AM25: 0.3004993704 | AN25: 0.2857896456 | AO25: 25 | AP25: 24 | AQ25: 1.12220001 | AR25: 0.0943437884 | AS25: 25 | AT25: 24 | AU25: 1.179169311 | AV25: 0.1555135909 | AW25: 25 | AY25: 0.2424242424 | AZ25: =1 -> 1
A26: 26 | B26: 25 | C26: 0.03576538 | D26: 2 | E26: 26 | F26: 25 | G26: 0.0752934356 | H26: 1.957426639 | I26: 26 | J26: 25 | K26: 1.312548362 | L26: 1.701893213 | M26: 26 | N26: 25 | O26: 0.2912626899 | P26: 0.7248187676 | Q26: 26 | R26: 25 | S26: 1.112197035 | T26: 0.9176799274 | U26: 26 | V26: 25 | W26: 1.173166899 | X26: 0.8520128456 | Y26: 26 | Z26: 25 | AA26: 0.03576538 | AB26: 2 | AC26: 26 | AD26: 25 | AE26: 0.0756776117 | AF26: 1.957012866 | AG26: 26 | AH26: 25 | AI26: 1.311680342 | AJ26: 1.702828106 | AK26: 26 | AL26: 25 | AM26: 0.3011122756 | AN26: 0.7142103544 | AO26: 26 | AP26: 25 | AQ26: 1.123360686 | AR26: 0.9056562116 | AS26: 26 | AT26: 25 | AU26: 1.180154966 | AV26: 0.8444864091 | AW26: 26 | AY26: 0.2525252525 | AZ26: =1 -> 1
A27: 27 | B27: 26 | C27: 0.0371959952 | D27: 1 | E27: 27 | F27: 26 | G27: 0.0766022386 | H27: 1.042573361 | I27: 27 | J27: 26 | K27: 1.313126025 | L27: 1.298106787 | M27: 27 | N27: 26 | O27: 0.2919059482 | P27: 0.2751812324 | Q27: 27 | R27: 26 | S27: 1.113392114 | T27: 0.0823200726 | U27: 27 | V27: 26 | W27: 1.174174089 | X27: 0.1479871544 | Y27: 27 | Z27: 26 | AA27: 0.0371959952 | AB27: 1 | AC27: 27 | AD27: 26 | AE27: 0.0769852308 | AF27: 1.042987134 | AG27: 27 | AH27: 26 | AI27: 1.31226068 | AJ27: 1.297171894 | AK27: 27 | AL27: 26 | AM27: 0.3017251808 | AN27: 0.2857896456 | AO27: 27 | AP27: 26 | AQ27: 1.124521362 | AR27: 0.0943437884 | AS27: 27 | AT27: 26 | AU27: 1.181140621 | AV27: 0.1555135909 | AW27: 27 | AY27: 0.2626262626 | AZ27: =1 -> 1
A28: 28 | B28: 27 | C28: 0.0386266104 | D28: 2 | E28: 28 | F28: 27 | G28: 0.0779110416 | H28: 1.957426639 | I28: 28 | J28: 27 | K28: 1.313703688 | L28: 1.701893213 | M28: 28 | N28: 27 | O28: 0.2925492065 | P28: 0.7248187676 | Q28: 28 | R28: 27 | S28: 1.114587192 | T28: 0.9176799274 | U28: 28 | V28: 27 | W28: 1.175181279 | X28: 0.8520128456 | Y28: 28 | Z28: 27 | AA28: 0.0386266104 | AB28: 2 | AC28: 28 | AD28: 27 | AE28: 0.0782928499 | AF28: 1.957012866 | AG28: 28 | AH28: 27 | AI28: 1.312841017 | AJ28: 1.702828106 | AK28: 28 | AL28: 27 | AM28: 0.302338086 | AN28: 0.7142103544 | AO28: 28 | AP28: 27 | AQ28: 1.125682038 | AR28: 0.9056562116 | AS28: 28 | AT28: 27 | AU28: 1.182126276 | AV28: 0.8444864091 | AW28: 28 | AY28: 0.2727272727 | AZ28: =1 -> 1
A29: 29 | B29: 28 | C29: 0.0400572256 | D29: 1 | E29: 29 | F29: 28 | G29: 0.0792198446 | H29: 1.042573361 | I29: 29 | J29: 28 | K29: 1.314281351 | L29: 1.298106787 | M29: 29 | N29: 28 | O29: 0.2931924648 | P29: 0.2751812324 | Q29: 29 | R29: 28 | S29: 1.115782271 | T29: 0.0823200726 | U29: 29 | V29: 28 | W29: 1.176188469 | X29: 0.1479871544 | Y29: 29 | Z29: 28 | AA29: 0.0400572256 | AB29: 1 | AC29: 29 | AD29: 28 | AE29: 0.079600469 | AF29: 1.042987134 | AG29: 29 | AH29: 28 | AI29: 1.313421355 | AJ29: 1.297171894 | AK29: 29 | AL29: 28 | AM29: 0.3029509912 | AN29: 0.2857896456 | AO29: 29 | AP29: 28 | AQ29: 1.126842714 | AR29: 0.0943437884 | AS29: 29 | AT29: 28 | AU29: 1.183111931 | AV29: 0.1555135909 | AW29: 29 | AY29: 0.2828282828 | AZ29: =1 -> 1
A30: 30 | B30: 29 | C30: 0.0414878408 | D30: 2 | E30: 30 | F30: 29 | G30: 0.0805286476 | H30: 1.957426639 | I30: 30 | J30: 29 | K30: 1.314859014 | L30: 1.701893213 | M30: 30 | N30: 29 | O30: 0.2938357231 | P30: 0.7248187676 | Q30: 30 | R30: 29 | S30: 1.116977349 | T30: 0.9176799274 | U30: 30 | V30: 29 | W30: 1.177195659 | X30: 0.8520128456 | Y30: 30 | Z30: 29 | AA30: 0.0414878408 | AB30: 2 | AC30: 30 | AD30: 29 | AE30: 0.0809080881 | AF30: 1.957012866 | AG30: 30 | AH30: 29 | AI30: 1.314001693 | AJ30: 1.702828106 | AK30: 30 | AL30: 29 | AM30: 0.3035638964 | AN30: 0.7142103544 | AO30: 30 | AP30: 29 | AQ30: 1.12800339 | AR30: 0.9056562116 | AS30: 30 | AT30: 29 | AU30: 1.184097586 | AV30: 0.8444864091 | AW30: 30 | AY30: 0.2929292929 | AZ30: =1 -> 1
A31: 31 | B31: 30 | C31: 0.042918456 | D31: 1 | E31: 31 | F31: 30 | G31: 0.0818374506 | H31: 1.042573361 | I31: 31 | J31: 30 | K31: 1.315436677 | L31: 1.298106787 | M31: 31 | N31: 30 | O31: 0.2944789814 | P31: 0.2751812324 | Q31: 31 | R31: 30 | S31: 1.118172428 | T31: 0.0823200726 | U31: 31 | V31: 30 | W31: 1.178202848 | X31: 0.1479871544 | Y31: 31 | Z31: 30 | AA31: 0.042918456 | AB31: 1 | AC31: 31 | AD31: 30 | AE31: 0.0822157072 | AF31: 1.042987134 | AG31: 31 | AH31: 30 | AI31: 1.314582031 | AJ31: 1.297171894 | AK31: 31 | AL31: 30 | AM31: 0.3041768016 | AN31: 0.2857896456 | AO31: 31 | AP31: 30 | AQ31: 1.129164065 | AR31: 0.0943437884 | AS31: 31 | AT31: 30 | AU31: 1.185083241 | AV31: 0.1555135909 | AW31: 31 | AY31: 0.303030303 | AZ31: =1 -> 1
A32: 32 | B32: 31 | C32: 0.0443490712 | D32: 2 | E32: 32 | F32: 31 | G32: 0.0831462536 | H32: 1.957426639 | I32: 32 | J32: 31 | K32: 1.31601434 | L32: 1.701893213 | M32: 32 | N32: 31 | O32: 0.2951222397 | P32: 0.7248187676 | Q32: 32 | R32: 31 | S32: 1.119367506 | T32: 0.9176799274 | U32: 32 | V32: 31 | W32: 1.179210038 | X32: 0.8520128456 | Y32: 32 | Z32: 31 | AA32: 0.0443490712 | AB32: 2 | AC32: 32 | AD32: 31 | AE32: 0.0835233263 | AF32: 1.957012866 | AG32: 32 | AH32: 31 | AI32: 1.315162369 | AJ32: 1.702828106 | AK32: 32 | AL32: 31 | AM32: 0.3047897068 | AN32: 0.7142103544 | AO32: 32 | AP32: 31 | AQ32: 1.130324741 | AR32: 0.9056562116 | AS32: 32 | AT32: 31 | AU32: 1.186068896 | AV32: 0.8444864091 | AW32: 32 | AY32: 0.3131313131 | AZ32: =1 -> 1
A33: 33 | B33: 32 | C33: 0.0457796864 | D33: 1 | E33: 33 | F33: 32 | G33: 0.0844550566 | H33: 1.042573361 | I33: 33 | J33: 32 | K33: 1.316592003 | L33: 1.298106787 | M33: 33 | N33: 32 | O33: 0.295765498 | P33: 0.2751812324 | Q33: 33 | R33: 32 | S33: 1.120562585 | T33: 0.0823200726 | U33: 33 | V33: 32 | W33: 1.180217228 | X33: 0.1479871544 | Y33: 33 | Z33: 32 | AA33: 0.0457796864 | AB33: 1 | AC33: 33 | AD33: 32 | AE33: 0.0848309454 | AF33: 1.042987134 | AG33: 33 | AH33: 32 | AI33: 1.315742707 | AJ33: 1.297171894 | AK33: 33 | AL33: 32 | AM33: 0.305402612 | AN33: 0.2857896456 | AO33: 33 | AP33: 32 | AQ33: 1.131485417 | AR33: 0.0943437884 | AS33: 33 | AT33: 32 | AU33: 1.187054551 | AV33: 0.1555135909 | AW33: 33 | AY33: =0+(AW33-1)*0.0101010101 -> 0.3232323232 | AZ33: =1 -> 1
A34: 34 | B34: 33 | C34: 0.0472103016 | D34: 2 | E34: 34 | F34: 33 | G34: 0.0857638596 | H34: 1.957426639 | I34: 34 | J34: 33 | K34: 1.317169666 | L34: 1.701893213 | M34: 34 | N34: 33 | O34: 0.2964087563 | P34: 0.7248187676 | Q34: 34 | R34: 33 | S34: 1.121757663 | T34: 0.9176799274 | U34: 34 | V34: 33 | W34: 1.181224418 | X34: 0.8520128456 | Y34: 34 | Z34: 33 | AA34: 0.0472103016 | AB34: 2 | AC34: 34 | AD34: 33 | AE34: 0.0861385645 | AF34: 1.957012866 | AG34: 34 | AH34: 33 | AI34: 1.316323045 | AJ34: 1.702828106 | AK34: 34 | AL34: 33 | AM34: 0.3060155172 | AN34: 0.7142103544 | AO34: 34 | AP34: 33 | AQ34: 1.132646093 | AR34: 0.9056562116 | AS34: 34 | AT34: 33 | AU34: 1.188040206 | AV34: 0.8444864091 | AW34: 34 | AY34: 0.3333333333 | AZ34: =1 -> 1
A35: 35 | B35: 34 | C35: 0.0486409168 | D35: 1 | E35: 35 | F35: 34 | G35: 0.0870726626 | H35: 1.042573361 | I35: 35 | J35: 34 | K35: 1.317747329 | L35: 1.298106787 | M35: 35 | N35: 34 | O35: 0.2970520146 | P35: 0.2751812324 | Q35: 35 | R35: 34 | S35: 1.122952742 | T35: 0.0823200726 | U35: 35 | V35: 34 | W35: 1.182231608 | X35: 0.1479871544 | Y35: 35 | Z35: 34 | AA35: 0.0486409168 | AB35: 1 | AC35: 35 | AD35: 34 | AE35: 0.0874461836 | AF35: 1.042987134 | AG35: 35 | AH35: 34 | AI35: 1.316903383 | AJ35: 1.297171894 | AK35: 35 | AL35: 34 | AM35: 0.3066284224 | AN35: 0.2857896456 | AO35: 35 | AP35: 34 | AQ35: 1.133806769 | AR35: 0.0943437884 | AS35: 35 | AT35: 34 | AU35: 1.189025861 | AV35: 0.1555135909 | AW35: 35 | AY35: 0.3434343434 | AZ35: =1 -> 1
A36: 36 | B36: 35 | C36: 0.050071532 | D36: 2 | E36: 36 | F36: 35 | G36: 0.0883814656 | H36: 1.957426639 | I36: 36 | J36: 35 | K36: 1.318324992 | L36: 1.701893213 | M36: 36 | N36: 35 | O36: 0.2976952729 | P36: 0.7248187676 | Q36: 36 | R36: 35 | S36: 1.12414782 | T36: 0.9176799274 | U36: 36 | V36: 35 | W36: 1.183238797 | X36: 0.8520128456 | Y36: 36 | Z36: 35 | AA36: 0.050071532 | AB36: 2 | AC36: 36 | AD36: 35 | AE36: 0.0887538027 | AF36: 1.957012866 | AG36: 36 | AH36: 35 | AI36: 1.317483721 | AJ36: 1.702828106 | AK36: 36 | AL36: 35 | AM36: 0.3072413276 | AN36: 0.7142103544 | AO36: 36 | AP36: 35 | AQ36: 1.134967445 | AR36: 0.9056562116 | AS36: 36 | AT36: 35 | AU36: 1.190011516 | AV36: 0.8444864091 | AW36: 36 | AY36: 0.3535353535 | AZ36: =1 -> 1
A37: 37 | B37: 36 | C37: 0.0515021472 | D37: 1 | E37: 37 | F37: 36 | G37: 0.0896902686 | H37: 1.042573361 | I37: 37 | J37: 36 | K37: 1.318902655 | L37: 1.298106787 | M37: 37 | N37: 36 | O37: 0.2983385312 | P37: 0.2751812324 | Q37: 37 | R37: 36 | S37: 1.125342899 | T37: 0.0823200726 | U37: 37 | V37: 36 | W37: 1.184245987 | X37: 0.1479871544 | Y37: 37 | Z37: 36 | AA37: 0.0515021472 | AB37: 1 | AC37: 37 | AD37: 36 | AE37: 0.0900614218 | AF37: 1.042987134 | AG37: 37 | AH37: 36 | AI37: 1.318064059 | AJ37: 1.297171894 | AK37: 37 | AL37: 36 | AM37: 0.3078542328 | AN37: 0.2857896456 | AO37: 37 | AP37: 36 | AQ37: 1.136128121 | AR37: 0.0943437884 | AS37: 37 | AT37: 36 | AU37: 1.190997171 | AV37: 0.1555135909 | AW37: 37 | AY37: 0.3636363636 | AZ37: =1 -> 1
A38: 38 | B38: 37 | C38: 0.0529327624 | D38: 2 | E38: 38 | F38: 37 | G38: 0.0909990716 | H38: 1.957426639 | I38: 38 | J38: 37 | K38: 1.319480318 | L38: 1.701893213 | M38: 38 | N38: 37 | O38: 0.2989817895 | P38: 0.7248187676 | Q38: 38 | R38: 37 | S38: 1.126537977 | T38: 0.9176799274 | U38: 38 | V38: 37 | W38: 1.185253177 | X38: 0.8520128456 | Y38: 38 | Z38: 37 | AA38: 0.0529327624 | AB38: 2 | AC38: 38 | AD38: 37 | AE38: 0.0913690409 | AF38: 1.957012866 | AG38: 38 | AH38: 37 | AI38: 1.318644396 | AJ38: 1.702828106 | AK38: 38 | AL38: 37 | AM38: 0.308467138 | AN38: 0.7142103544 | AO38: 38 | AP38: 37 | AQ38: 1.137288797 | AR38: 0.9056562116 | AS38: 38 | AT38: 37 | AU38: 1.191982826 | AV38: 0.8444864091 | AW38: 38 | AY38: 0.3737373737 | AZ38: =1 -> 1
A39: 39 | B39: 38 | C39: 0.0543633776 | D39: 1 | E39: 39 | F39: 38 | G39: 0.0923078746 | H39: 1.042573361 | I39: 39 | J39: 38 | K39: 1.320057981 | L39: 1.298106787 | M39: 39 | N39: 38 | O39: 0.2996250478 | P39: 0.2751812324 | Q39: 39 | R39: 38 | S39: 1.127733056 | T39: 0.0823200726 | U39: 39 | V39: 38 | W39: 1.186260367 | X39: 0.1479871544 | Y39: 39 | Z39: 38 | AA39: 0.0543633776 | AB39: 1 | AC39: 39 | AD39: 38 | AE39: 0.09267666 | AF39: 1.042987134 | AG39: 39 | AH39: 38 | AI39: 1.319224734 | AJ39: 1.297171894 | AK39: 39 | AL39: 38 | AM39: 0.3090800432 | AN39: 0.2857896456 | AO39: 39 | AP39: 38 | AQ39: 1.138449473 | AR39: 0.0943437884 | AS39: 39 | AT39: 38 | AU39: 1.192968481 | AV39: 0.1555135909 | AW39: 39 | AY39: 0.3838383838 | AZ39: =1 -> 1
A40: 40 | B40: 39 | C40: 0.0557939928 | D40: 2 | E40: 40 | F40: 39 | G40: 0.0936166776 | H40: 1.957426639 | I40: 40 | J40: 39 | K40: 1.320635644 | L40: 1.701893213 | M40: 40 | N40: 39 | O40: 0.3002683061 | P40: 0.7248187676 | Q40: 40 | R40: 39 | S40: 1.128928134 | T40: 0.9176799274 | U40: 40 | V40: 39 | W40: 1.187267557 | X40: 0.8520128456 | Y40: 40 | Z40: 39 | AA40: 0.0557939928 | AB40: 2 | AC40: 40 | AD40: 39 | AE40: 0.0939842791 | AF40: 1.957012866 | AG40: 40 | AH40: 39 | AI40: 1.319805072 | AJ40: 1.702828106 | AK40: 40 | AL40: 39 | AM40: 0.3096929484 | AN40: 0.7142103544 | AO40: 40 | AP40: 39 | AQ40: 1.139610149 | AR40: 0.9056562116 | AS40: 40 | AT40: 39 | AU40: 1.193954136 | AV40: 0.8444864091 | AW40: 40 | AY40: 0.3939393939 | AZ40: =1 -> 1
A41: 41 | B41: 40 | C41: 0.057224608 | D41: 1 | E41: 41 | F41: 40 | G41: 0.0949254806 | H41: 1.042573361 | I41: 41 | J41: 40 | K41: 1.321213307 | L41: 1.298106787 | M41: 41 | N41: 40 | O41: 0.3009115644 | P41: 0.2751812324 | Q41: 41 | R41: 40 | S41: 1.130123213 | T41: 0.0823200726 | U41: 41 | V41: 40 | W41: 1.188274746 | X41: 0.1479871544 | Y41: 41 | Z41: 40 | AA41: 0.057224608 | AB41: 1 | AC41: 41 | AD41: 40 | AE41: 0.0952918982 | AF41: 1.042987134 | AG41: 41 | AH41: 40 | AI41: 1.32038541 | AJ41: 1.297171894 | AK41: 41 | AL41: 40 | AM41: 0.3103058536 | AN41: 0.2857896456 | AO41: 41 | AP41: 40 | AQ41: 1.140770824 | AR41: 0.0943437884 | AS41: 41 | AT41: 40 | AU41: 1.194939791 | AV41: 0.1555135909 | AW41: 41 | AY41: 0.404040404 | AZ41: =1 -> 1
A42: 42 | B42: 41 | C42: 0.0586552232 | D42: 2 | E42: 42 | F42: 41 | G42: 0.0962342836 | H42: 1.957426639 | I42: 42 | J42: 41 | K42: 1.32179097 | L42: 1.701893213 | M42: 42 | N42: 41 | O42: 0.3015548227 | P42: 0.7248187676 | Q42: 42 | R42: 41 | S42: 1.131318291 | T42: 0.9176799274 | U42: 42 | V42: 41 | W42: 1.189281936 | X42: 0.8520128456 | Y42: 42 | Z42: 41 | AA42: 0.0586552232 | AB42: 2 | AC42: 42 | AD42: 41 | AE42: 0.0965995173 | AF42: 1.957012866 | AG42: 42 | AH42: 41 | AI42: 1.320965748 | AJ42: 1.702828106 | AK42: 42 | AL42: 41 | AM42: 0.3109187588 | AN42: 0.7142103544 | AO42: 42 | AP42: 41 | AQ42: 1.1419315 | AR42: 0.9056562116 | AS42: 42 | AT42: 41 | AU42: 1.195925446 | AV42: 0.8444864091 | AW42: 42 | AY42: 0.4141414141 | AZ42: =1 -> 1
A43: 43 | B43: 42 | C43: 0.0600858384 | D43: 1 | E43: 43 | F43: 42 | G43: 0.0975430866 | H43: 1.042573361 | I43: 43 | J43: 42 | K43: 1.322368633 | L43: 1.298106787 | M43: 43 | N43: 42 | O43: 0.302198081 | P43: 0.2751812324 | Q43: 43 | R43: 42 | S43: 1.13251337 | T43: 0.0823200726 | U43: 43 | V43: 42 | W43: 1.190289126 | X43: 0.1479871544 | Y43: 43 | Z43: 42 | AA43: 0.0600858384 | AB43: 1 | AC43: 43 | AD43: 42 | AE43: 0.0979071364 | AF43: 1.042987134 | AG43: 43 | AH43: 42 | AI43: 1.321546086 | AJ43: 1.297171894 | AK43: 43 | AL43: 42 | AM43: 0.311531664 | AN43: 0.2857896456 | AO43: 43 | AP43: 42 | AQ43: 1.143092176 | AR43: 0.0943437884 | AS43: 43 | AT43: 42 | AU43: 1.196911101 | AV43: 0.1555135909 | AW43: 43 | AY43: 0.4242424242 | AZ43: =1 -> 1
A44: 44 | B44: 43 | C44: 0.0615164536 | D44: 2 | E44: 44 | F44: 43 | G44: 0.0988518896 | H44: 1.957426639 | I44: 44 | J44: 43 | K44: 1.322946296 | L44: 1.701893213 | M44: 44 | N44: 43 | O44: 0.3028413393 | P44: 0.7248187676 | Q44: 44 | R44: 43 | S44: 1.133708448 | T44: 0.9176799274 | U44: 44 | V44: 43 | W44: 1.191296316 | X44: 0.8520128456 | Y44: 44 | Z44: 43 | AA44: 0.0615164536 | AB44: 2 | AC44: 44 | AD44: 43 | AE44: 0.0992147555 | AF44: 1.957012866 | AG44: 44 | AH44: 43 | AI44: 1.322126424 | AJ44: 1.702828106 | AK44: 44 | AL44: 43 | AM44: 0.3121445692 | AN44: 0.7142103544 | AO44: 44 | AP44: 43 | AQ44: 1.144252852 | AR44: 0.9056562116 | AS44: 44 | AT44: 43 | AU44: 1.197896756 | AV44: 0.8444864091 | AW44: 44 | AY44: 0.4343434343 | AZ44: =1 -> 1
A45: 45 | B45: 44 | C45: 0.0629470688 | D45: 1 | E45: 45 | F45: 44 | G45: 0.1001606926 | H45: 1.042573361 | I45: 45 | J45: 44 | K45: 1.323523959 | L45: 1.298106787 | M45: 45 | N45: 44 | O45: 0.3034845976 | P45: 0.2751812324 | Q45: 45 | R45: 44 | S45: 1.134903527 | T45: 0.0823200726 | U45: 45 | V45: 44 | W45: 1.192303506 | X45: 0.1479871544 | Y45: 45 | Z45: 44 | AA45: 0.0629470688 | AB45: 1 | AC45: 45 | AD45: 44 | AE45: 0.1005223746 | AF45: 1.042987134 | AG45: 45 | AH45: 44 | AI45: 1.322706762 | AJ45: 1.297171894 | AK45: 45 | AL45: 44 | AM45: 0.3127574744 | AN45: 0.2857896456 | AO45: 45 | AP45: 44 | AQ45: 1.145413528 | AR45: 0.0943437884 | AS45: 45 | AT45: 44 | AU45: 1.198882411 | AV45: 0.1555135909 | AW45: 45 | AY45: 0.4444444444 | AZ45: =1 -> 1
A46: 46 | B46: 45 | C46: 0.064377684 | D46: 2 | E46: 46 | F46: 45 | G46: 0.1014694956 | H46: 1.957426639 | I46: 46 | J46: 45 | K46: 1.324101622 | L46: 1.701893213 | M46: 46 | N46: 45 | O46: 0.3041278559 | P46: 0.7248187676 | Q46: 46 | R46: 45 | S46: 1.136098605 | T46: 0.9176799274 | U46: 46 | V46: 45 | W46: 1.193310695 | X46: 0.8520128456 | Y46: 46 | Z46: 45 | AA46: 0.064377684 | AB46: 2 | AC46: 46 | AD46: 45 | AE46: 0.1018299937 | AF46: 1.957012866 | AG46: 46 | AH46: 45 | AI46: 1.3232871 | AJ46: 1.702828106 | AK46: 46 | AL46: 45 | AM46: 0.3133703796 | AN46: 0.7142103544 | AO46: 46 | AP46: 45 | AQ46: 1.146574204 | AR46: 0.9056562116 | AS46: 46 | AT46: 45 | AU46: 1.199868066 | AV46: 0.8444864091 | AW46: 46 | AY46: 0.4545454545 | AZ46: =1 -> 1
A47: 47 | B47: 46 | C47: 0.0658082992 | D47: 1 | E47: 47 | F47: 46 | G47: 0.1027782986 | H47: 1.042573361 | I47: 47 | J47: 46 | K47: 1.324679285 | L47: 1.298106787 | M47: 47 | N47: 46 | O47: 0.3047711142 | P47: 0.2751812324 | Q47: 47 | R47: 46 | S47: 1.137293684 | T47: 0.0823200726 | U47: 47 | V47: 46 | W47: 1.194317885 | X47: 0.1479871544 | Y47: 47 | Z47: 46 | AA47: 0.0658082992 | AB47: 1 | AC47: 47 | AD47: 46 | AE47: 0.1031376128 | AF47: 1.042987134 | AG47: 47 | AH47: 46 | AI47: 1.323867438 | AJ47: 1.297171894 | AK47: 47 | AL47: 46 | AM47: 0.3139832848 | AN47: 0.2857896456 | AO47: 47 | AP47: 46 | AQ47: 1.14773488 | AR47: 0.0943437884 | AS47: 47 | AT47: 46 | AU47: 1.200853721 | AV47: 0.1555135909 | AW47: 47 | AY47: 0.4646464646 | AZ47: =1 -> 1
A48: 48 | B48: 47 | C48: 0.0672389144 | D48: 2 | E48: 48 | F48: 47 | G48: 0.1040871016 | H48: 1.957426639 | I48: 48 | J48: 47 | K48: 1.325256948 | L48: 1.701893213 | M48: 48 | N48: 47 | O48: 0.3054143725 | P48: 0.7248187676 | Q48: 48 | R48: 47 | S48: 1.138488762 | T48: 0.9176799274 | U48: 48 | V48: 47 | W48: 1.195325075 | X48: 0.8520128456 | Y48: 48 | Z48: 47 | AA48: 0.0672389144 | AB48: 2 | AC48: 48 | AD48: 47 | AE48: 0.1044452319 | AF48: 1.957012866 | AG48: 48 | AH48: 47 | AI48: 1.324447775 | AJ48: 1.702828106 | AK48: 48 | AL48: 47 | AM48: 0.31459619 | AN48: 0.7142103544 | AO48: 48 | AP48: 47 | AQ48: 1.148895556 | AR48: 0.9056562116 | AS48: 48 | AT48: 47 | AU48: 1.201839376 | AV48: 0.8444864091 | AW48: 48 | AY48: 0.4747474747 | AZ48: =1 -> 1
A49: 49 | B49: 48 | C49: 0.0686695296 | D49: 1 | E49: 49 | F49: 48 | G49: 0.1053959046 | H49: 1.042573361 | I49: 49 | J49: 48 | K49: 1.325834611 | L49: 1.298106787 | M49: 49 | N49: 48 | O49: 0.3060576308 | P49: 0.2751812324 | Q49: 49 | R49: 48 | S49: 1.139683841 | T49: 0.0823200726 | U49: 49 | V49: 48 | W49: 1.196332265 | X49: 0.1479871544 | Y49: 49 | Z49: 48 | AA49: 0.0686695296 | AB49: 1 | AC49: 49 | AD49: 48 | AE49: 0.105752851 | AF49: 1.042987134 | AG49: 49 | AH49: 48 | AI49: 1.325028113 | AJ49: 1.297171894 | AK49: 49 | AL49: 48 | AM49: 0.3152090952 | AN49: 0.2857896456 | AO49: 49 | AP49: 48 | AQ49: 1.150056232 | AR49: 0.0943437884 | AS49: 49 | AT49: 48 | AU49: 1.202825031 | AV49: 0.1555135909 | AW49: 49 | AY49: 0.4848484848 | AZ49: =1 -> 1
A50: 50 | B50: 49 | C50: 0.0701001448 | D50: 2 | E50: 50 | F50: 49 | G50: 0.1067047076 | H50: 1.957426639 | I50: 50 | J50: 49 | K50: 1.326412274 | L50: 1.701893213 | M50: 50 | N50: 49 | O50: 0.3067008891 | P50: 0.7248187676 | Q50: 50 | R50: 49 | S50: 1.140878919 | T50: 0.9176799274 | U50: 50 | V50: 49 | W50: 1.197339455 | X50: 0.8520128456 | Y50: 50 | Z50: 49 | AA50: 0.0701001448 | AB50: 2 | AC50: 50 | AD50: 49 | AE50: 0.1070604701 | AF50: 1.957012866 | AG50: 50 | AH50: 49 | AI50: 1.325608451 | AJ50: 1.702828106 | AK50: 50 | AL50: 49 | AM50: 0.3158220004 | AN50: 0.7142103544 | AO50: 50 | AP50: 49 | AQ50: 1.151216908 | AR50: 0.9056562116 | AS50: 50 | AT50: 49 | AU50: 1.203810686 | AV50: 0.8444864091 | AW50: 50 | AY50: 0.4949494949 | AZ50: =1 -> 1
A51: 51 | B51: 50 | C51: 0.07153076 | D51: 1 | E51: 51 | F51: 50 | G51: 0.1080135106 | H51: 1.042573361 | I51: 51 | J51: 50 | K51: 1.326989937 | L51: 1.298106787 | M51: 51 | N51: 50 | O51: 0.3073441474 | P51: 0.2751812324 | Q51: 51 | R51: 50 | S51: 1.142073998 | T51: 0.0823200726 | U51: 51 | V51: 50 | W51: 1.198346644 | X51: 0.1479871544 | Y51: 51 | Z51: 50 | AA51: 0.07153076 | AB51: 1 | AC51: 51 | AD51: 50 | AE51: 0.1083680892 | AF51: 1.042987134 | AG51: 51 | AH51: 50 | AI51: 1.326188789 | AJ51: 1.297171894 | AK51: 51 | AL51: 50 | AM51: 0.3164349056 | AN51: 0.2857896456 | AO51: 51 | AP51: 50 | AQ51: 1.152377583 | AR51: 0.0943437884 | AS51: 51 | AT51: 50 | AU51: 1.204796341 | AV51: 0.1555135909 | AW51: 51 | AY51: 0.505050505 | AZ51: =1 -> 1
A52: 52 | B52: 51 | C52: 0.0729613752 | D52: 2 | E52: 52 | F52: 51 | G52: 0.1093223136 | H52: 1.957426639 | I52: 52 | J52: 51 | K52: 1.3275676 | L52: 1.701893213 | M52: 52 | N52: 51 | O52: 0.3079874057 | P52: 0.7248187676 | Q52: 52 | R52: 51 | S52: 1.143269076 | T52: 0.9176799274 | U52: 52 | V52: 51 | W52: 1.199353834 | X52: 0.8520128456 | Y52: 52 | Z52: 51 | AA52: 0.0729613752 | AB52: 2 | AC52: 52 | AD52: 51 | AE52: 0.1096757083 | AF52: 1.957012866 | AG52: 52 | AH52: 51 | AI52: 1.326769127 | AJ52: 1.702828106 | AK52: 52 | AL52: 51 | AM52: 0.3170478108 | AN52: 0.7142103544 | AO52: 52 | AP52: 51 | AQ52: 1.153538259 | AR52: 0.9056562116 | AS52: 52 | AT52: 51 | AU52: 1.205781996 | AV52: 0.8444864091 | AW52: 52 | AY52: 0.5151515151 | AZ52: =1 -> 1
A53: 53 | B53: 52 | C53: 0.0743919904 | D53: 1 | E53: 53 | F53: 52 | G53: 0.1106311166 | H53: 1.042573361 | I53: 53 | J53: 52 | K53: 1.328145263 | L53: 1.298106787 | M53: 53 | N53: 52 | O53: 0.308630664 | P53: 0.2751812324 | Q53: 53 | R53: 52 | S53: 1.144464155 | T53: 0.0823200726 | U53: 53 | V53: 52 | W53: 1.200361024 | X53: 0.1479871544 | Y53: 53 | Z53: 52 | AA53: 0.0743919904 | AB53: 1 | AC53: 53 | AD53: 52 | AE53: 0.1109833274 | AF53: 1.042987134 | AG53: 53 | AH53: 52 | AI53: 1.327349465 | AJ53: 1.297171894 | AK53: 53 | AL53: 52 | AM53: 0.317660716 | AN53: 0.2857896456 | AO53: 53 | AP53: 52 | AQ53: 1.154698935 | AR53: 0.0943437884 | AS53: 53 | AT53: 52 | AU53: 1.206767651 | AV53: 0.1555135909 | AW53: 53 | AY53: 0.5252525252 | AZ53: =1 -> 1
A54: 54 | B54: 53 | C54: 0.0758226056 | D54: 2 | E54: 54 | F54: 53 | G54: 0.1119399196 | H54: 1.957426639 | I54: 54 | J54: 53 | K54: 1.328722926 | L54: 1.701893213 | M54: 54 | N54: 53 | O54: 0.3092739223 | P54: 0.7248187676 | Q54: 54 | R54: 53 | S54: 1.145659233 | T54: 0.9176799274 | U54: 54 | V54: 53 | W54: 1.201368214 | X54: 0.8520128456 | Y54: 54 | Z54: 53 | AA54: 0.0758226056 | AB54: 2 | AC54: 54 | AD54: 53 | AE54: 0.1122909465 | AF54: 1.957012866 | AG54: 54 | AH54: 53 | AI54: 1.327929803 | AJ54: 1.702828106 | AK54: 54 | AL54: 53 | AM54: 0.3182736212 | AN54: 0.7142103544 | AO54: 54 | AP54: 53 | AQ54: 1.155859611 | AR54: 0.9056562116 | AS54: 54 | AT54: 53 | AU54: 1.207753306 | AV54: 0.8444864091 | AW54: 54 | AY54: 0.5353535353 | AZ54: =1 -> 1
A55: 55 | B55: 54 | C55: 0.0772532208 | D55: 1 | E55: 55 | F55: 54 | G55: 0.1132487226 | H55: 1.042573361 | I55: 55 | J55: 54 | K55: 1.329300589 | L55: 1.298106787 | M55: 55 | N55: 54 | O55: 0.3099171806 | P55: 0.2751812324 | Q55: 55 | R55: 54 | S55: 1.146854312 | T55: 0.0823200726 | U55: 55 | V55: 54 | W55: 1.202375404 | X55: 0.1479871544 | Y55: 55 | Z55: 54 | AA55: 0.0772532208 | AB55: 1 | AC55: 55 | AD55: 54 | AE55: 0.1135985656 | AF55: 1.042987134 | AG55: 55 | AH55: 54 | AI55: 1.328510141 | AJ55: 1.297171894 | AK55: 55 | AL55: 54 | AM55: 0.3188865264 | AN55: 0.2857896456 | AO55: 55 | AP55: 54 | AQ55: 1.157020287 | AR55: 0.0943437884 | AS55: 55 | AT55: 54 | AU55: 1.208738961 | AV55: 0.1555135909 | AW55: 55 | AY55: 0.5454545454 | AZ55: =1 -> 1
A56: 56 | B56: 55 | C56: 0.078683836 | D56: 2 | E56: 56 | F56: 55 | G56: 0.1145575256 | H56: 1.957426639 | I56: 56 | J56: 55 | K56: 1.329878252 | L56: 1.701893213 | M56: 56 | N56: 55 | O56: 0.3105604389 | P56: 0.7248187676 | Q56: 56 | R56: 55 | S56: 1.14804939 | T56: 0.9176799274 | U56: 56 | V56: 55 | W56: 1.203382593 | X56: 0.8520128456 | Y56: 56 | Z56: 55 | AA56: 0.078683836 | AB56: 2 | AC56: 56 | AD56: 55 | AE56: 0.1149061847 | AF56: 1.957012866 | AG56: 56 | AH56: 55 | AI56: 1.329090479 | AJ56: 1.702828106 | AK56: 56 | AL56: 55 | AM56: 0.3194994316 | AN56: 0.7142103544 | AO56: 56 | AP56: 55 | AQ56: 1.158180963 | AR56: 0.9056562116 | AS56: 56 | AT56: 55 | AU56: 1.209724616 | AV56: 0.8444864091 | AW56: 56 | AY56: 0.5555555555 | AZ56: =1 -> 1
A57: 57 | B57: 56 | C57: 0.0801144512 | D57: 1 | E57: 57 | F57: 56 | G57: 0.1158663286 | H57: 1.042573361 | I57: 57 | J57: 56 | K57: 1.330455915 | L57: 1.298106787 | M57: 57 | N57: 56 | O57: 0.3112036972 | P57: 0.2751812324 | Q57: 57 | R57: 56 | S57: 1.149244469 | T57: 0.0823200726 | U57: 57 | V57: 56 | W57: 1.204389783 | X57: 0.1479871544 | Y57: 57 | Z57: 56 | AA57: 0.0801144512 | AB57: 1 | AC57: 57 | AD57: 56 | AE57: 0.1162138038 | AF57: 1.042987134 | AG57: 57 | AH57: 56 | AI57: 1.329670817 | AJ57: 1.297171894 | AK57: 57 | AL57: 56 | AM57: 0.3201123368 | AN57: 0.2857896456 | AO57: 57 | AP57: 56 | AQ57: 1.159341639 | AR57: 0.0943437884 | AS57: 57 | AT57: 56 | AU57: 1.210710271 | AV57: 0.1555135909 | AW57: 57 | AY57: 0.5656565656 | AZ57: =1 -> 1
A58: 58 | B58: 57 | C58: 0.0815450664 | D58: 2 | E58: 58 | F58: 57 | G58: 0.1171751316 | H58: 1.957426639 | I58: 58 | J58: 57 | K58: 1.331033578 | L58: 1.701893213 | M58: 58 | N58: 57 | O58: 0.3118469555 | P58: 0.7248187676 | Q58: 58 | R58: 57 | S58: 1.150439547 | T58: 0.9176799274 | U58: 58 | V58: 57 | W58: 1.205396973 | X58: 0.8520128456 | Y58: 58 | Z58: 57 | AA58: 0.0815450664 | AB58: 2 | AC58: 58 | AD58: 57 | AE58: 0.1175214229 | AF58: 1.957012866 | AG58: 58 | AH58: 57 | AI58: 1.330251154 | AJ58: 1.702828106 | AK58: 58 | AL58: 57 | AM58: 0.320725242 | AN58: 0.7142103544 | AO58: 58 | AP58: 57 | AQ58: 1.160502315 | AR58: 0.9056562116 | AS58: 58 | AT58: 57 | AU58: 1.211695926 | AV58: 0.8444864091 | AW58: 58 | AY58: 0.5757575757 | AZ58: =1 -> 1
A59: 59 | B59: 58 | C59: 0.0829756816 | D59: 1 | E59: 59 | F59: 58 | G59: 0.1184839346 | H59: 1.042573361 | I59: 59 | J59: 58 | K59: 1.331611241 | L59: 1.298106787 | M59: 59 | N59: 58 | O59: 0.3124902138 | P59: 0.2751812324 | Q59: 59 | R59: 58 | S59: 1.151634626 | T59: 0.0823200726 | U59: 59 | V59: 58 | W59: 1.206404163 | X59: 0.1479871544 | Y59: 59 | Z59: 58 | AA59: 0.0829756816 | AB59: 1 | AC59: 59 | AD59: 58 | AE59: 0.118829042 | AF59: 1.042987134 | AG59: 59 | AH59: 58 | AI59: 1.330831492 | AJ59: 1.297171894 | AK59: 59 | AL59: 58 | AM59: 0.3213381472 | AN59: 0.2857896456 | AO59: 59 | AP59: 58 | AQ59: 1.161662991 | AR59: 0.0943437884 | AS59: 59 | AT59: 58 | AU59: 1.212681581 | AV59: 0.1555135909 | AW59: 59 | AY59: 0.5858585858 | AZ59: =1 -> 1
A60: 60 | B60: 59 | C60: 0.0844062968 | D60: 2 | E60: 60 | F60: 59 | G60: 0.1197927376 | H60: 1.957426639 | I60: 60 | J60: 59 | K60: 1.332188904 | L60: 1.701893213 | M60: 60 | N60: 59 | O60: 0.3131334721 | P60: 0.7248187676 | Q60: 60 | R60: 59 | S60: 1.152829704 | T60: 0.9176799274 | U60: 60 | V60: 59 | W60: 1.207411353 | X60: 0.8520128456 | Y60: 60 | Z60: 59 | AA60: 0.0844062968 | AB60: 2 | AC60: 60 | AD60: 59 | AE60: 0.1201366611 | AF60: 1.957012866 | AG60: 60 | AH60: 59 | AI60: 1.33141183 | AJ60: 1.702828106 | AK60: 60 | AL60: 59 | AM60: 0.3219510524 | AN60: 0.7142103544 | AO60: 60 | AP60: 59 | AQ60: 1.162823667 | AR60: 0.9056562116 | AS60: 60 | AT60: 59 | AU60: 1.213667236 | AV60: 0.8444864091 | AW60: 60 | AY60: 0.5959595959 | AZ60: =1 -> 1
A61: 61 | B61: 60 | C61: 0.085836912 | D61: 1 | E61: 61 | F61: 60 | G61: 0.1211015406 | H61: 1.042573361 | I61: 61 | J61: 60 | K61: 1.332766567 | L61: 1.298106787 | M61: 61 | N61: 60 | O61: 0.3137767304 | P61: 0.2751812324 | Q61: 61 | R61: 60 | S61: 1.154024783 | T61: 0.0823200726 | U61: 61 | V61: 60 | W61: 1.208418542 | X61: 0.1479871544 | Y61: 61 | Z61: 60 | AA61: 0.085836912 | AB61: 1 | AC61: 61 | AD61: 60 | AE61: 0.1214442802 | AF61: 1.042987134 | AG61: 61 | AH61: 60 | AI61: 1.331992168 | AJ61: 1.297171894 | AK61: 61 | AL61: 60 | AM61: 0.3225639576 | AN61: 0.2857896456 | AO61: 61 | AP61: 60 | AQ61: 1.163984342 | AR61: 0.0943437884 | AS61: 61 | AT61: 60 | AU61: 1.214652891 | AV61: 0.1555135909 | AW61: 61 | AY61: 0.606060606 | AZ61: =1 -> 1
A62: 62 | B62: 61 | C62: 0.0872675272 | D62: 2 | E62: 62 | F62: 61 | G62: 0.1224103436 | H62: 1.957426639 | I62: 62 | J62: 61 | K62: 1.33334423 | L62: 1.701893213 | M62: 62 | N62: 61 | O62: 0.3144199887 | P62: 0.7248187676 | Q62: 62 | R62: 61 | S62: 1.155219861 | T62: 0.9176799274 | U62: 62 | V62: 61 | W62: 1.209425732 | X62: 0.8520128456 | Y62: 62 | Z62: 61 | AA62: 0.0872675272 | AB62: 2 | AC62: 62 | AD62: 61 | AE62: 0.1227518993 | AF62: 1.957012866 | AG62: 62 | AH62: 61 | AI62: 1.332572506 | AJ62: 1.702828106 | AK62: 62 | AL62: 61 | AM62: 0.3231768628 | AN62: 0.7142103544 | AO62: 62 | AP62: 61 | AQ62: 1.165145018 | AR62: 0.9056562116 | AS62: 62 | AT62: 61 | AU62: 1.215638546 | AV62: 0.8444864091 | AW62: 62 | AY62: 0.6161616161 | AZ62: =1 -> 1
A63: 63 | B63: 62 | C63: 0.0886981424 | D63: 1 | E63: 63 | F63: 62 | G63: 0.1237191466 | H63: 1.042573361 | I63: 63 | J63: 62 | K63: 1.333921893 | L63: 1.298106787 | M63: 63 | N63: 62 | O63: 0.315063247 | P63: 0.2751812324 | Q63: 63 | R63: 62 | S63: 1.15641494 | T63: 0.0823200726 | U63: 63 | V63: 62 | W63: 1.210432922 | X63: 0.1479871544 | Y63: 63 | Z63: 62 | AA63: 0.0886981424 | AB63: 1 | AC63: 63 | AD63: 62 | AE63: 0.1240595184 | AF63: 1.042987134 | AG63: 63 | AH63: 62 | AI63: 1.333152844 | AJ63: 1.297171894 | AK63: 63 | AL63: 62 | AM63: 0.323789768 | AN63: 0.2857896456 | AO63: 63 | AP63: 62 | AQ63: 1.166305694 | AR63: 0.0943437884 | AS63: 63 | AT63: 62 | AU63: 1.216624201 | AV63: 0.1555135909 | AW63: 63 | AY63: 0.6262626262 | AZ63: =1 -> 1
A64: 64 | B64: 63 | C64: 0.0901287576 | D64: 2 | E64: 64 | F64: 63 | G64: 0.1250279496 | H64: 1.957426639 | I64: 64 | J64: 63 | K64: 1.334499556 | L64: 1.701893213 | M64: 64 | N64: 63 | O64: 0.3157065053 | P64: 0.7248187676 | Q64: 64 | R64: 63 | S64: 1.157610018 | T64: 0.9176799274 | U64: 64 | V64: 63 | W64: 1.211440112 | X64: 0.8520128456 | Y64: 64 | Z64: 63 | AA64: 0.0901287576 | AB64: 2 | AC64: 64 | AD64: 63 | AE64: 0.1253671375 | AF64: 1.957012866 | AG64: 64 | AH64: 63 | AI64: 1.333733182 | AJ64: 1.702828106 | AK64: 64 | AL64: 63 | AM64: 0.3244026732 | AN64: 0.7142103544 | AO64: 64 | AP64: 63 | AQ64: 1.16746637 | AR64: 0.9056562116 | AS64: 64 | AT64: 63 | AU64: 1.217609856 | AV64: 0.8444864091 | AW64: 64 | AY64: 0.6363636363 | AZ64: =1 -> 1
A65: 65 | B65: =(A65-1) -> 64 | C65: =0+B65*0.0014306152 -> 0.0915593728 | D65: =IF(B65/2-INT(B65/2)<0.1,1,2) -> 1 | E65: 65 | F65: =(E65-1) -> 64 | G65: =0.0425733606+F65*0.001308803 -> 0.1263367526 | H65: =IF(F65/2-INT(F65/2)<0.1,1.0425733606,1.9574266394) -> 1.042573361 | I65: 65 | J65: =(I65-1) -> 64 | K65: =1.2981067867+J65*0.000577663 -> 1.335077219 | L65: =IF(J65/2-INT(J65/2)<0.1,1.2981067867,1.7018932133) -> 1.298106787 | M65: 65 | N65: =(M65-1) -> 64 | O65: =0.2751812324+N65*0.0006432583 -> 0.3163497636 | P65: =IF(N65/2-INT(N65/2)<0.1,0.2751812324,0.7248187676) -> 0.2751812324 | Q65: 65 | R65: =(Q65-1) -> 64 | S65: =1.0823200726+R65*0.0011950785 -> 1.158805097 | T65: =IF(R65/2-INT(R65/2)<0.1,0.0823200726,0.9176799274) -> 0.0823200726 | U65: 65 | V65: =(U65-1) -> 64 | W65: =1.1479871544+V65*0.0010071898 -> 1.212447302 | X65: =IF(V65/2-INT(V65/2)<0.1,0.1479871544,0.8520128456) -> 0.1479871544 | Y65: 65 | Z65: =(Y65-1) -> 64 | AA65: =0+Z65*0.0014306152 -> 0.0915593728 | AB65: =IF(Z65/2-INT(Z65/2)<0.1,1,2) -> 1 | AC65: 65 | AD65: =(AC65-1) -> 64 | AE65: =0.0429871342+AD65*0.0013076191 -> 0.1266747566 | AF65: =IF(AD65/2-INT(AD65/2)<0.1,1.0429871342,1.9570128658) -> 1.042987134 | AG65: 65 | AH65: =(AG65-1) -> 64 | AI65: =1.2971718942+AH65*0.0005803379 -> 1.33431352 | AJ65: =IF(AH65/2-INT(AH65/2)<0.1,1.2971718942,1.7028281058) -> 1.297171894 | AK65: 65 | AL65: =(AK65-1) -> 64 | AM65: =0.2857896456+AL65*0.0006129052 -> 0.3250155784 | AN65: =IF(AL65/2-INT(AL65/2)<0.1,0.2857896456,0.7142103544) -> 0.2857896456 | AO65: 65 | AP65: =(AO65-1) -> 64 | AQ65: =1.0943437884+AP65*0.0011606759 -> 1.168627046 | AR65: =IF(AP65/2-INT(AP65/2)<0.1,0.0943437884,0.9056562116) -> 0.0943437884 | AS65: 65 | AT65: =(AS65-1) -> 64 | AU65: =1.1555135909+AT65*0.000985655 -> 1.218595511 | AV65: =IF(AT65/2-INT(AT65/2)<0.1,0.1555135909,0.8444864091) -> 0.1555135909 | AW65: 65 | AY65: =0+(AW65-1)*0.0101010101 -> 0.6464646464 | AZ65: =1 -> 1
A66: 66 | B66: 65 | C66: 0.092989988 | D66: 2 | E66: 66 | F66: 65 | G66: 0.1276455556 | H66: 1.957426639 | I66: 66 | J66: 65 | K66: 1.335654882 | L66: 1.701893213 | M66: 66 | N66: 65 | O66: 0.3169930219 | P66: 0.7248187676 | Q66: 66 | R66: 65 | S66: 1.160000175 | T66: 0.9176799274 | U66: 66 | V66: 65 | W66: 1.213454491 | X66: 0.8520128456 | Y66: 66 | Z66: 65 | AA66: 0.092989988 | AB66: 2 | AC66: 66 | AD66: 65 | AE66: 0.1279823757 | AF66: 1.957012866 | AG66: 66 | AH66: 65 | AI66: 1.334893858 | AJ66: 1.702828106 | AK66: 66 | AL66: 65 | AM66: 0.3256284836 | AN66: 0.7142103544 | AO66: 66 | AP66: 65 | AQ66: 1.169787722 | AR66: 0.9056562116 | AS66: 66 | AT66: 65 | AU66: 1.219581166 | AV66: 0.8444864091 | AW66: 66 | AY66: 0.6565656565 | AZ66: =1 -> 1
A67: 67 | B67: 66 | C67: 0.0944206032 | D67: 1 | E67: 67 | F67: 66 | G67: 0.1289543586 | H67: 1.042573361 | I67: 67 | J67: 66 | K67: 1.336232545 | L67: 1.298106787 | M67: 67 | N67: 66 | O67: 0.3176362802 | P67: 0.2751812324 | Q67: 67 | R67: 66 | S67: 1.161195254 | T67: 0.0823200726 | U67: 67 | V67: 66 | W67: 1.214461681 | X67: 0.1479871544 | Y67: 67 | Z67: 66 | AA67: 0.0944206032 | AB67: 1 | AC67: 67 | AD67: 66 | AE67: 0.1292899948 | AF67: 1.042987134 | AG67: 67 | AH67: 66 | AI67: 1.335474196 | AJ67: 1.297171894 | AK67: 67 | AL67: 66 | AM67: 0.3262413888 | AN67: 0.2857896456 | AO67: 67 | AP67: 66 | AQ67: 1.170948398 | AR67: 0.0943437884 | AS67: 67 | AT67: 66 | AU67: 1.220566821 | AV67: 0.1555135909 | AW67: 67 | AY67: 0.6666666666 | AZ67: =1 -> 1
A68: 68 | B68: 67 | C68: 0.0958512184 | D68: 2 | E68: 68 | F68: 67 | G68: 0.1302631616 | H68: 1.957426639 | I68: 68 | J68: 67 | K68: 1.336810208 | L68: 1.701893213 | M68: 68 | N68: 67 | O68: 0.3182795385 | P68: 0.7248187676 | Q68: 68 | R68: 67 | S68: 1.162390332 | T68: 0.9176799274 | U68: 68 | V68: 67 | W68: 1.215468871 | X68: 0.8520128456 | Y68: 68 | Z68: 67 | AA68: 0.0958512184 | AB68: 2 | AC68: 68 | AD68: 67 | AE68: 0.1305976139 | AF68: 1.957012866 | AG68: 68 | AH68: 67 | AI68: 1.336054533 | AJ68: 1.702828106 | AK68: 68 | AL68: 67 | AM68: 0.326854294 | AN68: 0.7142103544 | AO68: 68 | AP68: 67 | AQ68: 1.172109074 | AR68: 0.9056562116 | AS68: 68 | AT68: 67 | AU68: 1.221552476 | AV68: 0.8444864091 | AW68: 68 | AY68: 0.6767676767 | AZ68: =1 -> 1
A69: 69 | B69: 68 | C69: 0.0972818336 | D69: 1 | E69: 69 | F69: 68 | G69: 0.1315719646 | H69: 1.042573361 | I69: 69 | J69: 68 | K69: 1.337387871 | L69: 1.298106787 | M69: 69 | N69: 68 | O69: 0.3189227968 | P69: 0.2751812324 | Q69: 69 | R69: 68 | S69: 1.163585411 | T69: 0.0823200726 | U69: 69 | V69: 68 | W69: 1.216476061 | X69: 0.1479871544 | Y69: 69 | Z69: 68 | AA69: 0.0972818336 | AB69: 1 | AC69: 69 | AD69: 68 | AE69: 0.131905233 | AF69: 1.042987134 | AG69: 69 | AH69: 68 | AI69: 1.336634871 | AJ69: 1.297171894 | AK69: 69 | AL69: 68 | AM69: 0.3274671992 | AN69: 0.2857896456 | AO69: 69 | AP69: 68 | AQ69: 1.17326975 | AR69: 0.0943437884 | AS69: 69 | AT69: 68 | AU69: 1.222538131 | AV69: 0.1555135909 | AW69: 69 | AY69: 0.6868686868 | AZ69: =1 -> 1
A70: 70 | B70: 69 | C70: 0.0987124488 | D70: 2 | E70: 70 | F70: 69 | G70: 0.1328807676 | H70: 1.957426639 | I70: 70 | J70: 69 | K70: 1.337965534 | L70: 1.701893213 | M70: 70 | N70: 69 | O70: 0.3195660551 | P70: 0.7248187676 | Q70: 70 | R70: 69 | S70: 1.164780489 | T70: 0.9176799274 | U70: 70 | V70: 69 | W70: 1.217483251 | X70: 0.8520128456 | Y70: 70 | Z70: 69 | AA70: 0.0987124488 | AB70: 2 | AC70: 70 | AD70: 69 | AE70: 0.1332128521 | AF70: 1.957012866 | AG70: 70 | AH70: 69 | AI70: 1.337215209 | AJ70: 1.702828106 | AK70: 70 | AL70: 69 | AM70: 0.3280801044 | AN70: 0.7142103544 | AO70: 70 | AP70: 69 | AQ70: 1.174430425 | AR70: 0.9056562116 | AS70: 70 | AT70: 69 | AU70: 1.223523786 | AV70: 0.8444864091 | AW70: 70 | AY70: 0.6969696969 | AZ70: =1 -> 1
A71: 71 | B71: 70 | C71: 0.100143064 | D71: 1 | E71: 71 | F71: 70 | G71: 0.1341895706 | H71: 1.042573361 | I71: 71 | J71: 70 | K71: 1.338543197 | L71: 1.298106787 | M71: 71 | N71: 70 | O71: 0.3202093134 | P71: 0.2751812324 | Q71: 71 | R71: 70 | S71: 1.165975568 | T71: 0.0823200726 | U71: 71 | V71: 70 | W71: 1.21849044 | X71: 0.1479871544 | Y71: 71 | Z71: 70 | AA71: 0.100143064 | AB71: 1 | AC71: 71 | AD71: 70 | AE71: 0.1345204712 | AF71: 1.042987134 | AG71: 71 | AH71: 70 | AI71: 1.337795547 | AJ71: 1.297171894 | AK71: 71 | AL71: 70 | AM71: 0.3286930096 | AN71: 0.2857896456 | AO71: 71 | AP71: 70 | AQ71: 1.175591101 | AR71: 0.0943437884 | AS71: 71 | AT71: 70 | AU71: 1.224509441 | AV71: 0.1555135909 | AW71: 71 | AY71: 0.707070707 | AZ71: =1 -> 1
A72: 72 | B72: 71 | C72: 0.1015736792 | D72: 2 | E72: 72 | F72: 71 | G72: 0.1354983736 | H72: 1.957426639 | I72: 72 | J72: 71 | K72: 1.33912086 | L72: 1.701893213 | M72: 72 | N72: 71 | O72: 0.3208525717 | P72: 0.7248187676 | Q72: 72 | R72: 71 | S72: 1.167170646 | T72: 0.9176799274 | U72: 72 | V72: 71 | W72: 1.21949763 | X72: 0.8520128456 | Y72: 72 | Z72: 71 | AA72: 0.1015736792 | AB72: 2 | AC72: 72 | AD72: 71 | AE72: 0.1358280903 | AF72: 1.957012866 | AG72: 72 | AH72: 71 | AI72: 1.338375885 | AJ72: 1.702828106 | AK72: 72 | AL72: 71 | AM72: 0.3293059148 | AN72: 0.7142103544 | AO72: 72 | AP72: 71 | AQ72: 1.176751777 | AR72: 0.9056562116 | AS72: 72 | AT72: 71 | AU72: 1.225495096 | AV72: 0.8444864091 | AW72: 72 | AY72: 0.7171717171 | AZ72: =1 -> 1
A73: 73 | B73: 72 | C73: 0.1030042944 | D73: 1 | E73: 73 | F73: 72 | G73: 0.1368071766 | H73: 1.042573361 | I73: 73 | J73: 72 | K73: 1.339698523 | L73: 1.298106787 | M73: 73 | N73: 72 | O73: 0.32149583 | P73: 0.2751812324 | Q73: 73 | R73: 72 | S73: 1.168365725 | T73: 0.0823200726 | U73: 73 | V73: 72 | W73: 1.22050482 | X73: 0.1479871544 | Y73: 73 | Z73: 72 | AA73: 0.1030042944 | AB73: 1 | AC73: 73 | AD73: 72 | AE73: 0.1371357094 | AF73: 1.042987134 | AG73: 73 | AH73: 72 | AI73: 1.338956223 | AJ73: 1.297171894 | AK73: 73 | AL73: 72 | AM73: 0.32991882 | AN73: 0.2857896456 | AO73: 73 | AP73: 72 | AQ73: 1.177912453 | AR73: 0.0943437884 | AS73: 73 | AT73: 72 | AU73: 1.226480751 | AV73: 0.1555135909 | AW73: 73 | AY73: 0.7272727272 | AZ73: =1 -> 1
A74: 74 | B74: 73 | C74: 0.1044349096 | D74: 2 | E74: 74 | F74: 73 | G74: 0.1381159796 | H74: 1.957426639 | I74: 74 | J74: 73 | K74: 1.340276186 | L74: 1.701893213 | M74: 74 | N74: 73 | O74: 0.3221390883 | P74: 0.7248187676 | Q74: 74 | R74: 73 | S74: 1.169560803 | T74: 0.9176799274 | U74: 74 | V74: 73 | W74: 1.22151201 | X74: 0.8520128456 | Y74: 74 | Z74: 73 | AA74: 0.1044349096 | AB74: 2 | AC74: 74 | AD74: 73 | AE74: 0.1384433285 | AF74: 1.957012866 | AG74: 74 | AH74: 73 | AI74: 1.339536561 | AJ74: 1.702828106 | AK74: 74 | AL74: 73 | AM74: 0.3305317252 | AN74: 0.7142103544 | AO74: 74 | AP74: 73 | AQ74: 1.179073129 | AR74: 0.9056562116 | AS74: 74 | AT74: 73 | AU74: 1.227466406 | AV74: 0.8444864091 | AW74: 74 | AY74: 0.7373737373 | AZ74: =1 -> 1
A75: 75 | B75: 74 | C75: 0.1058655248 | D75: 1 | E75: 75 | F75: 74 | G75: 0.1394247826 | H75: 1.042573361 | I75: 75 | J75: 74 | K75: 1.340853849 | L75: 1.298106787 | M75: 75 | N75: 74 | O75: 0.3227823466 | P75: 0.2751812324 | Q75: 75 | R75: 74 | S75: 1.170755882 | T75: 0.0823200726 | U75: 75 | V75: 74 | W75: 1.2225192 | X75: 0.1479871544 | Y75: 75 | Z75: 74 | AA75: 0.1058655248 | AB75: 1 | AC75: 75 | AD75: 74 | AE75: 0.1397509476 | AF75: 1.042987134 | AG75: 75 | AH75: 74 | AI75: 1.340116899 | AJ75: 1.297171894 | AK75: 75 | AL75: 74 | AM75: 0.3311446304 | AN75: 0.2857896456 | AO75: 75 | AP75: 74 | AQ75: 1.180233805 | AR75: 0.0943437884 | AS75: 75 | AT75: 74 | AU75: 1.228452061 | AV75: 0.1555135909 | AW75: 75 | AY75: 0.7474747474 | AZ75: =1 -> 1
A76: 76 | B76: 75 | C76: 0.10729614 | D76: 2 | E76: 76 | F76: 75 | G76: 0.1407335856 | H76: 1.957426639 | I76: 76 | J76: 75 | K76: 1.341431512 | L76: 1.701893213 | M76: 76 | N76: 75 | O76: 0.3234256049 | P76: 0.7248187676 | Q76: 76 | R76: 75 | S76: 1.17195096 | T76: 0.9176799274 | U76: 76 | V76: 75 | W76: 1.223526389 | X76: 0.8520128456 | Y76: 76 | Z76: 75 | AA76: 0.10729614 | AB76: 2 | AC76: 76 | AD76: 75 | AE76: 0.1410585667 | AF76: 1.957012866 | AG76: 76 | AH76: 75 | AI76: 1.340697237 | AJ76: 1.702828106 | AK76: 76 | AL76: 75 | AM76: 0.3317575356 | AN76: 0.7142103544 | AO76: 76 | AP76: 75 | AQ76: 1.181394481 | AR76: 0.9056562116 | AS76: 76 | AT76: 75 | AU76: 1.229437716 | AV76: 0.8444864091 | AW76: 76 | AY76: 0.7575757575 | AZ76: =1 -> 1
A77: 77 | B77: 76 | C77: 0.1087267552 | D77: 1 | E77: 77 | F77: 76 | G77: 0.1420423886 | H77: 1.042573361 | I77: 77 | J77: 76 | K77: 1.342009175 | L77: 1.298106787 | M77: 77 | N77: 76 | O77: 0.3240688632 | P77: 0.2751812324 | Q77: 77 | R77: 76 | S77: 1.173146039 | T77: 0.0823200726 | U77: 77 | V77: 76 | W77: 1.224533579 | X77: 0.1479871544 | Y77: 77 | Z77: 76 | AA77: 0.1087267552 | AB77: 1 | AC77: 77 | AD77: 76 | AE77: 0.1423661858 | AF77: 1.042987134 | AG77: 77 | AH77: 76 | AI77: 1.341277575 | AJ77: 1.297171894 | AK77: 77 | AL77: 76 | AM77: 0.3323704408 | AN77: 0.2857896456 | AO77: 77 | AP77: 76 | AQ77: 1.182555157 | AR77: 0.0943437884 | AS77: 77 | AT77: 76 | AU77: 1.230423371 | AV77: 0.1555135909 | AW77: 77 | AY77: 0.7676767676 | AZ77: =1 -> 1
A78: 78 | B78: 77 | C78: 0.1101573704 | D78: 2 | E78: 78 | F78: 77 | G78: 0.1433511916 | H78: 1.957426639 | I78: 78 | J78: 77 | K78: 1.342586838 | L78: 1.701893213 | M78: 78 | N78: 77 | O78: 0.3247121215 | P78: 0.7248187676 | Q78: 78 | R78: 77 | S78: 1.174341117 | T78: 0.9176799274 | U78: 78 | V78: 77 | W78: 1.225540769 | X78: 0.8520128456 | Y78: 78 | Z78: 77 | AA78: 0.1101573704 | AB78: 2 | AC78: 78 | AD78: 77 | AE78: 0.1436738049 | AF78: 1.957012866 | AG78: 78 | AH78: 77 | AI78: 1.341857912 | AJ78: 1.702828106 | AK78: 78 | AL78: 77 | AM78: 0.332983346 | AN78: 0.7142103544 | AO78: 78 | AP78: 77 | AQ78: 1.183715833 | AR78: 0.9056562116 | AS78: 78 | AT78: 77 | AU78: 1.231409026 | AV78: 0.8444864091 | AW78: 78 | AY78: 0.7777777777 | AZ78: =1 -> 1
A79: 79 | B79: 78 | C79: 0.1115879856 | D79: 1 | E79: 79 | F79: 78 | G79: 0.1446599946 | H79: 1.042573361 | I79: 79 | J79: 78 | K79: 1.343164501 | L79: 1.298106787 | M79: 79 | N79: 78 | O79: 0.3253553798 | P79: 0.2751812324 | Q79: 79 | R79: 78 | S79: 1.175536196 | T79: 0.0823200726 | U79: 79 | V79: 78 | W79: 1.226547959 | X79: 0.1479871544 | Y79: 79 | Z79: 78 | AA79: 0.1115879856 | AB79: 1 | AC79: 79 | AD79: 78 | AE79: 0.144981424 | AF79: 1.042987134 | AG79: 79 | AH79: 78 | AI79: 1.34243825 | AJ79: 1.297171894 | AK79: 79 | AL79: 78 | AM79: 0.3335962512 | AN79: 0.2857896456 | AO79: 79 | AP79: 78 | AQ79: 1.184876509 | AR79: 0.0943437884 | AS79: 79 | AT79: 78 | AU79: 1.232394681 | AV79: 0.1555135909 | AW79: 79 | AY79: 0.7878787878 | AZ79: =1 -> 1
A80: 80 | B80: 79 | C80: 0.1130186008 | D80: 2 | E80: 80 | F80: 79 | G80: 0.1459687976 | H80: 1.957426639 | I80: 80 | J80: 79 | K80: 1.343742164 | L80: 1.701893213 | M80: 80 | N80: 79 | O80: 0.3259986381 | P80: 0.7248187676 | Q80: 80 | R80: 79 | S80: 1.176731274 | T80: 0.9176799274 | U80: 80 | V80: 79 | W80: 1.227555149 | X80: 0.8520128456 | Y80: 80 | Z80: 79 | AA80: 0.1130186008 | AB80: 2 | AC80: 80 | AD80: 79 | AE80: 0.1462890431 | AF80: 1.957012866 | AG80: 80 | AH80: 79 | AI80: 1.343018588 | AJ80: 1.702828106 | AK80: 80 | AL80: 79 | AM80: 0.3342091564 | AN80: 0.7142103544 | AO80: 80 | AP80: 79 | AQ80: 1.186037184 | AR80: 0.9056562116 | AS80: 80 | AT80: 79 | AU80: 1.233380336 | AV80: 0.8444864091 | AW80: 80 | AY80: 0.7979797979 | AZ80: =1 -> 1
A81: 81 | B81: 80 | C81: 0.114449216 | D81: 1 | E81: 81 | F81: 80 | G81: 0.1472776006 | H81: 1.042573361 | I81: 81 | J81: 80 | K81: 1.344319827 | L81: 1.298106787 | M81: 81 | N81: 80 | O81: 0.3266418964 | P81: 0.2751812324 | Q81: 81 | R81: 80 | S81: 1.177926353 | T81: 0.0823200726 | U81: 81 | V81: 80 | W81: 1.228562338 | X81: 0.1479871544 | Y81: 81 | Z81: 80 | AA81: 0.114449216 | AB81: 1 | AC81: 81 | AD81: 80 | AE81: 0.1475966622 | AF81: 1.042987134 | AG81: 81 | AH81: 80 | AI81: 1.343598926 | AJ81: 1.297171894 | AK81: 81 | AL81: 80 | AM81: 0.3348220616 | AN81: 0.2857896456 | AO81: 81 | AP81: 80 | AQ81: 1.18719786 | AR81: 0.0943437884 | AS81: 81 | AT81: 80 | AU81: 1.234365991 | AV81: 0.1555135909 | AW81: 81 | AY81: 0.808080808 | AZ81: =1 -> 1
A82: 82 | B82: 81 | C82: 0.1158798312 | D82: 2 | E82: 82 | F82: 81 | G82: 0.1485864036 | H82: 1.957426639 | I82: 82 | J82: 81 | K82: 1.34489749 | L82: 1.701893213 | M82: 82 | N82: 81 | O82: 0.3272851547 | P82: 0.7248187676 | Q82: 82 | R82: 81 | S82: 1.179121431 | T82: 0.9176799274 | U82: 82 | V82: 81 | W82: 1.229569528 | X82: 0.8520128456 | Y82: 82 | Z82: 81 | AA82: 0.1158798312 | AB82: 2 | AC82: 82 | AD82: 81 | AE82: 0.1489042813 | AF82: 1.957012866 | AG82: 82 | AH82: 81 | AI82: 1.344179264 | AJ82: 1.702828106 | AK82: 82 | AL82: 81 | AM82: 0.3354349668 | AN82: 0.7142103544 | AO82: 82 | AP82: 81 | AQ82: 1.188358536 | AR82: 0.9056562116 | AS82: 82 | AT82: 81 | AU82: 1.235351646 | AV82: 0.8444864091 | AW82: 82 | AY82: 0.8181818181 | AZ82: =1 -> 1
A83: 83 | B83: 82 | C83: 0.1173104464 | D83: 1 | E83: 83 | F83: 82 | G83: 0.1498952066 | H83: 1.042573361 | I83: 83 | J83: 82 | K83: 1.345475153 | L83: 1.298106787 | M83: 83 | N83: 82 | O83: 0.327928413 | P83: 0.2751812324 | Q83: 83 | R83: 82 | S83: 1.18031651 | T83: 0.0823200726 | U83: 83 | V83: 82 | W83: 1.230576718 | X83: 0.1479871544 | Y83: 83 | Z83: 82 | AA83: 0.1173104464 | AB83: 1 | AC83: 83 | AD83: 82 | AE83: 0.1502119004 | AF83: 1.042987134 | AG83: 83 | AH83: 82 | AI83: 1.344759602 | AJ83: 1.297171894 | AK83: 83 | AL83: 82 | AM83: 0.336047872 | AN83: 0.2857896456 | AO83: 83 | AP83: 82 | AQ83: 1.189519212 | AR83: 0.0943437884 | AS83: 83 | AT83: 82 | AU83: 1.236337301 | AV83: 0.1555135909 | AW83: 83 | AY83: 0.8282828282 | AZ83: =1 -> 1
A84: 84 | B84: 83 | C84: 0.1187410616 | D84: 2 | E84: 84 | F84: 83 | G84: 0.1512040096 | H84: 1.957426639 | I84: 84 | J84: 83 | K84: 1.346052816 | L84: 1.701893213 | M84: 84 | N84: 83 | O84: 0.3285716713 | P84: 0.7248187676 | Q84: 84 | R84: 83 | S84: 1.181511588 | T84: 0.9176799274 | U84: 84 | V84: 83 | W84: 1.231583908 | X84: 0.8520128456 | Y84: 84 | Z84: 83 | AA84: 0.1187410616 | AB84: 2 | AC84: 84 | AD84: 83 | AE84: 0.1515195195 | AF84: 1.957012866 | AG84: 84 | AH84: 83 | AI84: 1.34533994 | AJ84: 1.702828106 | AK84: 84 | AL84: 83 | AM84: 0.3366607772 | AN84: 0.7142103544 | AO84: 84 | AP84: 83 | AQ84: 1.190679888 | AR84: 0.9056562116 | AS84: 84 | AT84: 83 | AU84: 1.237322956 | AV84: 0.8444864091 | AW84: 84 | AY84: 0.8383838383 | AZ84: =1 -> 1
A85: 85 | B85: 84 | C85: 0.1201716768 | D85: 1 | E85: 85 | F85: 84 | G85: 0.1525128126 | H85: 1.042573361 | I85: 85 | J85: 84 | K85: 1.346630479 | L85: 1.298106787 | M85: 85 | N85: 84 | O85: 0.3292149296 | P85: 0.2751812324 | Q85: 85 | R85: 84 | S85: 1.182706667 | T85: 0.0823200726 | U85: 85 | V85: 84 | W85: 1.232591098 | X85: 0.1479871544 | Y85: 85 | Z85: 84 | AA85: 0.1201716768 | AB85: 1 | AC85: 85 | AD85: 84 | AE85: 0.1528271386 | AF85: 1.042987134 | AG85: 85 | AH85: 84 | AI85: 1.345920278 | AJ85: 1.297171894 | AK85: 85 | AL85: 84 | AM85: 0.3372736824 | AN85: 0.2857896456 | AO85: 85 | AP85: 84 | AQ85: 1.191840564 | AR85: 0.0943437884 | AS85: 85 | AT85: 84 | AU85: 1.238308611 | AV85: 0.1555135909 | AW85: 85 | AY85: 0.8484848484 | AZ85: =1 -> 1
A86: 86 | B86: 85 | C86: 0.121602292 | D86: 2 | E86: 86 | F86: 85 | G86: 0.1538216156 | H86: 1.957426639 | I86: 86 | J86: 85 | K86: 1.347208142 | L86: 1.701893213 | M86: 86 | N86: 85 | O86: 0.3298581879 | P86: 0.7248187676 | Q86: 86 | R86: 85 | S86: 1.183901745 | T86: 0.9176799274 | U86: 86 | V86: 85 | W86: 1.233598287 | X86: 0.8520128456 | Y86: 86 | Z86: 85 | AA86: 0.121602292 | AB86: 2 | AC86: 86 | AD86: 85 | AE86: 0.1541347577 | AF86: 1.957012866 | AG86: 86 | AH86: 85 | AI86: 1.346500616 | AJ86: 1.702828106 | AK86: 86 | AL86: 85 | AM86: 0.3378865876 | AN86: 0.7142103544 | AO86: 86 | AP86: 85 | AQ86: 1.19300124 | AR86: 0.9056562116 | AS86: 86 | AT86: 85 | AU86: 1.239294266 | AV86: 0.8444864091 | AW86: 86 | AY86: 0.8585858585 | AZ86: =1 -> 1
A87: 87 | B87: 86 | C87: 0.1230329072 | D87: 1 | E87: 87 | F87: 86 | G87: 0.1551304186 | H87: 1.042573361 | I87: 87 | J87: 86 | K87: 1.347785805 | L87: 1.298106787 | M87: 87 | N87: 86 | O87: 0.3305014462 | P87: 0.2751812324 | Q87: 87 | R87: 86 | S87: 1.185096824 | T87: 0.0823200726 | U87: 87 | V87: 86 | W87: 1.234605477 | X87: 0.1479871544 | Y87: 87 | Z87: 86 | AA87: 0.1230329072 | AB87: 1 | AC87: 87 | AD87: 86 | AE87: 0.1554423768 | AF87: 1.042987134 | AG87: 87 | AH87: 86 | AI87: 1.347080954 | AJ87: 1.297171894 | AK87: 87 | AL87: 86 | AM87: 0.3384994928 | AN87: 0.2857896456 | AO87: 87 | AP87: 86 | AQ87: 1.194161916 | AR87: 0.0943437884 | AS87: 87 | AT87: 86 | AU87: 1.240279921 | AV87: 0.1555135909 | AW87: 87 | AY87: 0.8686868686 | AZ87: =1 -> 1
A88: 88 | B88: 87 | C88: 0.1244635224 | D88: 2 | E88: 88 | F88: 87 | G88: 0.1564392216 | H88: 1.957426639 | I88: 88 | J88: 87 | K88: 1.348363468 | L88: 1.701893213 | M88: 88 | N88: 87 | O88: 0.3311447045 | P88: 0.7248187676 | Q88: 88 | R88: 87 | S88: 1.186291902 | T88: 0.9176799274 | U88: 88 | V88: 87 | W88: 1.235612667 | X88: 0.8520128456 | Y88: 88 | Z88: 87 | AA88: 0.1244635224 | AB88: 2 | AC88: 88 | AD88: 87 | AE88: 0.1567499959 | AF88: 1.957012866 | AG88: 88 | AH88: 87 | AI88: 1.347661291 | AJ88: 1.702828106 | AK88: 88 | AL88: 87 | AM88: 0.339112398 | AN88: 0.7142103544 | AO88: 88 | AP88: 87 | AQ88: 1.195322592 | AR88: 0.9056562116 | AS88: 88 | AT88: 87 | AU88: 1.241265576 | AV88: 0.8444864091 | AW88: 88 | AY88: 0.8787878787 | AZ88: =1 -> 1
A89: 89 | B89: 88 | C89: 0.1258941376 | D89: 1 | E89: 89 | F89: 88 | G89: 0.1577480246 | H89: 1.042573361 | I89: 89 | J89: 88 | K89: 1.348941131 | L89: 1.298106787 | M89: 89 | N89: 88 | O89: 0.3317879628 | P89: 0.2751812324 | Q89: 89 | R89: 88 | S89: 1.187486981 | T89: 0.0823200726 | U89: 89 | V89: 88 | W89: 1.236619857 | X89: 0.1479871544 | Y89: 89 | Z89: 88 | AA89: 0.1258941376 | AB89: 1 | AC89: 89 | AD89: 88 | AE89: 0.158057615 | AF89: 1.042987134 | AG89: 89 | AH89: 88 | AI89: 1.348241629 | AJ89: 1.297171894 | AK89: 89 | AL89: 88 | AM89: 0.3397253032 | AN89: 0.2857896456 | AO89: 89 | AP89: 88 | AQ89: 1.196483268 | AR89: 0.0943437884 | AS89: 89 | AT89: 88 | AU89: 1.242251231 | AV89: 0.1555135909 | AW89: 89 | AY89: 0.8888888888 | AZ89: =1 -> 1
A90: 90 | B90: 89 | C90: 0.1273247528 | D90: 2 | E90: 90 | F90: 89 | G90: 0.1590568276 | H90: 1.957426639 | I90: 90 | J90: 89 | K90: 1.349518794 | L90: 1.701893213 | M90: 90 | N90: 89 | O90: 0.3324312211 | P90: 0.7248187676 | Q90: 90 | R90: 89 | S90: 1.188682059 | T90: 0.9176799274 | U90: 90 | V90: 89 | W90: 1.237627047 | X90: 0.8520128456 | Y90: 90 | Z90: 89 | AA90: 0.1273247528 | AB90: 2 | AC90: 90 | AD90: 89 | AE90: 0.1593652341 | AF90: 1.957012866 | AG90: 90 | AH90: 89 | AI90: 1.348821967 | AJ90: 1.702828106 | AK90: 90 | AL90: 89 | AM90: 0.3403382084 | AN90: 0.7142103544 | AO90: 90 | AP90: 89 | AQ90: 1.197643943 | AR90: 0.9056562116 | AS90: 90 | AT90: 89 | AU90: 1.243236886 | AV90: 0.8444864091 | AW90: 90 | AY90: 0.8989898989 | AZ90: =1 -> 1
A91: 91 | B91: 90 | C91: 0.128755368 | D91: 1 | E91: 91 | F91: 90 | G91: 0.1603656306 | H91: 1.042573361 | I91: 91 | J91: 90 | K91: 1.350096457 | L91: 1.298106787 | M91: 91 | N91: 90 | O91: 0.3330744794 | P91: 0.2751812324 | Q91: 91 | R91: 90 | S91: 1.189877138 | T91: 0.0823200726 | U91: 91 | V91: 90 | W91: 1.238634236 | X91: 0.1479871544 | Y91: 91 | Z91: 90 | AA91: 0.128755368 | AB91: 1 | AC91: 91 | AD91: 90 | AE91: 0.1606728532 | AF91: 1.042987134 | AG91: 91 | AH91: 90 | AI91: 1.349402305 | AJ91: 1.297171894 | AK91: 91 | AL91: 90 | AM91: 0.3409511136 | AN91: 0.2857896456 | AO91: 91 | AP91: 90 | AQ91: 1.198804619 | AR91: 0.0943437884 | AS91: 91 | AT91: 90 | AU91: 1.244222541 | AV91: 0.1555135909 | AW91: 91 | AY91: 0.909090909 | AZ91: =1 -> 1
A92: 92 | B92: 91 | C92: 0.1301859832 | D92: 2 | E92: 92 | F92: 91 | G92: 0.1616744336 | H92: 1.957426639 | I92: 92 | J92: 91 | K92: 1.35067412 | L92: 1.701893213 | M92: 92 | N92: 91 | O92: 0.3337177377 | P92: 0.7248187676 | Q92: 92 | R92: 91 | S92: 1.191072216 | T92: 0.9176799274 | U92: 92 | V92: 91 | W92: 1.239641426 | X92: 0.8520128456 | Y92: 92 | Z92: 91 | AA92: 0.1301859832 | AB92: 2 | AC92: 92 | AD92: 91 | AE92: 0.1619804723 | AF92: 1.957012866 | AG92: 92 | AH92: 91 | AI92: 1.349982643 | AJ92: 1.702828106 | AK92: 92 | AL92: 91 | AM92: 0.3415640188 | AN92: 0.7142103544 | AO92: 92 | AP92: 91 | AQ92: 1.199965295 | AR92: 0.9056562116 | AS92: 92 | AT92: 91 | AU92: 1.245208196 | AV92: 0.8444864091 | AW92: 92 | AY92: 0.9191919191 | AZ92: =1 -> 1
A93: 93 | B93: 92 | C93: 0.1316165984 | D93: 1 | E93: 93 | F93: 92 | G93: 0.1629832366 | H93: 1.042573361 | I93: 93 | J93: 92 | K93: 1.351251783 | L93: 1.298106787 | M93: 93 | N93: 92 | O93: 0.334360996 | P93: 0.2751812324 | Q93: 93 | R93: 92 | S93: 1.192267295 | T93: 0.0823200726 | U93: 93 | V93: 92 | W93: 1.240648616 | X93: 0.1479871544 | Y93: 93 | Z93: 92 | AA93: 0.1316165984 | AB93: 1 | AC93: 93 | AD93: 92 | AE93: 0.1632880914 | AF93: 1.042987134 | AG93: 93 | AH93: 92 | AI93: 1.350562981 | AJ93: 1.297171894 | AK93: 93 | AL93: 92 | AM93: 0.342176924 | AN93: 0.2857896456 | AO93: 93 | AP93: 92 | AQ93: 1.201125971 | AR93: 0.0943437884 | AS93: 93 | AT93: 92 | AU93: 1.246193851 | AV93: 0.1555135909 | AW93: 93 | AY93: 0.9292929292 | AZ93: =1 -> 1
A94: 94 | B94: 93 | C94: 0.1330472136 | D94: 2 | E94: 94 | F94: 93 | G94: 0.1642920396 | H94: 1.957426639 | I94: 94 | J94: 93 | K94: 1.351829446 | L94: 1.701893213 | M94: 94 | N94: 93 | O94: 0.3350042543 | P94: 0.7248187676 | Q94: 94 | R94: 93 | S94: 1.193462373 | T94: 0.9176799274 | U94: 94 | V94: 93 | W94: 1.241655806 | X94: 0.8520128456 | Y94: 94 | Z94: 93 | AA94: 0.1330472136 | AB94: 2 | AC94: 94 | AD94: 93 | AE94: 0.1645957105 | AF94: 1.957012866 | AG94: 94 | AH94: 93 | AI94: 1.351143319 | AJ94: 1.702828106 | AK94: 94 | AL94: 93 | AM94: 0.3427898292 | AN94: 0.7142103544 | AO94: 94 | AP94: 93 | AQ94: 1.202286647 | AR94: 0.9056562116 | AS94: 94 | AT94: 93 | AU94: 1.247179506 | AV94: 0.8444864091 | AW94: 94 | AY94: 0.9393939393 | AZ94: =1 -> 1
A95: 95 | B95: 94 | C95: 0.1344778288 | D95: 1 | E95: 95 | F95: 94 | G95: 0.1656008426 | H95: 1.042573361 | I95: 95 | J95: 94 | K95: 1.352407109 | L95: 1.298106787 | M95: 95 | N95: 94 | O95: 0.3356475126 | P95: 0.2751812324 | Q95: 95 | R95: 94 | S95: 1.194657452 | T95: 0.0823200726 | U95: 95 | V95: 94 | W95: 1.242662996 | X95: 0.1479871544 | Y95: 95 | Z95: 94 | AA95: 0.1344778288 | AB95: 1 | AC95: 95 | AD95: 94 | AE95: 0.1659033296 | AF95: 1.042987134 | AG95: 95 | AH95: 94 | AI95: 1.351723657 | AJ95: 1.297171894 | AK95: 95 | AL95: 94 | AM95: 0.3434027344 | AN95: 0.2857896456 | AO95: 95 | AP95: 94 | AQ95: 1.203447323 | AR95: 0.0943437884 | AS95: 95 | AT95: 94 | AU95: 1.248165161 | AV95: 0.1555135909 | AW95: 95 | AY95: 0.9494949494 | AZ95: =1 -> 1
A96: 96 | B96: 95 | C96: 0.135908444 | D96: 2 | E96: 96 | F96: 95 | G96: 0.1669096456 | H96: 1.957426639 | I96: 96 | J96: 95 | K96: 1.352984772 | L96: 1.701893213 | M96: 96 | N96: 95 | O96: 0.3362907709 | P96: 0.7248187676 | Q96: 96 | R96: 95 | S96: 1.19585253 | T96: 0.9176799274 | U96: 96 | V96: 95 | W96: 1.243670185 | X96: 0.8520128456 | Y96: 96 | Z96: 95 | AA96: 0.135908444 | AB96: 2 | AC96: 96 | AD96: 95 | AE96: 0.1672109487 | AF96: 1.957012866 | AG96: 96 | AH96: 95 | AI96: 1.352303995 | AJ96: 1.702828106 | AK96: 96 | AL96: 95 | AM96: 0.3440156396 | AN96: 0.7142103544 | AO96: 96 | AP96: 95 | AQ96: 1.204607999 | AR96: 0.9056562116 | AS96: 96 | AT96: 95 | AU96: 1.249150816 | AV96: 0.8444864091 | AW96: 96 | AY96: 0.9595959595 | AZ96: =1 -> 1
A97: 97 | B97: 96 | C97: 0.1373390592 | D97: 1 | E97: 97 | F97: 96 | G97: 0.1682184486 | H97: 1.042573361 | I97: 97 | J97: 96 | K97: 1.353562435 | L97: 1.298106787 | M97: 97 | N97: 96 | O97: 0.3369340292 | P97: 0.2751812324 | Q97: 97 | R97: 96 | S97: 1.197047609 | T97: 0.0823200726 | U97: 97 | V97: 96 | W97: 1.244677375 | X97: 0.1479871544 | Y97: 97 | Z97: 96 | AA97: 0.1373390592 | AB97: 1 | AC97: 97 | AD97: 96 | AE97: 0.1685185678 | AF97: 1.042987134 | AG97: 97 | AH97: 96 | AI97: 1.352884333 | AJ97: 1.297171894 | AK97: 97 | AL97: 96 | AM97: 0.3446285448 | AN97: 0.2857896456 | AO97: 97 | AP97: 96 | AQ97: 1.205768675 | AR97: 0.0943437884 | AS97: 97 | AT97: 96 | AU97: 1.250136471 | AV97: 0.1555135909 | AW97: 97 | AY97: 0.9696969696 | AZ97: =1 -> 1
A98: 98 | B98: 97 | C98: 0.1387696744 | D98: 2 | E98: 98 | F98: 97 | G98: 0.1695272516 | H98: 1.957426639 | I98: 98 | J98: 97 | K98: 1.354140098 | L98: 1.701893213 | M98: 98 | N98: 97 | O98: 0.3375772875 | P98: 0.7248187676 | Q98: 98 | R98: 97 | S98: 1.198242687 | T98: 0.9176799274 | U98: 98 | V98: 97 | W98: 1.245684565 | X98: 0.8520128456 | Y98: 98 | Z98: 97 | AA98: 0.1387696744 | AB98: 2 | AC98: 98 | AD98: 97 | AE98: 0.1698261869 | AF98: 1.957012866 | AG98: 98 | AH98: 97 | AI98: 1.35346467 | AJ98: 1.702828106 | AK98: 98 | AL98: 97 | AM98: 0.34524145 | AN98: 0.7142103544 | AO98: 98 | AP98: 97 | AQ98: 1.206929351 | AR98: 0.9056562116 | AS98: 98 | AT98: 97 | AU98: 1.251122126 | AV98: 0.8444864091 | AW98: 98 | AY98: 0.9797979797 | AZ98: =1 -> 1
A99: 99 | B99: 98 | C99: 0.1402002896 | D99: 1 | E99: 99 | F99: 98 | G99: 0.1708360546 | H99: 1.042573361 | I99: 99 | J99: 98 | K99: 1.354717761 | L99: 1.298106787 | M99: 99 | N99: 98 | O99: 0.3382205458 | P99: 0.2751812324 | Q99: 99 | R99: 98 | S99: 1.199437766 | T99: 0.0823200726 | U99: 99 | V99: 98 | W99: 1.246691755 | X99: 0.1479871544 | Y99: 99 | Z99: 98 | AA99: 0.1402002896 | AB99: 1 | AC99: 99 | AD99: 98 | AE99: 0.171133806 | AF99: 1.042987134 | AG99: 99 | AH99: 98 | AI99: 1.354045008 | AJ99: 1.297171894 | AK99: 99 | AL99: 98 | AM99: 0.3458543552 | AN99: 0.2857896456 | AO99: 99 | AP99: 98 | AQ99: 1.208090027 | AR99: 0.0943437884 | AS99: 99 | AT99: 98 | AU99: 1.252107781 | AV99: 0.1555135909 | AW99: 99 | AY99: 0.9898989898 | AZ99: =1 -> 1
A100: 100 | B100: 99 | C100: 0.1416309048 | D100: 2 | E100: 100 | F100: 99 | G100: 0.1721448576 | H100: 1.957426639 | I100: 100 | J100: 99 | K100: 1.355295424 | L100: 1.701893213 | M100: 100 | N100: 99 | O100: 0.3388638041 | P100: 0.7248187676 | Q100: 100 | R100: 99 | S100: 1.200632844 | T100: 0.9176799274 | U100: 100 | V100: 99 | W100: 1.247698945 | X100: 0.8520128456 | Y100: 100 | Z100: 99 | AA100: 0.1416309048 | AB100: 2 | AC100: 100 | AD100: 99 | AE100: 0.1724414251 | AF100: 1.957012866 | AG100: 100 | AH100: 99 | AI100: 1.354625346 | AJ100: 1.702828106 | AK100: 100 | AL100: 99 | AM100: 0.3464672604 | AN100: 0.7142103544 | AO100: 100 | AP100: 99 | AQ100: 1.209250703 | AR100: 0.9056562116 | AS100: 100 | AT100: 99 | AU100: 1.253093436 | AV100: 0.8444864091 | AW100: 100 | AY100: 0.9999999999 | AZ100: =1 -> 1
A101: 101 | B101: 100 | C101: 0.14306152 | D101: 1 | E101: 101 | F101: 100 | G101: 0.1734536606 | H101: 1.042573361 | I101: 101 | J101: 100 | K101: 1.355873087 | L101: 1.298106787 | M101: 101 | N101: 100 | O101: 0.3395070624 | P101: 0.2751812324 | Q101: 101 | R101: 100 | S101: 1.201827923 | T101: 0.0823200726 | U101: 101 | V101: 100 | W101: 1.248706134 | X101: 0.1479871544 | Y101: 101 | Z101: 100 | AA101: 0.14306152 | AB101: 1 | AC101: 101 | AD101: 100 | AE101: 0.1737490442 | AF101: 1.042987134 | AG101: 101 | AH101: 100 | AI101: 1.355205684 | AJ101: 1.297171894 | AK101: 101 | AL101: 100 | AM101: 0.3470801656 | AN101: 0.2857896456 | AO101: 101 | AP101: 100 | AQ101: 1.210411378 | AR101: 0.0943437884 | AS101: 101 | AT101: 100 | AU101: 1.254079091 | AV101: 0.1555135909
A102: 102 | B102: 101 | C102: 0.1444921352 | D102: 2 | E102: 102 | F102: 101 | G102: 0.1747624636 | H102: 1.957426639 | I102: 102 | J102: 101 | K102: 1.35645075 | L102: 1.701893213 | M102: 102 | N102: 101 | O102: 0.3401503207 | P102: 0.7248187676 | Q102: 102 | R102: 101 | S102: 1.203023001 | T102: 0.9176799274 | U102: 102 | V102: 101 | W102: 1.249713324 | X102: 0.8520128456 | Y102: 102 | Z102: 101 | AA102: 0.1444921352 | AB102: 2 | AC102: 102 | AD102: 101 | AE102: 0.1750566633 | AF102: 1.957012866 | AG102: 102 | AH102: 101 | AI102: 1.355786022 | AJ102: 1.702828106 | AK102: 102 | AL102: 101 | AM102: 0.3476930708 | AN102: 0.7142103544 | AO102: 102 | AP102: 101 | AQ102: 1.211572054 | AR102: 0.9056562116 | AS102: 102 | AT102: 101 | AU102: 1.255064746 | AV102: 0.8444864091
A103: 103 | B103: 102 | C103: 0.1459227504 | D103: 1 | E103: 103 | F103: 102 | G103: 0.1760712666 | H103: 1.042573361 | I103: 103 | J103: 102 | K103: 1.357028413 | L103: 1.298106787 | M103: 103 | N103: 102 | O103: 0.340793579 | P103: 0.2751812324 | Q103: 103 | R103: 102 | S103: 1.20421808 | T103: 0.0823200726 | U103: 103 | V103: 102 | W103: 1.250720514 | X103: 0.1479871544 | Y103: 103 | Z103: 102 | AA103: 0.1459227504 | AB103: 1 | AC103: 103 | AD103: 102 | AE103: 0.1763642824 | AF103: 1.042987134 | AG103: 103 | AH103: 102 | AI103: 1.35636636 | AJ103: 1.297171894 | AK103: 103 | AL103: 102 | AM103: 0.348305976 | AN103: 0.2857896456 | AO103: 103 | AP103: 102 | AQ103: 1.21273273 | AR103: 0.0943437884 | AS103: 103 | AT103: 102 | AU103: 1.256050401 | AV103: 0.1555135909
A104: 104 | B104: 103 | C104: 0.1473533656 | D104: 2 | E104: 104 | F104: 103 | G104: 0.1773800696 | H104: 1.957426639 | I104: 104 | J104: 103 | K104: 1.357606076 | L104: 1.701893213 | M104: 104 | N104: 103 | O104: 0.3414368373 | P104: 0.7248187676 | Q104: 104 | R104: 103 | S104: 1.205413158 | T104: 0.9176799274 | U104: 104 | V104: 103 | W104: 1.251727704 | X104: 0.8520128456 | Y104: 104 | Z104: 103 | AA104: 0.1473533656 | AB104: 2 | AC104: 104 | AD104: 103 | AE104: 0.1776719015 | AF104: 1.957012866 | AG104: 104 | AH104: 103 | AI104: 1.356946698 | AJ104: 1.702828106 | AK104: 104 | AL104: 103 | AM104: 0.3489188812 | AN104: 0.7142103544 | AO104: 104 | AP104: 103 | AQ104: 1.213893406 | AR104: 0.9056562116 | AS104: 104 | AT104: 103 | AU104: 1.257036056 | AV104: 0.8444864091
A105: 105 | B105: 104 | C105: 0.1487839808 | D105: 1 | E105: 105 | F105: 104 | G105: 0.1786888726 | H105: 1.042573361 | I105: 105 | J105: 104 | K105: 1.358183739 | L105: 1.298106787 | M105: 105 | N105: 104 | O105: 0.3420800956 | P105: 0.2751812324 | Q105: 105 | R105: 104 | S105: 1.206608237 | T105: 0.0823200726 | U105: 105 | V105: 104 | W105: 1.252734894 | X105: 0.1479871544 | Y105: 105 | Z105: 104 | AA105: 0.1487839808 | AB105: 1 | AC105: 105 | AD105: 104 | AE105: 0.1789795206 | AF105: 1.042987134 | AG105: 105 | AH105: 104 | AI105: 1.357527036 | AJ105: 1.297171894 | AK105: 105 | AL105: 104 | AM105: 0.3495317864 | AN105: 0.2857896456 | AO105: 105 | AP105: 104 | AQ105: 1.215054082 | AR105: 0.0943437884 | AS105: 105 | AT105: 104 | AU105: 1.258021711 | AV105: 0.1555135909
A106: 106 | B106: 105 | C106: 0.150214596 | D106: 2 | E106: 106 | F106: 105 | G106: 0.1799976756 | H106: 1.957426639 | I106: 106 | J106: 105 | K106: 1.358761402 | L106: 1.701893213 | M106: 106 | N106: 105 | O106: 0.3427233539 | P106: 0.7248187676 | Q106: 106 | R106: 105 | S106: 1.207803315 | T106: 0.9176799274 | U106: 106 | V106: 105 | W106: 1.253742083 | X106: 0.8520128456 | Y106: 106 | Z106: 105 | AA106: 0.150214596 | AB106: 2 | AC106: 106 | AD106: 105 | AE106: 0.1802871397 | AF106: 1.957012866 | AG106: 106 | AH106: 105 | AI106: 1.358107374 | AJ106: 1.702828106 | AK106: 106 | AL106: 105 | AM106: 0.3501446916 | AN106: 0.7142103544 | AO106: 106 | AP106: 105 | AQ106: 1.216214758 | AR106: 0.9056562116 | AS106: 106 | AT106: 105 | AU106: 1.259007366 | AV106: 0.8444864091
A107: 107 | B107: 106 | C107: 0.1516452112 | D107: 1 | E107: 107 | F107: 106 | G107: 0.1813064786 | H107: 1.042573361 | I107: 107 | J107: 106 | K107: 1.359339065 | L107: 1.298106787 | M107: 107 | N107: 106 | O107: 0.3433666122 | P107: 0.2751812324 | Q107: 107 | R107: 106 | S107: 1.208998394 | T107: 0.0823200726 | U107: 107 | V107: 106 | W107: 1.254749273 | X107: 0.1479871544 | Y107: 107 | Z107: 106 | AA107: 0.1516452112 | AB107: 1 | AC107: 107 | AD107: 106 | AE107: 0.1815947588 | AF107: 1.042987134 | AG107: 107 | AH107: 106 | AI107: 1.358687712 | AJ107: 1.297171894 | AK107: 107 | AL107: 106 | AM107: 0.3507575968 | AN107: 0.2857896456 | AO107: 107 | AP107: 106 | AQ107: 1.217375434 | AR107: 0.0943437884 | AS107: 107 | AT107: 106 | AU107: 1.259993021 | AV107: 0.1555135909
A108: 108 | B108: 107 | C108: 0.1530758264 | D108: 2 | E108: 108 | F108: 107 | G108: 0.1826152816 | H108: 1.957426639 | I108: 108 | J108: 107 | K108: 1.359916728 | L108: 1.701893213 | M108: 108 | N108: 107 | O108: 0.3440098705 | P108: 0.7248187676 | Q108: 108 | R108: 107 | S108: 1.210193472 | T108: 0.9176799274 | U108: 108 | V108: 107 | W108: 1.255756463 | X108: 0.8520128456 | Y108: 108 | Z108: 107 | AA108: 0.1530758264 | AB108: 2 | AC108: 108 | AD108: 107 | AE108: 0.1829023779 | AF108: 1.957012866 | AG108: 108 | AH108: 107 | AI108: 1.359268049 | AJ108: 1.702828106 | AK108: 108 | AL108: 107 | AM108: 0.351370502 | AN108: 0.7142103544 | AO108: 108 | AP108: 107 | AQ108: 1.21853611 | AR108: 0.9056562116 | AS108: 108 | AT108: 107 | AU108: 1.260978676 | AV108: 0.8444864091
A109: 109 | B109: 108 | C109: 0.1545064416 | D109: 1 | E109: 109 | F109: 108 | G109: 0.1839240846 | H109: 1.042573361 | I109: 109 | J109: 108 | K109: 1.360494391 | L109: 1.298106787 | M109: 109 | N109: 108 | O109: 0.3446531288 | P109: 0.2751812324 | Q109: 109 | R109: 108 | S109: 1.211388551 | T109: 0.0823200726 | U109: 109 | V109: 108 | W109: 1.256763653 | X109: 0.1479871544 | Y109: 109 | Z109: 108 | AA109: 0.1545064416 | AB109: 1 | AC109: 109 | AD109: 108 | AE109: 0.184209997 | AF109: 1.042987134 | AG109: 109 | AH109: 108 | AI109: 1.359848387 | AJ109: 1.297171894 | AK109: 109 | AL109: 108 | AM109: 0.3519834072 | AN109: 0.2857896456 | AO109: 109 | AP109: 108 | AQ109: 1.219696786 | AR109: 0.0943437884 | AS109: 109 | AT109: 108 | AU109: 1.261964331 | AV109: 0.1555135909
A110: 110 | B110: 109 | C110: 0.1559370568 | D110: 2 | E110: 110 | F110: 109 | G110: 0.1852328876 | H110: 1.957426639 | I110: 110 | J110: 109 | K110: 1.361072054 | L110: 1.701893213 | M110: 110 | N110: 109 | O110: 0.3452963871 | P110: 0.7248187676 | Q110: 110 | R110: 109 | S110: 1.212583629 | T110: 0.9176799274 | U110: 110 | V110: 109 | W110: 1.257770843 | X110: 0.8520128456 | Y110: 110 | Z110: 109 | AA110: 0.1559370568 | AB110: 2 | AC110: 110 | AD110: 109 | AE110: 0.1855176161 | AF110: 1.957012866 | AG110: 110 | AH110: 109 | AI110: 1.360428725 | AJ110: 1.702828106 | AK110: 110 | AL110: 109 | AM110: 0.3525963124 | AN110: 0.7142103544 | AO110: 110 | AP110: 109 | AQ110: 1.220857462 | AR110: 0.9056562116 | AS110: 110 | AT110: 109 | AU110: 1.262949986 | AV110: 0.8444864091
A111: 111 | B111: 110 | C111: 0.157367672 | D111: 1 | E111: 111 | F111: 110 | G111: 0.1865416906 | H111: 1.042573361 | I111: 111 | J111: 110 | K111: 1.361649717 | L111: 1.298106787 | M111: 111 | N111: 110 | O111: 0.3459396454 | P111: 0.2751812324 | Q111: 111 | R111: 110 | S111: 1.213778708 | T111: 0.0823200726 | U111: 111 | V111: 110 | W111: 1.258778032 | X111: 0.1479871544 | Y111: 111 | Z111: 110 | AA111: 0.157367672 | AB111: 1 | AC111: 111 | AD111: 110 | AE111: 0.1868252352 | AF111: 1.042987134 | AG111: 111 | AH111: 110 | AI111: 1.361009063 | AJ111: 1.297171894 | AK111: 111 | AL111: 110 | AM111: 0.3532092176 | AN111: 0.2857896456 | AO111: 111 | AP111: 110 | AQ111: 1.222018137 | AR111: 0.0943437884 | AS111: 111 | AT111: 110 | AU111: 1.263935641 | AV111: 0.1555135909
A112: 112 | B112: 111 | C112: 0.1587982872 | D112: 2 | E112: 112 | F112: 111 | G112: 0.1878504936 | H112: 1.957426639 | I112: 112 | J112: 111 | K112: 1.36222738 | L112: 1.701893213 | M112: 112 | N112: 111 | O112: 0.3465829037 | P112: 0.7248187676 | Q112: 112 | R112: 111 | S112: 1.214973786 | T112: 0.9176799274 | U112: 112 | V112: 111 | W112: 1.259785222 | X112: 0.8520128456 | Y112: 112 | Z112: 111 | AA112: 0.1587982872 | AB112: 2 | AC112: 112 | AD112: 111 | AE112: 0.1881328543 | AF112: 1.957012866 | AG112: 112 | AH112: 111 | AI112: 1.361589401 | AJ112: 1.702828106 | AK112: 112 | AL112: 111 | AM112: 0.3538221228 | AN112: 0.7142103544 | AO112: 112 | AP112: 111 | AQ112: 1.223178813 | AR112: 0.9056562116 | AS112: 112 | AT112: 111 | AU112: 1.264921296 | AV112: 0.8444864091
A113: 113 | B113: 112 | C113: 0.1602289024 | D113: 1 | E113: 113 | F113: 112 | G113: 0.1891592966 | H113: 1.042573361 | I113: 113 | J113: 112 | K113: 1.362805043 | L113: 1.298106787 | M113: 113 | N113: 112 | O113: 0.347226162 | P113: 0.2751812324 | Q113: 113 | R113: 112 | S113: 1.216168865 | T113: 0.0823200726 | U113: 113 | V113: 112 | W113: 1.260792412 | X113: 0.1479871544 | Y113: 113 | Z113: 112 | AA113: 0.1602289024 | AB113: 1 | AC113: 113 | AD113: 112 | AE113: 0.1894404734 | AF113: 1.042987134 | AG113: 113 | AH113: 112 | AI113: 1.362169739 | AJ113: 1.297171894 | AK113: 113 | AL113: 112 | AM113: 0.354435028 | AN113: 0.2857896456 | AO113: 113 | AP113: 112 | AQ113: 1.224339489 | AR113: 0.0943437884 | AS113: 113 | AT113: 112 | AU113: 1.265906951 | AV113: 0.1555135909
A114: 114 | B114: 113 | C114: 0.1616595176 | D114: 2 | E114: 114 | F114: 113 | G114: 0.1904680996 | H114: 1.957426639 | I114: 114 | J114: 113 | K114: 1.363382706 | L114: 1.701893213 | M114: 114 | N114: 113 | O114: 0.3478694203 | P114: 0.7248187676 | Q114: 114 | R114: 113 | S114: 1.217363943 | T114: 0.9176799274 | U114: 114 | V114: 113 | W114: 1.261799602 | X114: 0.8520128456 | Y114: 114 | Z114: 113 | AA114: 0.1616595176 | AB114: 2 | AC114: 114 | AD114: 113 | AE114: 0.1907480925 | AF114: 1.957012866 | AG114: 114 | AH114: 113 | AI114: 1.362750077 | AJ114: 1.702828106 | AK114: 114 | AL114: 113 | AM114: 0.3550479332 | AN114: 0.7142103544 | AO114: 114 | AP114: 113 | AQ114: 1.225500165 | AR114: 0.9056562116 | AS114: 114 | AT114: 113 | AU114: 1.266892606 | AV114: 0.8444864091
A115: 115 | B115: 114 | C115: 0.1630901328 | D115: 1 | E115: 115 | F115: 114 | G115: 0.1917769026 | H115: 1.042573361 | I115: 115 | J115: 114 | K115: 1.363960369 | L115: 1.298106787 | M115: 115 | N115: 114 | O115: 0.3485126786 | P115: 0.2751812324 | Q115: 115 | R115: 114 | S115: 1.218559022 | T115: 0.0823200726 | U115: 115 | V115: 114 | W115: 1.262806792 | X115: 0.1479871544 | Y115: 115 | Z115: 114 | AA115: 0.1630901328 | AB115: 1 | AC115: 115 | AD115: 114 | AE115: 0.1920557116 | AF115: 1.042987134 | AG115: 115 | AH115: 114 | AI115: 1.363330415 | AJ115: 1.297171894 | AK115: 115 | AL115: 114 | AM115: 0.3556608384 | AN115: 0.2857896456 | AO115: 115 | AP115: 114 | AQ115: 1.226660841 | AR115: 0.0943437884 | AS115: 115 | AT115: 114 | AU115: 1.267878261 | AV115: 0.1555135909
A116: 116 | B116: 115 | C116: 0.164520748 | D116: 2 | E116: 116 | F116: 115 | G116: 0.1930857056 | H116: 1.957426639 | I116: 116 | J116: 115 | K116: 1.364538032 | L116: 1.701893213 | M116: 116 | N116: 115 | O116: 0.3491559369 | P116: 0.7248187676 | Q116: 116 | R116: 115 | S116: 1.2197541 | T116: 0.9176799274 | U116: 116 | V116: 115 | W116: 1.263813981 | X116: 0.8520128456 | Y116: 116 | Z116: 115 | AA116: 0.164520748 | AB116: 2 | AC116: 116 | AD116: 115 | AE116: 0.1933633307 | AF116: 1.957012866 | AG116: 116 | AH116: 115 | AI116: 1.363910753 | AJ116: 1.702828106 | AK116: 116 | AL116: 115 | AM116: 0.3562737436 | AN116: 0.7142103544 | AO116: 116 | AP116: 115 | AQ116: 1.227821517 | AR116: 0.9056562116 | AS116: 116 | AT116: 115 | AU116: 1.268863916 | AV116: 0.8444864091
A117: 117 | B117: 116 | C117: 0.1659513632 | D117: 1 | E117: 117 | F117: 116 | G117: 0.1943945086 | H117: 1.042573361 | I117: 117 | J117: 116 | K117: 1.365115695 | L117: 1.298106787 | M117: 117 | N117: 116 | O117: 0.3497991952 | P117: 0.2751812324 | Q117: 117 | R117: 116 | S117: 1.220949179 | T117: 0.0823200726 | U117: 117 | V117: 116 | W117: 1.264821171 | X117: 0.1479871544 | Y117: 117 | Z117: 116 | AA117: 0.1659513632 | AB117: 1 | AC117: 117 | AD117: 116 | AE117: 0.1946709498 | AF117: 1.042987134 | AG117: 117 | AH117: 116 | AI117: 1.364491091 | AJ117: 1.297171894 | AK117: 117 | AL117: 116 | AM117: 0.3568866488 | AN117: 0.2857896456 | AO117: 117 | AP117: 116 | AQ117: 1.228982193 | AR117: 0.0943437884 | AS117: 117 | AT117: 116 | AU117: 1.269849571 | AV117: 0.1555135909
A118: 118 | B118: 117 | C118: 0.1673819784 | D118: 2 | E118: 118 | F118: 117 | G118: 0.1957033116 | H118: 1.957426639 | I118: 118 | J118: 117 | K118: 1.365693358 | L118: 1.701893213 | M118: 118 | N118: 117 | O118: 0.3504424535 | P118: 0.7248187676 | Q118: 118 | R118: 117 | S118: 1.222144257 | T118: 0.9176799274 | U118: 118 | V118: 117 | W118: 1.265828361 | X118: 0.8520128456 | Y118: 118 | Z118: 117 | AA118: 0.1673819784 | AB118: 2 | AC118: 118 | AD118: 117 | AE118: 0.1959785689 | AF118: 1.957012866 | AG118: 118 | AH118: 117 | AI118: 1.365071428 | AJ118: 1.702828106 | AK118: 118 | AL118: 117 | AM118: 0.357499554 | AN118: 0.7142103544 | AO118: 118 | AP118: 117 | AQ118: 1.230142869 | AR118: 0.9056562116 | AS118: 118 | AT118: 117 | AU118: 1.270835226 | AV118: 0.8444864091
A119: 119 | B119: 118 | C119: 0.1688125936 | D119: 1 | E119: 119 | F119: 118 | G119: 0.1970121146 | H119: 1.042573361 | I119: 119 | J119: 118 | K119: 1.366271021 | L119: 1.298106787 | M119: 119 | N119: 118 | O119: 0.3510857118 | P119: 0.2751812324 | Q119: 119 | R119: 118 | S119: 1.223339336 | T119: 0.0823200726 | U119: 119 | V119: 118 | W119: 1.266835551 | X119: 0.1479871544 | Y119: 119 | Z119: 118 | AA119: 0.1688125936 | AB119: 1 | AC119: 119 | AD119: 118 | AE119: 0.197286188 | AF119: 1.042987134 | AG119: 119 | AH119: 118 | AI119: 1.365651766 | AJ119: 1.297171894 | AK119: 119 | AL119: 118 | AM119: 0.3581124592 | AN119: 0.2857896456 | AO119: 119 | AP119: 118 | AQ119: 1.231303545 | AR119: 0.0943437884 | AS119: 119 | AT119: 118 | AU119: 1.271820881 | AV119: 0.1555135909
A120: 120 | B120: 119 | C120: 0.1702432088 | D120: 2 | E120: 120 | F120: 119 | G120: 0.1983209176 | H120: 1.957426639 | I120: 120 | J120: 119 | K120: 1.366848684 | L120: 1.701893213 | M120: 120 | N120: 119 | O120: 0.3517289701 | P120: 0.7248187676 | Q120: 120 | R120: 119 | S120: 1.224534414 | T120: 0.9176799274 | U120: 120 | V120: 119 | W120: 1.267842741 | X120: 0.8520128456 | Y120: 120 | Z120: 119 | AA120: 0.1702432088 | AB120: 2 | AC120: 120 | AD120: 119 | AE120: 0.1985938071 | AF120: 1.957012866 | AG120: 120 | AH120: 119 | AI120: 1.366232104 | AJ120: 1.702828106 | AK120: 120 | AL120: 119 | AM120: 0.3587253644 | AN120: 0.7142103544 | AO120: 120 | AP120: 119 | AQ120: 1.232464221 | AR120: 0.9056562116 | AS120: 120 | AT120: 119 | AU120: 1.272806536 | AV120: 0.8444864091
A121: 121 | B121: 120 | C121: 0.171673824 | D121: 1 | E121: 121 | F121: 120 | G121: 0.1996297206 | H121: 1.042573361 | I121: 121 | J121: 120 | K121: 1.367426347 | L121: 1.298106787 | M121: 121 | N121: 120 | O121: 0.3523722284 | P121: 0.2751812324 | Q121: 121 | R121: 120 | S121: 1.225729493 | T121: 0.0823200726 | U121: 121 | V121: 120 | W121: 1.26884993 | X121: 0.1479871544 | Y121: 121 | Z121: 120 | AA121: 0.171673824 | AB121: 1 | AC121: 121 | AD121: 120 | AE121: 0.1999014262 | AF121: 1.042987134 | AG121: 121 | AH121: 120 | AI121: 1.366812442 | AJ121: 1.297171894 | AK121: 121 | AL121: 120 | AM121: 0.3593382696 | AN121: 0.2857896456 | AO121: 121 | AP121: 120 | AQ121: 1.233624896 | AR121: 0.0943437884 | AS121: 121 | AT121: 120 | AU121: 1.273792191 | AV121: 0.1555135909
A122: 122 | B122: 121 | C122: 0.1731044392 | D122: 2 | E122: 122 | F122: 121 | G122: 0.2009385236 | H122: 1.957426639 | I122: 122 | J122: 121 | K122: 1.36800401 | L122: 1.701893213 | M122: 122 | N122: 121 | O122: 0.3530154867 | P122: 0.7248187676 | Q122: 122 | R122: 121 | S122: 1.226924571 | T122: 0.9176799274 | U122: 122 | V122: 121 | W122: 1.26985712 | X122: 0.8520128456 | Y122: 122 | Z122: 121 | AA122: 0.1731044392 | AB122: 2 | AC122: 122 | AD122: 121 | AE122: 0.2012090453 | AF122: 1.957012866 | AG122: 122 | AH122: 121 | AI122: 1.36739278 | AJ122: 1.702828106 | AK122: 122 | AL122: 121 | AM122: 0.3599511748 | AN122: 0.7142103544 | AO122: 122 | AP122: 121 | AQ122: 1.234785572 | AR122: 0.9056562116 | AS122: 122 | AT122: 121 | AU122: 1.274777846 | AV122: 0.8444864091
A123: 123 | B123: 122 | C123: 0.1745350544 | D123: 1 | E123: 123 | F123: 122 | G123: 0.2022473266 | H123: 1.042573361 | I123: 123 | J123: 122 | K123: 1.368581673 | L123: 1.298106787 | M123: 123 | N123: 122 | O123: 0.353658745 | P123: 0.2751812324 | Q123: 123 | R123: 122 | S123: 1.22811965 | T123: 0.0823200726 | U123: 123 | V123: 122 | W123: 1.27086431 | X123: 0.1479871544 | Y123: 123 | Z123: 122 | AA123: 0.1745350544 | AB123: 1 | AC123: 123 | AD123: 122 | AE123: 0.2025166644 | AF123: 1.042987134 | AG123: 123 | AH123: 122 | AI123: 1.367973118 | AJ123: 1.297171894 | AK123: 123 | AL123: 122 | AM123: 0.36056408 | AN123: 0.2857896456 | AO123: 123 | AP123: 122 | AQ123: 1.235946248 | AR123: 0.0943437884 | AS123: 123 | AT123: 122 | AU123: 1.275763501 | AV123: 0.1555135909
A124: 124 | B124: 123 | C124: 0.1759656696 | D124: 2 | E124: 124 | F124: 123 | G124: 0.2035561296 | H124: 1.957426639 | I124: 124 | J124: 123 | K124: 1.369159336 | L124: 1.701893213 | M124: 124 | N124: 123 | O124: 0.3543020033 | P124: 0.7248187676 | Q124: 124 | R124: 123 | S124: 1.229314728 | T124: 0.9176799274 | U124: 124 | V124: 123 | W124: 1.2718715 | X124: 0.8520128456 | Y124: 124 | Z124: 123 | AA124: 0.1759656696 | AB124: 2 | AC124: 124 | AD124: 123 | AE124: 0.2038242835 | AF124: 1.957012866 | AG124: 124 | AH124: 123 | AI124: 1.368553456 | AJ124: 1.702828106 | AK124: 124 | AL124: 123 | AM124: 0.3611769852 | AN124: 0.7142103544 | AO124: 124 | AP124: 123 | AQ124: 1.237106924 | AR124: 0.9056562116 | AS124: 124 | AT124: 123 | AU124: 1.276749156 | AV124: 0.8444864091
A125: 125 | B125: 124 | C125: 0.1773962848 | D125: 1 | E125: 125 | F125: 124 | G125: 0.2048649326 | H125: 1.042573361 | I125: 125 | J125: 124 | K125: 1.369736999 | L125: 1.298106787 | M125: 125 | N125: 124 | O125: 0.3549452616 | P125: 0.2751812324 | Q125: 125 | R125: 124 | S125: 1.230509807 | T125: 0.0823200726 | U125: 125 | V125: 124 | W125: 1.27287869 | X125: 0.1479871544 | Y125: 125 | Z125: 124 | AA125: 0.1773962848 | AB125: 1 | AC125: 125 | AD125: 124 | AE125: 0.2051319026 | AF125: 1.042987134 | AG125: 125 | AH125: 124 | AI125: 1.369133794 | AJ125: 1.297171894 | AK125: 125 | AL125: 124 | AM125: 0.3617898904 | AN125: 0.2857896456 | AO125: 125 | AP125: 124 | AQ125: 1.2382676 | AR125: 0.0943437884 | AS125: 125 | AT125: 124 | AU125: 1.277734811 | AV125: 0.1555135909
A126: 126 | B126: 125 | C126: 0.1788269 | D126: 2 | E126: 126 | F126: 125 | G126: 0.2061737356 | H126: 1.957426639 | I126: 126 | J126: 125 | K126: 1.370314662 | L126: 1.701893213 | M126: 126 | N126: 125 | O126: 0.3555885199 | P126: 0.7248187676 | Q126: 126 | R126: 125 | S126: 1.231704885 | T126: 0.9176799274 | U126: 126 | V126: 125 | W126: 1.273885879 | X126: 0.8520128456 | Y126: 126 | Z126: 125 | AA126: 0.1788269 | AB126: 2 | AC126: 126 | AD126: 125 | AE126: 0.2064395217 | AF126: 1.957012866 | AG126: 126 | AH126: 125 | AI126: 1.369714132 | AJ126: 1.702828106 | AK126: 126 | AL126: 125 | AM126: 0.3624027956 | AN126: 0.7142103544 | AO126: 126 | AP126: 125 | AQ126: 1.239428276 | AR126: 0.9056562116 | AS126: 126 | AT126: 125 | AU126: 1.278720466 | AV126: 0.8444864091
A127: 127 | B127: 126 | C127: 0.1802575152 | D127: 1 | E127: 127 | F127: 126 | G127: 0.2074825386 | H127: 1.042573361 | I127: 127 | J127: 126 | K127: 1.370892325 | L127: 1.298106787 | M127: 127 | N127: 126 | O127: 0.3562317782 | P127: 0.2751812324 | Q127: 127 | R127: 126 | S127: 1.232899964 | T127: 0.0823200726 | U127: 127 | V127: 126 | W127: 1.274893069 | X127: 0.1479871544 | Y127: 127 | Z127: 126 | AA127: 0.1802575152 | AB127: 1 | AC127: 127 | AD127: 126 | AE127: 0.2077471408 | AF127: 1.042987134 | AG127: 127 | AH127: 126 | AI127: 1.37029447 | AJ127: 1.297171894 | AK127: 127 | AL127: 126 | AM127: 0.3630157008 | AN127: 0.2857896456 | AO127: 127 | AP127: 126 | AQ127: 1.240588952 | AR127: 0.0943437884 | AS127: 127 | AT127: 126 | AU127: 1.279706121 | AV127: 0.1555135909
A128: 128 | B128: 127 | C128: 0.1816881304 | D128: 2 | E128: 128 | F128: 127 | G128: 0.2087913416 | H128: 1.957426639 | I128: 128 | J128: 127 | K128: 1.371469988 | L128: 1.701893213 | M128: 128 | N128: 127 | O128: 0.3568750365 | P128: 0.7248187676 | Q128: 128 | R128: 127 | S128: 1.234095042 | T128: 0.9176799274 | U128: 128 | V128: 127 | W128: 1.275900259 | X128: 0.8520128456 | Y128: 128 | Z128: 127 | AA128: 0.1816881304 | AB128: 2 | AC128: 128 | AD128: 127 | AE128: 0.2090547599 | AF128: 1.957012866 | AG128: 128 | AH128: 127 | AI128: 1.370874807 | AJ128: 1.702828106 | AK128: 128 | AL128: 127 | AM128: 0.363628606 | AN128: 0.7142103544 | AO128: 128 | AP128: 127 | AQ128: 1.241749628 | AR128: 0.9056562116 | AS128: 128 | AT128: 127 | AU128: 1.280691776 | AV128: 0.8444864091
A129: 129 | B129: =(A129-1) -> 128 | C129: =0+B129*0.0014306152 -> 0.1831187456 | D129: =IF(B129/2-INT(B129/2)<0.1,1,2) -> 1 | E129: 129 | F129: =(E129-1) -> 128 | G129: =0.0425733606+F129*0.001308803 -> 0.2101001446 | H129: =IF(F129/2-INT(F129/2)<0.1,1.0425733606,1.9574266394) -> 1.042573361 | I129: 129 | J129: =(I129-1) -> 128 | K129: =1.2981067867+J129*0.000577663 -> 1.372047651 | L129: =IF(J129/2-INT(J129/2)<0.1,1.2981067867,1.7018932133) -> 1.298106787 | M129: 129 | N129: =(M129-1) -> 128 | O129: =0.2751812324+N129*0.0006432583 -> 0.3575182948 | P129: =IF(N129/2-INT(N129/2)<0.1,0.2751812324,0.7248187676) -> 0.2751812324 | Q129: 129 | R129: =(Q129-1) -> 128 | S129: =1.0823200726+R129*0.0011950785 -> 1.235290121 | T129: =IF(R129/2-INT(R129/2)<0.1,0.0823200726,0.9176799274) -> 0.0823200726 | U129: 129 | V129: =(U129-1) -> 128 | W129: =1.1479871544+V129*0.0010071898 -> 1.276907449 | X129: =IF(V129/2-INT(V129/2)<0.1,0.1479871544,0.8520128456) -> 0.1479871544 | Y129: 129 | Z129: =(Y129-1) -> 128 | AA129: =0+Z129*0.0014306152 -> 0.1831187456 | AB129: =IF(Z129/2-INT(Z129/2)<0.1,1,2) -> 1 | AC129: 129 | AD129: =(AC129-1) -> 128 | AE129: =0.0429871342+AD129*0.0013076191 -> 0.210362379 | AF129: =IF(AD129/2-INT(AD129/2)<0.1,1.0429871342,1.9570128658) -> 1.042987134 | AG129: 129 | AH129: =(AG129-1) -> 128 | AI129: =1.2971718942+AH129*0.0005803379 -> 1.371455145 | AJ129: =IF(AH129/2-INT(AH129/2)<0.1,1.2971718942,1.7028281058) -> 1.297171894 | AK129: 129 | AL129: =(AK129-1) -> 128 | AM129: =0.2857896456+AL129*0.0006129052 -> 0.3642415112 | AN129: =IF(AL129/2-INT(AL129/2)<0.1,0.2857896456,0.7142103544) -> 0.2857896456 | AO129: 129 | AP129: =(AO129-1) -> 128 | AQ129: =1.0943437884+AP129*0.0011606759 -> 1.242910304 | AR129: =IF(AP129/2-INT(AP129/2)<0.1,0.0943437884,0.9056562116) -> 0.0943437884 | AS129: 129 | AT129: =(AS129-1) -> 128 | AU129: =1.1555135909+AT129*0.000985655 -> 1.281677431 | AV129: =IF(AT129/2-INT(AT129/2)<0.1,0.1555135909,0.8444864091) -> 0.1555135909
A130: 130 | B130: 129 | C130: 0.1845493608 | D130: 2 | E130: 130 | F130: 129 | G130: 0.2114089476 | H130: 1.957426639 | I130: 130 | J130: 129 | K130: 1.372625314 | L130: 1.701893213 | M130: 130 | N130: 129 | O130: 0.3581615531 | P130: 0.7248187676 | Q130: 130 | R130: 129 | S130: 1.236485199 | T130: 0.9176799274 | U130: 130 | V130: 129 | W130: 1.277914639 | X130: 0.8520128456 | Y130: 130 | Z130: 129 | AA130: 0.1845493608 | AB130: 2 | AC130: 130 | AD130: 129 | AE130: 0.2116699981 | AF130: 1.957012866 | AG130: 130 | AH130: 129 | AI130: 1.372035483 | AJ130: 1.702828106 | AK130: 130 | AL130: 129 | AM130: 0.3648544164 | AN130: 0.7142103544 | AO130: 130 | AP130: 129 | AQ130: 1.24407098 | AR130: 0.9056562116 | AS130: 130 | AT130: 129 | AU130: 1.282663086 | AV130: 0.8444864091
A131: 131 | B131: 130 | C131: 0.185979976 | D131: 1 | E131: 131 | F131: 130 | G131: 0.2127177506 | H131: 1.042573361 | I131: 131 | J131: 130 | K131: 1.373202977 | L131: 1.298106787 | M131: 131 | N131: 130 | O131: 0.3588048114 | P131: 0.2751812324 | Q131: 131 | R131: 130 | S131: 1.237680278 | T131: 0.0823200726 | U131: 131 | V131: 130 | W131: 1.278921828 | X131: 0.1479871544 | Y131: 131 | Z131: 130 | AA131: 0.185979976 | AB131: 1 | AC131: 131 | AD131: 130 | AE131: 0.2129776172 | AF131: 1.042987134 | AG131: 131 | AH131: 130 | AI131: 1.372615821 | AJ131: 1.297171894 | AK131: 131 | AL131: 130 | AM131: 0.3654673216 | AN131: 0.2857896456 | AO131: 131 | AP131: 130 | AQ131: 1.245231655 | AR131: 0.0943437884 | AS131: 131 | AT131: 130 | AU131: 1.283648741 | AV131: 0.1555135909
A132: 132 | B132: 131 | C132: 0.1874105912 | D132: 2 | E132: 132 | F132: 131 | G132: 0.2140265536 | H132: 1.957426639 | I132: 132 | J132: 131 | K132: 1.37378064 | L132: 1.701893213 | M132: 132 | N132: 131 | O132: 0.3594480697 | P132: 0.7248187676 | Q132: 132 | R132: 131 | S132: 1.238875356 | T132: 0.9176799274 | U132: 132 | V132: 131 | W132: 1.279929018 | X132: 0.8520128456 | Y132: 132 | Z132: 131 | AA132: 0.1874105912 | AB132: 2 | AC132: 132 | AD132: 131 | AE132: 0.2142852363 | AF132: 1.957012866 | AG132: 132 | AH132: 131 | AI132: 1.373196159 | AJ132: 1.702828106 | AK132: 132 | AL132: 131 | AM132: 0.3660802268 | AN132: 0.7142103544 | AO132: 132 | AP132: 131 | AQ132: 1.246392331 | AR132: 0.9056562116 | AS132: 132 | AT132: 131 | AU132: 1.284634396 | AV132: 0.8444864091
A133: 133 | B133: 132 | C133: 0.1888412064 | D133: 1 | E133: 133 | F133: 132 | G133: 0.2153353566 | H133: 1.042573361 | I133: 133 | J133: 132 | K133: 1.374358303 | L133: 1.298106787 | M133: 133 | N133: 132 | O133: 0.360091328 | P133: 0.2751812324 | Q133: 133 | R133: 132 | S133: 1.240070435 | T133: 0.0823200726 | U133: 133 | V133: 132 | W133: 1.280936208 | X133: 0.1479871544 | Y133: 133 | Z133: 132 | AA133: 0.1888412064 | AB133: 1 | AC133: 133 | AD133: 132 | AE133: 0.2155928554 | AF133: 1.042987134 | AG133: 133 | AH133: 132 | AI133: 1.373776497 | AJ133: 1.297171894 | AK133: 133 | AL133: 132 | AM133: 0.366693132 | AN133: 0.2857896456 | AO133: 133 | AP133: 132 | AQ133: 1.247553007 | AR133: 0.0943437884 | AS133: 133 | AT133: 132 | AU133: 1.285620051 | AV133: 0.1555135909
A134: 134 | B134: 133 | C134: 0.1902718216 | D134: 2 | E134: 134 | F134: 133 | G134: 0.2166441596 | H134: 1.957426639 | I134: 134 | J134: 133 | K134: 1.374935966 | L134: 1.701893213 | M134: 134 | N134: 133 | O134: 0.3607345863 | P134: 0.7248187676 | Q134: 134 | R134: 133 | S134: 1.241265513 | T134: 0.9176799274 | U134: 134 | V134: 133 | W134: 1.281943398 | X134: 0.8520128456 | Y134: 134 | Z134: 133 | AA134: 0.1902718216 | AB134: 2 | AC134: 134 | AD134: 133 | AE134: 0.2169004745 | AF134: 1.957012866 | AG134: 134 | AH134: 133 | AI134: 1.374356835 | AJ134: 1.702828106 | AK134: 134 | AL134: 133 | AM134: 0.3673060372 | AN134: 0.7142103544 | AO134: 134 | AP134: 133 | AQ134: 1.248713683 | AR134: 0.9056562116 | AS134: 134 | AT134: 133 | AU134: 1.286605706 | AV134: 0.8444864091
A135: 135 | B135: 134 | C135: 0.1917024368 | D135: 1 | E135: 135 | F135: 134 | G135: 0.2179529626 | H135: 1.042573361 | I135: 135 | J135: 134 | K135: 1.375513629 | L135: 1.298106787 | M135: 135 | N135: 134 | O135: 0.3613778446 | P135: 0.2751812324 | Q135: 135 | R135: 134 | S135: 1.242460592 | T135: 0.0823200726 | U135: 135 | V135: 134 | W135: 1.282950588 | X135: 0.1479871544 | Y135: 135 | Z135: 134 | AA135: 0.1917024368 | AB135: 1 | AC135: 135 | AD135: 134 | AE135: 0.2182080936 | AF135: 1.042987134 | AG135: 135 | AH135: 134 | AI135: 1.374937173 | AJ135: 1.297171894 | AK135: 135 | AL135: 134 | AM135: 0.3679189424 | AN135: 0.2857896456 | AO135: 135 | AP135: 134 | AQ135: 1.249874359 | AR135: 0.0943437884 | AS135: 135 | AT135: 134 | AU135: 1.287591361 | AV135: 0.1555135909
A136: 136 | B136: 135 | C136: 0.193133052 | D136: 2 | E136: 136 | F136: 135 | G136: 0.2192617656 | H136: 1.957426639 | I136: 136 | J136: 135 | K136: 1.376091292 | L136: 1.701893213 | M136: 136 | N136: 135 | O136: 0.3620211029 | P136: 0.7248187676 | Q136: 136 | R136: 135 | S136: 1.24365567 | T136: 0.9176799274 | U136: 136 | V136: 135 | W136: 1.283957777 | X136: 0.8520128456 | Y136: 136 | Z136: 135 | AA136: 0.193133052 | AB136: 2 | AC136: 136 | AD136: 135 | AE136: 0.2195157127 | AF136: 1.957012866 | AG136: 136 | AH136: 135 | AI136: 1.375517511 | AJ136: 1.702828106 | AK136: 136 | AL136: 135 | AM136: 0.3685318476 | AN136: 0.7142103544 | AO136: 136 | AP136: 135 | AQ136: 1.251035035 | AR136: 0.9056562116 | AS136: 136 | AT136: 135 | AU136: 1.288577016 | AV136: 0.8444864091
A137: 137 | B137: 136 | C137: 0.1945636672 | D137: 1 | E137: 137 | F137: 136 | G137: 0.2205705686 | H137: 1.042573361 | I137: 137 | J137: 136 | K137: 1.376668955 | L137: 1.298106787 | M137: 137 | N137: 136 | O137: 0.3626643612 | P137: 0.2751812324 | Q137: 137 | R137: 136 | S137: 1.244850749 | T137: 0.0823200726 | U137: 137 | V137: 136 | W137: 1.284964967 | X137: 0.1479871544 | Y137: 137 | Z137: 136 | AA137: 0.1945636672 | AB137: 1 | AC137: 137 | AD137: 136 | AE137: 0.2208233318 | AF137: 1.042987134 | AG137: 137 | AH137: 136 | AI137: 1.376097849 | AJ137: 1.297171894 | AK137: 137 | AL137: 136 | AM137: 0.3691447528 | AN137: 0.2857896456 | AO137: 137 | AP137: 136 | AQ137: 1.252195711 | AR137: 0.0943437884 | AS137: 137 | AT137: 136 | AU137: 1.289562671 | AV137: 0.1555135909
A138: 138 | B138: 137 | C138: 0.1959942824 | D138: 2 | E138: 138 | F138: 137 | G138: 0.2218793716 | H138: 1.957426639 | I138: 138 | J138: 137 | K138: 1.377246618 | L138: 1.701893213 | M138: 138 | N138: 137 | O138: 0.3633076195 | P138: 0.7248187676 | Q138: 138 | R138: 137 | S138: 1.246045827 | T138: 0.9176799274 | U138: 138 | V138: 137 | W138: 1.285972157 | X138: 0.8520128456 | Y138: 138 | Z138: 137 | AA138: 0.1959942824 | AB138: 2 | AC138: 138 | AD138: 137 | AE138: 0.2221309509 | AF138: 1.957012866 | AG138: 138 | AH138: 137 | AI138: 1.376678186 | AJ138: 1.702828106 | AK138: 138 | AL138: 137 | AM138: 0.369757658 | AN138: 0.7142103544 | AO138: 138 | AP138: 137 | AQ138: 1.253356387 | AR138: 0.9056562116 | AS138: 138 | AT138: 137 | AU138: 1.290548326 | AV138: 0.8444864091
A139: 139 | B139: 138 | C139: 0.1974248976 | D139: 1 | E139: 139 | F139: 138 | G139: 0.2231881746 | H139: 1.042573361 | I139: 139 | J139: 138 | K139: 1.377824281 | L139: 1.298106787 | M139: 139 | N139: 138 | O139: 0.3639508778 | P139: 0.2751812324 | Q139: 139 | R139: 138 | S139: 1.247240906 | T139: 0.0823200726 | U139: 139 | V139: 138 | W139: 1.286979347 | X139: 0.1479871544 | Y139: 139 | Z139: 138 | AA139: 0.1974248976 | AB139: 1 | AC139: 139 | AD139: 138 | AE139: 0.22343857 | AF139: 1.042987134 | AG139: 139 | AH139: 138 | AI139: 1.377258524 | AJ139: 1.297171894 | AK139: 139 | AL139: 138 | AM139: 0.3703705632 | AN139: 0.2857896456 | AO139: 139 | AP139: 138 | AQ139: 1.254517063 | AR139: 0.0943437884 | AS139: 139 | AT139: 138 | AU139: 1.291533981 | AV139: 0.1555135909
A140: 140 | B140: 139 | C140: 0.1988555128 | D140: 2 | E140: 140 | F140: 139 | G140: 0.2244969776 | H140: 1.957426639 | I140: 140 | J140: 139 | K140: 1.378401944 | L140: 1.701893213 | M140: 140 | N140: 139 | O140: 0.3645941361 | P140: 0.7248187676 | Q140: 140 | R140: 139 | S140: 1.248435984 | T140: 0.9176799274 | U140: 140 | V140: 139 | W140: 1.287986537 | X140: 0.8520128456 | Y140: 140 | Z140: 139 | AA140: 0.1988555128 | AB140: 2 | AC140: 140 | AD140: 139 | AE140: 0.2247461891 | AF140: 1.957012866 | AG140: 140 | AH140: 139 | AI140: 1.377838862 | AJ140: 1.702828106 | AK140: 140 | AL140: 139 | AM140: 0.3709834684 | AN140: 0.7142103544 | AO140: 140 | AP140: 139 | AQ140: 1.255677738 | AR140: 0.9056562116 | AS140: 140 | AT140: 139 | AU140: 1.292519636 | AV140: 0.8444864091
A141: 141 | B141: 140 | C141: 0.200286128 | D141: 1 | E141: 141 | F141: 140 | G141: 0.2258057806 | H141: 1.042573361 | I141: 141 | J141: 140 | K141: 1.378979607 | L141: 1.298106787 | M141: 141 | N141: 140 | O141: 0.3652373944 | P141: 0.2751812324 | Q141: 141 | R141: 140 | S141: 1.249631063 | T141: 0.0823200726 | U141: 141 | V141: 140 | W141: 1.288993726 | X141: 0.1479871544 | Y141: 141 | Z141: 140 | AA141: 0.200286128 | AB141: 1 | AC141: 141 | AD141: 140 | AE141: 0.2260538082 | AF141: 1.042987134 | AG141: 141 | AH141: 140 | AI141: 1.3784192 | AJ141: 1.297171894 | AK141: 141 | AL141: 140 | AM141: 0.3715963736 | AN141: 0.2857896456 | AO141: 141 | AP141: 140 | AQ141: 1.256838414 | AR141: 0.0943437884 | AS141: 141 | AT141: 140 | AU141: 1.293505291 | AV141: 0.1555135909
A142: 142 | B142: 141 | C142: 0.2017167432 | D142: 2 | E142: 142 | F142: 141 | G142: 0.2271145836 | H142: 1.957426639 | I142: 142 | J142: 141 | K142: 1.37955727 | L142: 1.701893213 | M142: 142 | N142: 141 | O142: 0.3658806527 | P142: 0.7248187676 | Q142: 142 | R142: 141 | S142: 1.250826141 | T142: 0.9176799274 | U142: 142 | V142: 141 | W142: 1.290000916 | X142: 0.8520128456 | Y142: 142 | Z142: 141 | AA142: 0.2017167432 | AB142: 2 | AC142: 142 | AD142: 141 | AE142: 0.2273614273 | AF142: 1.957012866 | AG142: 142 | AH142: 141 | AI142: 1.378999538 | AJ142: 1.702828106 | AK142: 142 | AL142: 141 | AM142: 0.3722092788 | AN142: 0.7142103544 | AO142: 142 | AP142: 141 | AQ142: 1.25799909 | AR142: 0.9056562116 | AS142: 142 | AT142: 141 | AU142: 1.294490946 | AV142: 0.8444864091
A143: 143 | B143: 142 | C143: 0.2031473584 | D143: 1 | E143: 143 | F143: 142 | G143: 0.2284233866 | H143: 1.042573361 | I143: 143 | J143: 142 | K143: 1.380134933 | L143: 1.298106787 | M143: 143 | N143: 142 | O143: 0.366523911 | P143: 0.2751812324 | Q143: 143 | R143: 142 | S143: 1.25202122 | T143: 0.0823200726 | U143: 143 | V143: 142 | W143: 1.291008106 | X143: 0.1479871544 | Y143: 143 | Z143: 142 | AA143: 0.2031473584 | AB143: 1 | AC143: 143 | AD143: 142 | AE143: 0.2286690464 | AF143: 1.042987134 | AG143: 143 | AH143: 142 | AI143: 1.379579876 | AJ143: 1.297171894 | AK143: 143 | AL143: 142 | AM143: 0.372822184 | AN143: 0.2857896456 | AO143: 143 | AP143: 142 | AQ143: 1.259159766 | AR143: 0.0943437884 | AS143: 143 | AT143: 142 | AU143: 1.295476601 | AV143: 0.1555135909
A144: 144 | B144: 143 | C144: 0.2045779736 | D144: 2 | E144: 144 | F144: 143 | G144: 0.2297321896 | H144: 1.957426639 | I144: 144 | J144: 143 | K144: 1.380712596 | L144: 1.701893213 | M144: 144 | N144: 143 | O144: 0.3671671693 | P144: 0.7248187676 | Q144: 144 | R144: 143 | S144: 1.253216298 | T144: 0.9176799274 | U144: 144 | V144: 143 | W144: 1.292015296 | X144: 0.8520128456 | Y144: 144 | Z144: 143 | AA144: 0.2045779736 | AB144: 2 | AC144: 144 | AD144: 143 | AE144: 0.2299766655 | AF144: 1.957012866 | AG144: 144 | AH144: 143 | AI144: 1.380160214 | AJ144: 1.702828106 | AK144: 144 | AL144: 143 | AM144: 0.3734350892 | AN144: 0.7142103544 | AO144: 144 | AP144: 143 | AQ144: 1.260320442 | AR144: 0.9056562116 | AS144: 144 | AT144: 143 | AU144: 1.296462256 | AV144: 0.8444864091
A145: 145 | B145: 144 | C145: 0.2060085888 | D145: 1 | E145: 145 | F145: 144 | G145: 0.2310409926 | H145: 1.042573361 | I145: 145 | J145: 144 | K145: 1.381290259 | L145: 1.298106787 | M145: 145 | N145: 144 | O145: 0.3678104276 | P145: 0.2751812324 | Q145: 145 | R145: 144 | S145: 1.254411377 | T145: 0.0823200726 | U145: 145 | V145: 144 | W145: 1.293022486 | X145: 0.1479871544 | Y145: 145 | Z145: 144 | AA145: 0.2060085888 | AB145: 1 | AC145: 145 | AD145: 144 | AE145: 0.2312842846 | AF145: 1.042987134 | AG145: 145 | AH145: 144 | AI145: 1.380740552 | AJ145: 1.297171894 | AK145: 145 | AL145: 144 | AM145: 0.3740479944 | AN145: 0.2857896456 | AO145: 145 | AP145: 144 | AQ145: 1.261481118 | AR145: 0.0943437884 | AS145: 145 | AT145: 144 | AU145: 1.297447911 | AV145: 0.1555135909
A146: 146 | B146: 145 | C146: 0.207439204 | D146: 2 | E146: 146 | F146: 145 | G146: 0.2323497956 | H146: 1.957426639 | I146: 146 | J146: 145 | K146: 1.381867922 | L146: 1.701893213 | M146: 146 | N146: 145 | O146: 0.3684536859 | P146: 0.7248187676 | Q146: 146 | R146: 145 | S146: 1.255606455 | T146: 0.9176799274 | U146: 146 | V146: 145 | W146: 1.294029675 | X146: 0.8520128456 | Y146: 146 | Z146: 145 | AA146: 0.207439204 | AB146: 2 | AC146: 146 | AD146: 145 | AE146: 0.2325919037 | AF146: 1.957012866 | AG146: 146 | AH146: 145 | AI146: 1.38132089 | AJ146: 1.702828106 | AK146: 146 | AL146: 145 | AM146: 0.3746608996 | AN146: 0.7142103544 | AO146: 146 | AP146: 145 | AQ146: 1.262641794 | AR146: 0.9056562116 | AS146: 146 | AT146: 145 | AU146: 1.298433566 | AV146: 0.8444864091
A147: 147 | B147: 146 | C147: 0.2088698192 | D147: 1 | E147: 147 | F147: 146 | G147: 0.2336585986 | H147: 1.042573361 | I147: 147 | J147: 146 | K147: 1.382445585 | L147: 1.298106787 | M147: 147 | N147: 146 | O147: 0.3690969442 | P147: 0.2751812324 | Q147: 147 | R147: 146 | S147: 1.256801534 | T147: 0.0823200726 | U147: 147 | V147: 146 | W147: 1.295036865 | X147: 0.1479871544 | Y147: 147 | Z147: 146 | AA147: 0.2088698192 | AB147: 1 | AC147: 147 | AD147: 146 | AE147: 0.2338995228 | AF147: 1.042987134 | AG147: 147 | AH147: 146 | AI147: 1.381901228 | AJ147: 1.297171894 | AK147: 147 | AL147: 146 | AM147: 0.3752738048 | AN147: 0.2857896456 | AO147: 147 | AP147: 146 | AQ147: 1.26380247 | AR147: 0.0943437884 | AS147: 147 | AT147: 146 | AU147: 1.299419221 | AV147: 0.1555135909
A148: 148 | B148: 147 | C148: 0.2103004344 | D148: 2 | E148: 148 | F148: 147 | G148: 0.2349674016 | H148: 1.957426639 | I148: 148 | J148: 147 | K148: 1.383023248 | L148: 1.701893213 | M148: 148 | N148: 147 | O148: 0.3697402025 | P148: 0.7248187676 | Q148: 148 | R148: 147 | S148: 1.257996612 | T148: 0.9176799274 | U148: 148 | V148: 147 | W148: 1.296044055 | X148: 0.8520128456 | Y148: 148 | Z148: 147 | AA148: 0.2103004344 | AB148: 2 | AC148: 148 | AD148: 147 | AE148: 0.2352071419 | AF148: 1.957012866 | AG148: 148 | AH148: 147 | AI148: 1.382481566 | AJ148: 1.702828106 | AK148: 148 | AL148: 147 | AM148: 0.37588671 | AN148: 0.7142103544 | AO148: 148 | AP148: 147 | AQ148: 1.264963146 | AR148: 0.9056562116 | AS148: 148 | AT148: 147 | AU148: 1.300404876 | AV148: 0.8444864091
A149: 149 | B149: 148 | C149: 0.2117310496 | D149: 1 | E149: 149 | F149: 148 | G149: 0.2362762046 | H149: 1.042573361 | I149: 149 | J149: 148 | K149: 1.383600911 | L149: 1.298106787 | M149: 149 | N149: 148 | O149: 0.3703834608 | P149: 0.2751812324 | Q149: 149 | R149: 148 | S149: 1.259191691 | T149: 0.0823200726 | U149: 149 | V149: 148 | W149: 1.297051245 | X149: 0.1479871544 | Y149: 149 | Z149: 148 | AA149: 0.2117310496 | AB149: 1 | AC149: 149 | AD149: 148 | AE149: 0.236514761 | AF149: 1.042987134 | AG149: 149 | AH149: 148 | AI149: 1.383061903 | AJ149: 1.297171894 | AK149: 149 | AL149: 148 | AM149: 0.3764996152 | AN149: 0.2857896456 | AO149: 149 | AP149: 148 | AQ149: 1.266123822 | AR149: 0.0943437884 | AS149: 149 | AT149: 148 | AU149: 1.301390531 | AV149: 0.1555135909
A150: 150 | B150: 149 | C150: 0.2131616648 | D150: 2 | E150: 150 | F150: 149 | G150: 0.2375850076 | H150: 1.957426639 | I150: 150 | J150: 149 | K150: 1.384178574 | L150: 1.701893213 | M150: 150 | N150: 149 | O150: 0.3710267191 | P150: 0.7248187676 | Q150: 150 | R150: 149 | S150: 1.260386769 | T150: 0.9176799274 | U150: 150 | V150: 149 | W150: 1.298058435 | X150: 0.8520128456 | Y150: 150 | Z150: 149 | AA150: 0.2131616648 | AB150: 2 | AC150: 150 | AD150: 149 | AE150: 0.2378223801 | AF150: 1.957012866 | AG150: 150 | AH150: 149 | AI150: 1.383642241 | AJ150: 1.702828106 | AK150: 150 | AL150: 149 | AM150: 0.3771125204 | AN150: 0.7142103544 | AO150: 150 | AP150: 149 | AQ150: 1.267284497 | AR150: 0.9056562116 | AS150: 150 | AT150: 149 | AU150: 1.302376186 | AV150: 0.8444864091
A151: 151 | B151: 150 | C151: 0.21459228 | D151: 1 | E151: 151 | F151: 150 | G151: 0.2388938106 | H151: 1.042573361 | I151: 151 | J151: 150 | K151: 1.384756237 | L151: 1.298106787 | M151: 151 | N151: 150 | O151: 0.3716699774 | P151: 0.2751812324 | Q151: 151 | R151: 150 | S151: 1.261581848 | T151: 0.0823200726 | U151: 151 | V151: 150 | W151: 1.299065624 | X151: 0.1479871544 | Y151: 151 | Z151: 150 | AA151: 0.21459228 | AB151: 1 | AC151: 151 | AD151: 150 | AE151: 0.2391299992 | AF151: 1.042987134 | AG151: 151 | AH151: 150 | AI151: 1.384222579 | AJ151: 1.297171894 | AK151: 151 | AL151: 150 | AM151: 0.3777254256 | AN151: 0.2857896456 | AO151: 151 | AP151: 150 | AQ151: 1.268445173 | AR151: 0.0943437884 | AS151: 151 | AT151: 150 | AU151: 1.303361841 | AV151: 0.1555135909
A152: 152 | B152: 151 | C152: 0.2160228952 | D152: 2 | E152: 152 | F152: 151 | G152: 0.2402026136 | H152: 1.957426639 | I152: 152 | J152: 151 | K152: 1.3853339 | L152: 1.701893213 | M152: 152 | N152: 151 | O152: 0.3723132357 | P152: 0.7248187676 | Q152: 152 | R152: 151 | S152: 1.262776926 | T152: 0.9176799274 | U152: 152 | V152: 151 | W152: 1.300072814 | X152: 0.8520128456 | Y152: 152 | Z152: 151 | AA152: 0.2160228952 | AB152: 2 | AC152: 152 | AD152: 151 | AE152: 0.2404376183 | AF152: 1.957012866 | AG152: 152 | AH152: 151 | AI152: 1.384802917 | AJ152: 1.702828106 | AK152: 152 | AL152: 151 | AM152: 0.3783383308 | AN152: 0.7142103544 | AO152: 152 | AP152: 151 | AQ152: 1.269605849 | AR152: 0.9056562116 | AS152: 152 | AT152: 151 | AU152: 1.304347496 | AV152: 0.8444864091
A153: 153 | B153: 152 | C153: 0.2174535104 | D153: 1 | E153: 153 | F153: 152 | G153: 0.2415114166 | H153: 1.042573361 | I153: 153 | J153: 152 | K153: 1.385911563 | L153: 1.298106787 | M153: 153 | N153: 152 | O153: 0.372956494 | P153: 0.2751812324 | Q153: 153 | R153: 152 | S153: 1.263972005 | T153: 0.0823200726 | U153: 153 | V153: 152 | W153: 1.301080004 | X153: 0.1479871544 | Y153: 153 | Z153: 152 | AA153: 0.2174535104 | AB153: 1 | AC153: 153 | AD153: 152 | AE153: 0.2417452374 | AF153: 1.042987134 | AG153: 153 | AH153: 152 | AI153: 1.385383255 | AJ153: 1.297171894 | AK153: 153 | AL153: 152 | AM153: 0.378951236 | AN153: 0.2857896456 | AO153: 153 | AP153: 152 | AQ153: 1.270766525 | AR153: 0.0943437884 | AS153: 153 | AT153: 152 | AU153: 1.305333151 | AV153: 0.1555135909
A154: 154 | B154: 153 | C154: 0.2188841256 | D154: 2 | E154: 154 | F154: 153 | G154: 0.2428202196 | H154: 1.957426639 | I154: 154 | J154: 153 | K154: 1.386489226 | L154: 1.701893213 | M154: 154 | N154: 153 | O154: 0.3735997523 | P154: 0.7248187676 | Q154: 154 | R154: 153 | S154: 1.265167083 | T154: 0.9176799274 | U154: 154 | V154: 153 | W154: 1.302087194 | X154: 0.8520128456 | Y154: 154 | Z154: 153 | AA154: 0.2188841256 | AB154: 2 | AC154: 154 | AD154: 153 | AE154: 0.2430528565 | AF154: 1.957012866 | AG154: 154 | AH154: 153 | AI154: 1.385963593 | AJ154: 1.702828106 | AK154: 154 | AL154: 153 | AM154: 0.3795641412 | AN154: 0.7142103544 | AO154: 154 | AP154: 153 | AQ154: 1.271927201 | AR154: 0.9056562116 | AS154: 154 | AT154: 153 | AU154: 1.306318806 | AV154: 0.8444864091
A155: 155 | B155: 154 | C155: 0.2203147408 | D155: 1 | E155: 155 | F155: 154 | G155: 0.2441290226 | H155: 1.042573361 | I155: 155 | J155: 154 | K155: 1.387066889 | L155: 1.298106787 | M155: 155 | N155: 154 | O155: 0.3742430106 | P155: 0.2751812324 | Q155: 155 | R155: 154 | S155: 1.266362162 | T155: 0.0823200726 | U155: 155 | V155: 154 | W155: 1.303094384 | X155: 0.1479871544 | Y155: 155 | Z155: 154 | AA155: 0.2203147408 | AB155: 1 | AC155: 155 | AD155: 154 | AE155: 0.2443604756 | AF155: 1.042987134 | AG155: 155 | AH155: 154 | AI155: 1.386543931 | AJ155: 1.297171894 | AK155: 155 | AL155: 154 | AM155: 0.3801770464 | AN155: 0.2857896456 | AO155: 155 | AP155: 154 | AQ155: 1.273087877 | AR155: 0.0943437884 | AS155: 155 | AT155: 154 | AU155: 1.307304461 | AV155: 0.1555135909
A156: 156 | B156: 155 | C156: 0.221745356 | D156: 2 | E156: 156 | F156: 155 | G156: 0.2454378256 | H156: 1.957426639 | I156: 156 | J156: 155 | K156: 1.387644552 | L156: 1.701893213 | M156: 156 | N156: 155 | O156: 0.3748862689 | P156: 0.7248187676 | Q156: 156 | R156: 155 | S156: 1.26755724 | T156: 0.9176799274 | U156: 156 | V156: 155 | W156: 1.304101573 | X156: 0.8520128456 | Y156: 156 | Z156: 155 | AA156: 0.221745356 | AB156: 2 | AC156: 156 | AD156: 155 | AE156: 0.2456680947 | AF156: 1.957012866 | AG156: 156 | AH156: 155 | AI156: 1.387124269 | AJ156: 1.702828106 | AK156: 156 | AL156: 155 | AM156: 0.3807899516 | AN156: 0.7142103544 | AO156: 156 | AP156: 155 | AQ156: 1.274248553 | AR156: 0.9056562116 | AS156: 156 | AT156: 155 | AU156: 1.308290116 | AV156: 0.8444864091
A157: 157 | B157: 156 | C157: 0.2231759712 | D157: 1 | E157: 157 | F157: 156 | G157: 0.2467466286 | H157: 1.042573361 | I157: 157 | J157: 156 | K157: 1.388222215 | L157: 1.298106787 | M157: 157 | N157: 156 | O157: 0.3755295272 | P157: 0.2751812324 | Q157: 157 | R157: 156 | S157: 1.268752319 | T157: 0.0823200726 | U157: 157 | V157: 156 | W157: 1.305108763 | X157: 0.1479871544 | Y157: 157 | Z157: 156 | AA157: 0.2231759712 | AB157: 1 | AC157: 157 | AD157: 156 | AE157: 0.2469757138 | AF157: 1.042987134 | AG157: 157 | AH157: 156 | AI157: 1.387704607 | AJ157: 1.297171894 | AK157: 157 | AL157: 156 | AM157: 0.3814028568 | AN157: 0.2857896456 | AO157: 157 | AP157: 156 | AQ157: 1.275409229 | AR157: 0.0943437884 | AS157: 157 | AT157: 156 | AU157: 1.309275771 | AV157: 0.1555135909
A158: 158 | B158: 157 | C158: 0.2246065864 | D158: 2 | E158: 158 | F158: 157 | G158: 0.2480554316 | H158: 1.957426639 | I158: 158 | J158: 157 | K158: 1.388799878 | L158: 1.701893213 | M158: 158 | N158: 157 | O158: 0.3761727855 | P158: 0.7248187676 | Q158: 158 | R158: 157 | S158: 1.269947397 | T158: 0.9176799274 | U158: 158 | V158: 157 | W158: 1.306115953 | X158: 0.8520128456 | Y158: 158 | Z158: 157 | AA158: 0.2246065864 | AB158: 2 | AC158: 158 | AD158: 157 | AE158: 0.2482833329 | AF158: 1.957012866 | AG158: 158 | AH158: 157 | AI158: 1.388284944 | AJ158: 1.702828106 | AK158: 158 | AL158: 157 | AM158: 0.382015762 | AN158: 0.7142103544 | AO158: 158 | AP158: 157 | AQ158: 1.276569905 | AR158: 0.9056562116 | AS158: 158 | AT158: 157 | AU158: 1.310261426 | AV158: 0.8444864091
A159: 159 | B159: 158 | C159: 0.2260372016 | D159: 1 | E159: 159 | F159: 158 | G159: 0.2493642346 | H159: 1.042573361 | I159: 159 | J159: 158 | K159: 1.389377541 | L159: 1.298106787 | M159: 159 | N159: 158 | O159: 0.3768160438 | P159: 0.2751812324 | Q159: 159 | R159: 158 | S159: 1.271142476 | T159: 0.0823200726 | U159: 159 | V159: 158 | W159: 1.307123143 | X159: 0.1479871544 | Y159: 159 | Z159: 158 | AA159: 0.2260372016 | AB159: 1 | AC159: 159 | AD159: 158 | AE159: 0.249590952 | AF159: 1.042987134 | AG159: 159 | AH159: 158 | AI159: 1.388865282 | AJ159: 1.297171894 | AK159: 159 | AL159: 158 | AM159: 0.3826286672 | AN159: 0.2857896456 | AO159: 159 | AP159: 158 | AQ159: 1.277730581 | AR159: 0.0943437884 | AS159: 159 | AT159: 158 | AU159: 1.311247081 | AV159: 0.1555135909
A160: 160 | B160: 159 | C160: 0.2274678168 | D160: 2 | E160: 160 | F160: 159 | G160: 0.2506730376 | H160: 1.957426639 | I160: 160 | J160: 159 | K160: 1.389955204 | L160: 1.701893213 | M160: 160 | N160: 159 | O160: 0.3774593021 | P160: 0.7248187676 | Q160: 160 | R160: 159 | S160: 1.272337554 | T160: 0.9176799274 | U160: 160 | V160: 159 | W160: 1.308130333 | X160: 0.8520128456 | Y160: 160 | Z160: 159 | AA160: 0.2274678168 | AB160: 2 | AC160: 160 | AD160: 159 | AE160: 0.2508985711 | AF160: 1.957012866 | AG160: 160 | AH160: 159 | AI160: 1.38944562 | AJ160: 1.702828106 | AK160: 160 | AL160: 159 | AM160: 0.3832415724 | AN160: 0.7142103544 | AO160: 160 | AP160: 159 | AQ160: 1.278891257 | AR160: 0.9056562116 | AS160: 160 | AT160: 159 | AU160: 1.312232736 | AV160: 0.8444864091
A161: 161 | B161: 160 | C161: 0.228898432 | D161: 1 | E161: 161 | F161: 160 | G161: 0.2519818406 | H161: 1.042573361 | I161: 161 | J161: 160 | K161: 1.390532867 | L161: 1.298106787 | M161: 161 | N161: 160 | O161: 0.3781025604 | P161: 0.2751812324 | Q161: 161 | R161: 160 | S161: 1.273532633 | T161: 0.0823200726 | U161: 161 | V161: 160 | W161: 1.309137522 | X161: 0.1479871544 | Y161: 161 | Z161: 160 | AA161: 0.228898432 | AB161: 1 | AC161: 161 | AD161: 160 | AE161: 0.2522061902 | AF161: 1.042987134 | AG161: 161 | AH161: 160 | AI161: 1.390025958 | AJ161: 1.297171894 | AK161: 161 | AL161: 160 | AM161: 0.3838544776 | AN161: 0.2857896456 | AO161: 161 | AP161: 160 | AQ161: 1.280051932 | AR161: 0.0943437884 | AS161: 161 | AT161: 160 | AU161: 1.313218391 | AV161: 0.1555135909
A162: 162 | B162: 161 | C162: 0.2303290472 | D162: 2 | E162: 162 | F162: 161 | G162: 0.2532906436 | H162: 1.957426639 | I162: 162 | J162: 161 | K162: 1.39111053 | L162: 1.701893213 | M162: 162 | N162: 161 | O162: 0.3787458187 | P162: 0.7248187676 | Q162: 162 | R162: 161 | S162: 1.274727711 | T162: 0.9176799274 | U162: 162 | V162: 161 | W162: 1.310144712 | X162: 0.8520128456 | Y162: 162 | Z162: 161 | AA162: 0.2303290472 | AB162: 2 | AC162: 162 | AD162: 161 | AE162: 0.2535138093 | AF162: 1.957012866 | AG162: 162 | AH162: 161 | AI162: 1.390606296 | AJ162: 1.702828106 | AK162: 162 | AL162: 161 | AM162: 0.3844673828 | AN162: 0.7142103544 | AO162: 162 | AP162: 161 | AQ162: 1.281212608 | AR162: 0.9056562116 | AS162: 162 | AT162: 161 | AU162: 1.314204046 | AV162: 0.8444864091
A163: 163 | B163: 162 | C163: 0.2317596624 | D163: 1 | E163: 163 | F163: 162 | G163: 0.2545994466 | H163: 1.042573361 | I163: 163 | J163: 162 | K163: 1.391688193 | L163: 1.298106787 | M163: 163 | N163: 162 | O163: 0.379389077 | P163: 0.2751812324 | Q163: 163 | R163: 162 | S163: 1.27592279 | T163: 0.0823200726 | U163: 163 | V163: 162 | W163: 1.311151902 | X163: 0.1479871544 | Y163: 163 | Z163: 162 | AA163: 0.2317596624 | AB163: 1 | AC163: 163 | AD163: 162 | AE163: 0.2548214284 | AF163: 1.042987134 | AG163: 163 | AH163: 162 | AI163: 1.391186634 | AJ163: 1.297171894 | AK163: 163 | AL163: 162 | AM163: 0.385080288 | AN163: 0.2857896456 | AO163: 163 | AP163: 162 | AQ163: 1.282373284 | AR163: 0.0943437884 | AS163: 163 | AT163: 162 | AU163: 1.315189701 | AV163: 0.1555135909
A164: 164 | B164: 163 | C164: 0.2331902776 | D164: 2 | E164: 164 | F164: 163 | G164: 0.2559082496 | H164: 1.957426639 | I164: 164 | J164: 163 | K164: 1.392265856 | L164: 1.701893213 | M164: 164 | N164: 163 | O164: 0.3800323353 | P164: 0.7248187676 | Q164: 164 | R164: 163 | S164: 1.277117868 | T164: 0.9176799274 | U164: 164 | V164: 163 | W164: 1.312159092 | X164: 0.8520128456 | Y164: 164 | Z164: 163 | AA164: 0.2331902776 | AB164: 2 | AC164: 164 | AD164: 163 | AE164: 0.2561290475 | AF164: 1.957012866 | AG164: 164 | AH164: 163 | AI164: 1.391766972 | AJ164: 1.702828106 | AK164: 164 | AL164: 163 | AM164: 0.3856931932 | AN164: 0.7142103544 | AO164: 164 | AP164: 163 | AQ164: 1.28353396 | AR164: 0.9056562116 | AS164: 164 | AT164: 163 | AU164: 1.316175356 | AV164: 0.8444864091
A165: 165 | B165: 164 | C165: 0.2346208928 | D165: 1 | E165: 165 | F165: 164 | G165: 0.2572170526 | H165: 1.042573361 | I165: 165 | J165: 164 | K165: 1.392843519 | L165: 1.298106787 | M165: 165 | N165: 164 | O165: 0.3806755936 | P165: 0.2751812324 | Q165: 165 | R165: 164 | S165: 1.278312947 | T165: 0.0823200726 | U165: 165 | V165: 164 | W165: 1.313166282 | X165: 0.1479871544 | Y165: 165 | Z165: 164 | AA165: 0.2346208928 | AB165: 1 | AC165: 165 | AD165: 164 | AE165: 0.2574366666 | AF165: 1.042987134 | AG165: 165 | AH165: 164 | AI165: 1.39234731 | AJ165: 1.297171894 | AK165: 165 | AL165: 164 | AM165: 0.3863060984 | AN165: 0.2857896456 | AO165: 165 | AP165: 164 | AQ165: 1.284694636 | AR165: 0.0943437884 | AS165: 165 | AT165: 164 | AU165: 1.317161011 | AV165: 0.1555135909
A166: 166 | B166: 165 | C166: 0.236051508 | D166: 2 | E166: 166 | F166: 165 | G166: 0.2585258556 | H166: 1.957426639 | I166: 166 | J166: 165 | K166: 1.393421182 | L166: 1.701893213 | M166: 166 | N166: 165 | O166: 0.3813188519 | P166: 0.7248187676 | Q166: 166 | R166: 165 | S166: 1.279508025 | T166: 0.9176799274 | U166: 166 | V166: 165 | W166: 1.314173471 | X166: 0.8520128456 | Y166: 166 | Z166: 165 | AA166: 0.236051508 | AB166: 2 | AC166: 166 | AD166: 165 | AE166: 0.2587442857 | AF166: 1.957012866 | AG166: 166 | AH166: 165 | AI166: 1.392927648 | AJ166: 1.702828106 | AK166: 166 | AL166: 165 | AM166: 0.3869190036 | AN166: 0.7142103544 | AO166: 166 | AP166: 165 | AQ166: 1.285855312 | AR166: 0.9056562116 | AS166: 166 | AT166: 165 | AU166: 1.318146666 | AV166: 0.8444864091
A167: 167 | B167: 166 | C167: 0.2374821232 | D167: 1 | E167: 167 | F167: 166 | G167: 0.2598346586 | H167: 1.042573361 | I167: 167 | J167: 166 | K167: 1.393998845 | L167: 1.298106787 | M167: 167 | N167: 166 | O167: 0.3819621102 | P167: 0.2751812324 | Q167: 167 | R167: 166 | S167: 1.280703104 | T167: 0.0823200726 | U167: 167 | V167: 166 | W167: 1.315180661 | X167: 0.1479871544 | Y167: 167 | Z167: 166 | AA167: 0.2374821232 | AB167: 1 | AC167: 167 | AD167: 166 | AE167: 0.2600519048 | AF167: 1.042987134 | AG167: 167 | AH167: 166 | AI167: 1.393507986 | AJ167: 1.297171894 | AK167: 167 | AL167: 166 | AM167: 0.3875319088 | AN167: 0.2857896456 | AO167: 167 | AP167: 166 | AQ167: 1.287015988 | AR167: 0.0943437884 | AS167: 167 | AT167: 166 | AU167: 1.319132321 | AV167: 0.1555135909
A168: 168 | B168: 167 | C168: 0.2389127384 | D168: 2 | E168: 168 | F168: 167 | G168: 0.2611434616 | H168: 1.957426639 | I168: 168 | J168: 167 | K168: 1.394576508 | L168: 1.701893213 | M168: 168 | N168: 167 | O168: 0.3826053685 | P168: 0.7248187676 | Q168: 168 | R168: 167 | S168: 1.281898182 | T168: 0.9176799274 | U168: 168 | V168: 167 | W168: 1.316187851 | X168: 0.8520128456 | Y168: 168 | Z168: 167 | AA168: 0.2389127384 | AB168: 2 | AC168: 168 | AD168: 167 | AE168: 0.2613595239 | AF168: 1.957012866 | AG168: 168 | AH168: 167 | AI168: 1.394088323 | AJ168: 1.702828106 | AK168: 168 | AL168: 167 | AM168: 0.388144814 | AN168: 0.7142103544 | AO168: 168 | AP168: 167 | AQ168: 1.288176664 | AR168: 0.9056562116 | AS168: 168 | AT168: 167 | AU168: 1.320117976 | AV168: 0.8444864091
A169: 169 | B169: 168 | C169: 0.2403433536 | D169: 1 | E169: 169 | F169: 168 | G169: 0.2624522646 | H169: 1.042573361 | I169: 169 | J169: 168 | K169: 1.395154171 | L169: 1.298106787 | M169: 169 | N169: 168 | O169: 0.3832486268 | P169: 0.2751812324 | Q169: 169 | R169: 168 | S169: 1.283093261 | T169: 0.0823200726 | U169: 169 | V169: 168 | W169: 1.317195041 | X169: 0.1479871544 | Y169: 169 | Z169: 168 | AA169: 0.2403433536 | AB169: 1 | AC169: 169 | AD169: 168 | AE169: 0.262667143 | AF169: 1.042987134 | AG169: 169 | AH169: 168 | AI169: 1.394668661 | AJ169: 1.297171894 | AK169: 169 | AL169: 168 | AM169: 0.3887577192 | AN169: 0.2857896456 | AO169: 169 | AP169: 168 | AQ169: 1.28933734 | AR169: 0.0943437884 | AS169: 169 | AT169: 168 | AU169: 1.321103631 | AV169: 0.1555135909
A170: 170 | B170: 169 | C170: 0.2417739688 | D170: 2 | E170: 170 | F170: 169 | G170: 0.2637610676 | H170: 1.957426639 | I170: 170 | J170: 169 | K170: 1.395731834 | L170: 1.701893213 | M170: 170 | N170: 169 | O170: 0.3838918851 | P170: 0.7248187676 | Q170: 170 | R170: 169 | S170: 1.284288339 | T170: 0.9176799274 | U170: 170 | V170: 169 | W170: 1.318202231 | X170: 0.8520128456 | Y170: 170 | Z170: 169 | AA170: 0.2417739688 | AB170: 2 | AC170: 170 | AD170: 169 | AE170: 0.2639747621 | AF170: 1.957012866 | AG170: 170 | AH170: 169 | AI170: 1.395248999 | AJ170: 1.702828106 | AK170: 170 | AL170: 169 | AM170: 0.3893706244 | AN170: 0.7142103544 | AO170: 170 | AP170: 169 | AQ170: 1.290498016 | AR170: 0.9056562116 | AS170: 170 | AT170: 169 | AU170: 1.322089286 | AV170: 0.8444864091
A171: 171 | B171: 170 | C171: 0.243204584 | D171: 1 | E171: 171 | F171: 170 | G171: 0.2650698706 | H171: 1.042573361 | I171: 171 | J171: 170 | K171: 1.396309497 | L171: 1.298106787 | M171: 171 | N171: 170 | O171: 0.3845351434 | P171: 0.2751812324 | Q171: 171 | R171: 170 | S171: 1.285483418 | T171: 0.0823200726 | U171: 171 | V171: 170 | W171: 1.31920942 | X171: 0.1479871544 | Y171: 171 | Z171: 170 | AA171: 0.243204584 | AB171: 1 | AC171: 171 | AD171: 170 | AE171: 0.2652823812 | AF171: 1.042987134 | AG171: 171 | AH171: 170 | AI171: 1.395829337 | AJ171: 1.297171894 | AK171: 171 | AL171: 170 | AM171: 0.3899835296 | AN171: 0.2857896456 | AO171: 171 | AP171: 170 | AQ171: 1.291658691 | AR171: 0.0943437884 | AS171: 171 | AT171: 170 | AU171: 1.323074941 | AV171: 0.1555135909
A172: 172 | B172: 171 | C172: 0.2446351992 | D172: 2 | E172: 172 | F172: 171 | G172: 0.2663786736 | H172: 1.957426639 | I172: 172 | J172: 171 | K172: 1.39688716 | L172: 1.701893213 | M172: 172 | N172: 171 | O172: 0.3851784017 | P172: 0.7248187676 | Q172: 172 | R172: 171 | S172: 1.286678496 | T172: 0.9176799274 | U172: 172 | V172: 171 | W172: 1.32021661 | X172: 0.8520128456 | Y172: 172 | Z172: 171 | AA172: 0.2446351992 | AB172: 2 | AC172: 172 | AD172: 171 | AE172: 0.2665900003 | AF172: 1.957012866 | AG172: 172 | AH172: 171 | AI172: 1.396409675 | AJ172: 1.702828106 | AK172: 172 | AL172: 171 | AM172: 0.3905964348 | AN172: 0.7142103544 | AO172: 172 | AP172: 171 | AQ172: 1.292819367 | AR172: 0.9056562116 | AS172: 172 | AT172: 171 | AU172: 1.324060596 | AV172: 0.8444864091
A173: 173 | B173: 172 | C173: 0.2460658144 | D173: 1 | E173: 173 | F173: 172 | G173: 0.2676874766 | H173: 1.042573361 | I173: 173 | J173: 172 | K173: 1.397464823 | L173: 1.298106787 | M173: 173 | N173: 172 | O173: 0.38582166 | P173: 0.2751812324 | Q173: 173 | R173: 172 | S173: 1.287873575 | T173: 0.0823200726 | U173: 173 | V173: 172 | W173: 1.3212238 | X173: 0.1479871544 | Y173: 173 | Z173: 172 | AA173: 0.2460658144 | AB173: 1 | AC173: 173 | AD173: 172 | AE173: 0.2678976194 | AF173: 1.042987134 | AG173: 173 | AH173: 172 | AI173: 1.396990013 | AJ173: 1.297171894 | AK173: 173 | AL173: 172 | AM173: 0.39120934 | AN173: 0.2857896456 | AO173: 173 | AP173: 172 | AQ173: 1.293980043 | AR173: 0.0943437884 | AS173: 173 | AT173: 172 | AU173: 1.325046251 | AV173: 0.1555135909
A174: 174 | B174: 173 | C174: 0.2474964296 | D174: 2 | E174: 174 | F174: 173 | G174: 0.2689962796 | H174: 1.957426639 | I174: 174 | J174: 173 | K174: 1.398042486 | L174: 1.701893213 | M174: 174 | N174: 173 | O174: 0.3864649183 | P174: 0.7248187676 | Q174: 174 | R174: 173 | S174: 1.289068653 | T174: 0.9176799274 | U174: 174 | V174: 173 | W174: 1.32223099 | X174: 0.8520128456 | Y174: 174 | Z174: 173 | AA174: 0.2474964296 | AB174: 2 | AC174: 174 | AD174: 173 | AE174: 0.2692052385 | AF174: 1.957012866 | AG174: 174 | AH174: 173 | AI174: 1.397570351 | AJ174: 1.702828106 | AK174: 174 | AL174: 173 | AM174: 0.3918222452 | AN174: 0.7142103544 | AO174: 174 | AP174: 173 | AQ174: 1.295140719 | AR174: 0.9056562116 | AS174: 174 | AT174: 173 | AU174: 1.326031906 | AV174: 0.8444864091
A175: 175 | B175: 174 | C175: 0.2489270448 | D175: 1 | E175: 175 | F175: 174 | G175: 0.2703050826 | H175: 1.042573361 | I175: 175 | J175: 174 | K175: 1.398620149 | L175: 1.298106787 | M175: 175 | N175: 174 | O175: 0.3871081766 | P175: 0.2751812324 | Q175: 175 | R175: 174 | S175: 1.290263732 | T175: 0.0823200726 | U175: 175 | V175: 174 | W175: 1.32323818 | X175: 0.1479871544 | Y175: 175 | Z175: 174 | AA175: 0.2489270448 | AB175: 1 | AC175: 175 | AD175: 174 | AE175: 0.2705128576 | AF175: 1.042987134 | AG175: 175 | AH175: 174 | AI175: 1.398150689 | AJ175: 1.297171894 | AK175: 175 | AL175: 174 | AM175: 0.3924351504 | AN175: 0.2857896456 | AO175: 175 | AP175: 174 | AQ175: 1.296301395 | AR175: 0.0943437884 | AS175: 175 | AT175: 174 | AU175: 1.327017561 | AV175: 0.1555135909
A176: 176 | B176: 175 | C176: 0.25035766 | D176: 2 | E176: 176 | F176: 175 | G176: 0.2716138856 | H176: 1.957426639 | I176: 176 | J176: 175 | K176: 1.399197812 | L176: 1.701893213 | M176: 176 | N176: 175 | O176: 0.3877514349 | P176: 0.7248187676 | Q176: 176 | R176: 175 | S176: 1.29145881 | T176: 0.9176799274 | U176: 176 | V176: 175 | W176: 1.324245369 | X176: 0.8520128456 | Y176: 176 | Z176: 175 | AA176: 0.25035766 | AB176: 2 | AC176: 176 | AD176: 175 | AE176: 0.2718204767 | AF176: 1.957012866 | AG176: 176 | AH176: 175 | AI176: 1.398731027 | AJ176: 1.702828106 | AK176: 176 | AL176: 175 | AM176: 0.3930480556 | AN176: 0.7142103544 | AO176: 176 | AP176: 175 | AQ176: 1.297462071 | AR176: 0.9056562116 | AS176: 176 | AT176: 175 | AU176: 1.328003216 | AV176: 0.8444864091
A177: 177 | B177: 176 | C177: 0.2517882752 | D177: 1 | E177: 177 | F177: 176 | G177: 0.2729226886 | H177: 1.042573361 | I177: 177 | J177: 176 | K177: 1.399775475 | L177: 1.298106787 | M177: 177 | N177: 176 | O177: 0.3883946932 | P177: 0.2751812324 | Q177: 177 | R177: 176 | S177: 1.292653889 | T177: 0.0823200726 | U177: 177 | V177: 176 | W177: 1.325252559 | X177: 0.1479871544 | Y177: 177 | Z177: 176 | AA177: 0.2517882752 | AB177: 1 | AC177: 177 | AD177: 176 | AE177: 0.2731280958 | AF177: 1.042987134 | AG177: 177 | AH177: 176 | AI177: 1.399311365 | AJ177: 1.297171894 | AK177: 177 | AL177: 176 | AM177: 0.3936609608 | AN177: 0.2857896456 | AO177: 177 | AP177: 176 | AQ177: 1.298622747 | AR177: 0.0943437884 | AS177: 177 | AT177: 176 | AU177: 1.328988871 | AV177: 0.1555135909
A178: 178 | B178: 177 | C178: 0.2532188904 | D178: 2 | E178: 178 | F178: 177 | G178: 0.2742314916 | H178: 1.957426639 | I178: 178 | J178: 177 | K178: 1.400353138 | L178: 1.701893213 | M178: 178 | N178: 177 | O178: 0.3890379515 | P178: 0.7248187676 | Q178: 178 | R178: 177 | S178: 1.293848967 | T178: 0.9176799274 | U178: 178 | V178: 177 | W178: 1.326259749 | X178: 0.8520128456 | Y178: 178 | Z178: 177 | AA178: 0.2532188904 | AB178: 2 | AC178: 178 | AD178: 177 | AE178: 0.2744357149 | AF178: 1.957012866 | AG178: 178 | AH178: 177 | AI178: 1.399891702 | AJ178: 1.702828106 | AK178: 178 | AL178: 177 | AM178: 0.394273866 | AN178: 0.7142103544 | AO178: 178 | AP178: 177 | AQ178: 1.299783423 | AR178: 0.9056562116 | AS178: 178 | AT178: 177 | AU178: 1.329974526 | AV178: 0.8444864091
A179: 179 | B179: 178 | C179: 0.2546495056 | D179: 1 | E179: 179 | F179: 178 | G179: 0.2755402946 | H179: 1.042573361 | I179: 179 | J179: 178 | K179: 1.400930801 | L179: 1.298106787 | M179: 179 | N179: 178 | O179: 0.3896812098 | P179: 0.2751812324 | Q179: 179 | R179: 178 | S179: 1.295044046 | T179: 0.0823200726 | U179: 179 | V179: 178 | W179: 1.327266939 | X179: 0.1479871544 | Y179: 179 | Z179: 178 | AA179: 0.2546495056 | AB179: 1 | AC179: 179 | AD179: 178 | AE179: 0.275743334 | AF179: 1.042987134 | AG179: 179 | AH179: 178 | AI179: 1.40047204 | AJ179: 1.297171894 | AK179: 179 | AL179: 178 | AM179: 0.3948867712 | AN179: 0.2857896456 | AO179: 179 | AP179: 178 | AQ179: 1.300944099 | AR179: 0.0943437884 | AS179: 179 | AT179: 178 | AU179: 1.330960181 | AV179: 0.1555135909
A180: 180 | B180: 179 | C180: 0.2560801208 | D180: 2 | E180: 180 | F180: 179 | G180: 0.2768490976 | H180: 1.957426639 | I180: 180 | J180: 179 | K180: 1.401508464 | L180: 1.701893213 | M180: 180 | N180: 179 | O180: 0.3903244681 | P180: 0.7248187676 | Q180: 180 | R180: 179 | S180: 1.296239124 | T180: 0.9176799274 | U180: 180 | V180: 179 | W180: 1.328274129 | X180: 0.8520128456 | Y180: 180 | Z180: 179 | AA180: 0.2560801208 | AB180: 2 | AC180: 180 | AD180: 179 | AE180: 0.2770509531 | AF180: 1.957012866 | AG180: 180 | AH180: 179 | AI180: 1.401052378 | AJ180: 1.702828106 | AK180: 180 | AL180: 179 | AM180: 0.3954996764 | AN180: 0.7142103544 | AO180: 180 | AP180: 179 | AQ180: 1.302104775 | AR180: 0.9056562116 | AS180: 180 | AT180: 179 | AU180: 1.331945836 | AV180: 0.8444864091
A181: 181 | B181: 180 | C181: 0.257510736 | D181: 1 | E181: 181 | F181: 180 | G181: 0.2781579006 | H181: 1.042573361 | I181: 181 | J181: 180 | K181: 1.402086127 | L181: 1.298106787 | M181: 181 | N181: 180 | O181: 0.3909677264 | P181: 0.2751812324 | Q181: 181 | R181: 180 | S181: 1.297434203 | T181: 0.0823200726 | U181: 181 | V181: 180 | W181: 1.329281318 | X181: 0.1479871544 | Y181: 181 | Z181: 180 | AA181: 0.257510736 | AB181: 1 | AC181: 181 | AD181: 180 | AE181: 0.2783585722 | AF181: 1.042987134 | AG181: 181 | AH181: 180 | AI181: 1.401632716 | AJ181: 1.297171894 | AK181: 181 | AL181: 180 | AM181: 0.3961125816 | AN181: 0.2857896456 | AO181: 181 | AP181: 180 | AQ181: 1.30326545 | AR181: 0.0943437884 | AS181: 181 | AT181: 180 | AU181: 1.332931491 | AV181: 0.1555135909
A182: 182 | B182: 181 | C182: 0.2589413512 | D182: 2 | E182: 182 | F182: 181 | G182: 0.2794667036 | H182: 1.957426639 | I182: 182 | J182: 181 | K182: 1.40266379 | L182: 1.701893213 | M182: 182 | N182: 181 | O182: 0.3916109847 | P182: 0.7248187676 | Q182: 182 | R182: 181 | S182: 1.298629281 | T182: 0.9176799274 | U182: 182 | V182: 181 | W182: 1.330288508 | X182: 0.8520128456 | Y182: 182 | Z182: 181 | AA182: 0.2589413512 | AB182: 2 | AC182: 182 | AD182: 181 | AE182: 0.2796661913 | AF182: 1.957012866 | AG182: 182 | AH182: 181 | AI182: 1.402213054 | AJ182: 1.702828106 | AK182: 182 | AL182: 181 | AM182: 0.3967254868 | AN182: 0.7142103544 | AO182: 182 | AP182: 181 | AQ182: 1.304426126 | AR182: 0.9056562116 | AS182: 182 | AT182: 181 | AU182: 1.333917146 | AV182: 0.8444864091
A183: 183 | B183: 182 | C183: 0.2603719664 | D183: 1 | E183: 183 | F183: 182 | G183: 0.2807755066 | H183: 1.042573361 | I183: 183 | J183: 182 | K183: 1.403241453 | L183: 1.298106787 | M183: 183 | N183: 182 | O183: 0.392254243 | P183: 0.2751812324 | Q183: 183 | R183: 182 | S183: 1.29982436 | T183: 0.0823200726 | U183: 183 | V183: 182 | W183: 1.331295698 | X183: 0.1479871544 | Y183: 183 | Z183: 182 | AA183: 0.2603719664 | AB183: 1 | AC183: 183 | AD183: 182 | AE183: 0.2809738104 | AF183: 1.042987134 | AG183: 183 | AH183: 182 | AI183: 1.402793392 | AJ183: 1.297171894 | AK183: 183 | AL183: 182 | AM183: 0.397338392 | AN183: 0.2857896456 | AO183: 183 | AP183: 182 | AQ183: 1.305586802 | AR183: 0.0943437884 | AS183: 183 | AT183: 182 | AU183: 1.334902801 | AV183: 0.1555135909
A184: 184 | B184: 183 | C184: 0.2618025816 | D184: 2 | E184: 184 | F184: 183 | G184: 0.2820843096 | H184: 1.957426639 | I184: 184 | J184: 183 | K184: 1.403819116 | L184: 1.701893213 | M184: 184 | N184: 183 | O184: 0.3928975013 | P184: 0.7248187676 | Q184: 184 | R184: 183 | S184: 1.301019438 | T184: 0.9176799274 | U184: 184 | V184: 183 | W184: 1.332302888 | X184: 0.8520128456 | Y184: 184 | Z184: 183 | AA184: 0.2618025816 | AB184: 2 | AC184: 184 | AD184: 183 | AE184: 0.2822814295 | AF184: 1.957012866 | AG184: 184 | AH184: 183 | AI184: 1.40337373 | AJ184: 1.702828106 | AK184: 184 | AL184: 183 | AM184: 0.3979512972 | AN184: 0.7142103544 | AO184: 184 | AP184: 183 | AQ184: 1.306747478 | AR184: 0.9056562116 | AS184: 184 | AT184: 183 | AU184: 1.335888456 | AV184: 0.8444864091
A185: 185 | B185: 184 | C185: 0.2632331968 | D185: 1 | E185: 185 | F185: 184 | G185: 0.2833931126 | H185: 1.042573361 | I185: 185 | J185: 184 | K185: 1.404396779 | L185: 1.298106787 | M185: 185 | N185: 184 | O185: 0.3935407596 | P185: 0.2751812324 | Q185: 185 | R185: 184 | S185: 1.302214517 | T185: 0.0823200726 | U185: 185 | V185: 184 | W185: 1.333310078 | X185: 0.1479871544 | Y185: 185 | Z185: 184 | AA185: 0.2632331968 | AB185: 1 | AC185: 185 | AD185: 184 | AE185: 0.2835890486 | AF185: 1.042987134 | AG185: 185 | AH185: 184 | AI185: 1.403954068 | AJ185: 1.297171894 | AK185: 185 | AL185: 184 | AM185: 0.3985642024 | AN185: 0.2857896456 | AO185: 185 | AP185: 184 | AQ185: 1.307908154 | AR185: 0.0943437884 | AS185: 185 | AT185: 184 | AU185: 1.336874111 | AV185: 0.1555135909
A186: 186 | B186: 185 | C186: 0.264663812 | D186: 2 | E186: 186 | F186: 185 | G186: 0.2847019156 | H186: 1.957426639 | I186: 186 | J186: 185 | K186: 1.404974442 | L186: 1.701893213 | M186: 186 | N186: 185 | O186: 0.3941840179 | P186: 0.7248187676 | Q186: 186 | R186: 185 | S186: 1.303409595 | T186: 0.9176799274 | U186: 186 | V186: 185 | W186: 1.334317267 | X186: 0.8520128456 | Y186: 186 | Z186: 185 | AA186: 0.264663812 | AB186: 2 | AC186: 186 | AD186: 185 | AE186: 0.2848966677 | AF186: 1.957012866 | AG186: 186 | AH186: 185 | AI186: 1.404534406 | AJ186: 1.702828106 | AK186: 186 | AL186: 185 | AM186: 0.3991771076 | AN186: 0.7142103544 | AO186: 186 | AP186: 185 | AQ186: 1.30906883 | AR186: 0.9056562116 | AS186: 186 | AT186: 185 | AU186: 1.337859766 | AV186: 0.8444864091
A187: 187 | B187: 186 | C187: 0.2660944272 | D187: 1 | E187: 187 | F187: 186 | G187: 0.2860107186 | H187: 1.042573361 | I187: 187 | J187: 186 | K187: 1.405552105 | L187: 1.298106787 | M187: 187 | N187: 186 | O187: 0.3948272762 | P187: 0.2751812324 | Q187: 187 | R187: 186 | S187: 1.304604674 | T187: 0.0823200726 | U187: 187 | V187: 186 | W187: 1.335324457 | X187: 0.1479871544 | Y187: 187 | Z187: 186 | AA187: 0.2660944272 | AB187: 1 | AC187: 187 | AD187: 186 | AE187: 0.2862042868 | AF187: 1.042987134 | AG187: 187 | AH187: 186 | AI187: 1.405114744 | AJ187: 1.297171894 | AK187: 187 | AL187: 186 | AM187: 0.3997900128 | AN187: 0.2857896456 | AO187: 187 | AP187: 186 | AQ187: 1.310229506 | AR187: 0.0943437884 | AS187: 187 | AT187: 186 | AU187: 1.338845421 | AV187: 0.1555135909
A188: 188 | B188: 187 | C188: 0.2675250424 | D188: 2 | E188: 188 | F188: 187 | G188: 0.2873195216 | H188: 1.957426639 | I188: 188 | J188: 187 | K188: 1.406129768 | L188: 1.701893213 | M188: 188 | N188: 187 | O188: 0.3954705345 | P188: 0.7248187676 | Q188: 188 | R188: 187 | S188: 1.305799752 | T188: 0.9176799274 | U188: 188 | V188: 187 | W188: 1.336331647 | X188: 0.8520128456 | Y188: 188 | Z188: 187 | AA188: 0.2675250424 | AB188: 2 | AC188: 188 | AD188: 187 | AE188: 0.2875119059 | AF188: 1.957012866 | AG188: 188 | AH188: 187 | AI188: 1.405695081 | AJ188: 1.702828106 | AK188: 188 | AL188: 187 | AM188: 0.400402918 | AN188: 0.7142103544 | AO188: 188 | AP188: 187 | AQ188: 1.311390182 | AR188: 0.9056562116 | AS188: 188 | AT188: 187 | AU188: 1.339831076 | AV188: 0.8444864091
A189: 189 | B189: 188 | C189: 0.2689556576 | D189: 1 | E189: 189 | F189: 188 | G189: 0.2886283246 | H189: 1.042573361 | I189: 189 | J189: 188 | K189: 1.406707431 | L189: 1.298106787 | M189: 189 | N189: 188 | O189: 0.3961137928 | P189: 0.2751812324 | Q189: 189 | R189: 188 | S189: 1.306994831 | T189: 0.0823200726 | U189: 189 | V189: 188 | W189: 1.337338837 | X189: 0.1479871544 | Y189: 189 | Z189: 188 | AA189: 0.2689556576 | AB189: 1 | AC189: 189 | AD189: 188 | AE189: 0.288819525 | AF189: 1.042987134 | AG189: 189 | AH189: 188 | AI189: 1.406275419 | AJ189: 1.297171894 | AK189: 189 | AL189: 188 | AM189: 0.4010158232 | AN189: 0.2857896456 | AO189: 189 | AP189: 188 | AQ189: 1.312550858 | AR189: 0.0943437884 | AS189: 189 | AT189: 188 | AU189: 1.340816731 | AV189: 0.1555135909
A190: 190 | B190: 189 | C190: 0.2703862728 | D190: 2 | E190: 190 | F190: 189 | G190: 0.2899371276 | H190: 1.957426639 | I190: 190 | J190: 189 | K190: 1.407285094 | L190: 1.701893213 | M190: 190 | N190: 189 | O190: 0.3967570511 | P190: 0.7248187676 | Q190: 190 | R190: 189 | S190: 1.308189909 | T190: 0.9176799274 | U190: 190 | V190: 189 | W190: 1.338346027 | X190: 0.8520128456 | Y190: 190 | Z190: 189 | AA190: 0.2703862728 | AB190: 2 | AC190: 190 | AD190: 189 | AE190: 0.2901271441 | AF190: 1.957012866 | AG190: 190 | AH190: 189 | AI190: 1.406855757 | AJ190: 1.702828106 | AK190: 190 | AL190: 189 | AM190: 0.4016287284 | AN190: 0.7142103544 | AO190: 190 | AP190: 189 | AQ190: 1.313711534 | AR190: 0.9056562116 | AS190: 190 | AT190: 189 | AU190: 1.341802386 | AV190: 0.8444864091
A191: 191 | B191: 190 | C191: 0.271816888 | D191: 1 | E191: 191 | F191: 190 | G191: 0.2912459306 | H191: 1.042573361 | I191: 191 | J191: 190 | K191: 1.407862757 | L191: 1.298106787 | M191: 191 | N191: 190 | O191: 0.3974003094 | P191: 0.2751812324 | Q191: 191 | R191: 190 | S191: 1.309384988 | T191: 0.0823200726 | U191: 191 | V191: 190 | W191: 1.339353216 | X191: 0.1479871544 | Y191: 191 | Z191: 190 | AA191: 0.271816888 | AB191: 1 | AC191: 191 | AD191: 190 | AE191: 0.2914347632 | AF191: 1.042987134 | AG191: 191 | AH191: 190 | AI191: 1.407436095 | AJ191: 1.297171894 | AK191: 191 | AL191: 190 | AM191: 0.4022416336 | AN191: 0.2857896456 | AO191: 191 | AP191: 190 | AQ191: 1.314872209 | AR191: 0.0943437884 | AS191: 191 | AT191: 190 | AU191: 1.342788041 | AV191: 0.1555135909
A192: 192 | B192: 191 | C192: 0.2732475032 | D192: 2 | E192: 192 | F192: 191 | G192: 0.2925547336 | H192: 1.957426639 | I192: 192 | J192: 191 | K192: 1.40844042 | L192: 1.701893213 | M192: 192 | N192: 191 | O192: 0.3980435677 | P192: 0.7248187676 | Q192: 192 | R192: 191 | S192: 1.310580066 | T192: 0.9176799274 | U192: 192 | V192: 191 | W192: 1.340360406 | X192: 0.8520128456 | Y192: 192 | Z192: 191 | AA192: 0.2732475032 | AB192: 2 | AC192: 192 | AD192: 191 | AE192: 0.2927423823 | AF192: 1.957012866 | AG192: 192 | AH192: 191 | AI192: 1.408016433 | AJ192: 1.702828106 | AK192: 192 | AL192: 191 | AM192: 0.4028545388 | AN192: 0.7142103544 | AO192: 192 | AP192: 191 | AQ192: 1.316032885 | AR192: 0.9056562116 | AS192: 192 | AT192: 191 | AU192: 1.343773696 | AV192: 0.8444864091
A193: 193 | B193: =(A193-1) -> 192 | C193: =0+B193*0.0014306152 -> 0.2746781184 | D193: =IF(B193/2-INT(B193/2)<0.1,1,2) -> 1 | E193: 193 | F193: =(E193-1) -> 192 | G193: =0.0425733606+F193*0.001308803 -> 0.2938635366 | H193: =IF(F193/2-INT(F193/2)<0.1,1.0425733606,1.9574266394) -> 1.042573361 | I193: 193 | J193: =(I193-1) -> 192 | K193: =1.2981067867+J193*0.000577663 -> 1.409018083 | L193: =IF(J193/2-INT(J193/2)<0.1,1.2981067867,1.7018932133) -> 1.298106787 | M193: 193 | N193: =(M193-1) -> 192 | O193: =0.2751812324+N193*0.0006432583 -> 0.398686826 | P193: =IF(N193/2-INT(N193/2)<0.1,0.2751812324,0.7248187676) -> 0.2751812324 | Q193: 193 | R193: =(Q193-1) -> 192 | S193: =1.0823200726+R193*0.0011950785 -> 1.311775145 | T193: =IF(R193/2-INT(R193/2)<0.1,0.0823200726,0.9176799274) -> 0.0823200726 | U193: 193 | V193: =(U193-1) -> 192 | W193: =1.1479871544+V193*0.0010071898 -> 1.341367596 | X193: =IF(V193/2-INT(V193/2)<0.1,0.1479871544,0.8520128456) -> 0.1479871544 | Y193: 193 | Z193: =(Y193-1) -> 192 | AA193: =0+Z193*0.0014306152 -> 0.2746781184 | AB193: =IF(Z193/2-INT(Z193/2)<0.1,1,2) -> 1 | AC193: 193 | AD193: =(AC193-1) -> 192 | AE193: =0.0429871342+AD193*0.0013076191 -> 0.2940500014 | AF193: =IF(AD193/2-INT(AD193/2)<0.1,1.0429871342,1.9570128658) -> 1.042987134 | AG193: 193 | AH193: =(AG193-1) -> 192 | AI193: =1.2971718942+AH193*0.0005803379 -> 1.408596771 | AJ193: =IF(AH193/2-INT(AH193/2)<0.1,1.2971718942,1.7028281058) -> 1.297171894 | AK193: 193 | AL193: =(AK193-1) -> 192 | AM193: =0.2857896456+AL193*0.0006129052 -> 0.403467444 | AN193: =IF(AL193/2-INT(AL193/2)<0.1,0.2857896456,0.7142103544) -> 0.2857896456 | AO193: 193 | AP193: =(AO193-1) -> 192 | AQ193: =1.0943437884+AP193*0.0011606759 -> 1.317193561 | AR193: =IF(AP193/2-INT(AP193/2)<0.1,0.0943437884,0.9056562116) -> 0.0943437884 | AS193: 193 | AT193: =(AS193-1) -> 192 | AU193: =1.1555135909+AT193*0.000985655 -> 1.344759351 | AV193: =IF(AT193/2-INT(AT193/2)<0.1,0.1555135909,0.8444864091) -> 0.1555135909
A194: 194 | B194: 193 | C194: 0.2761087336 | D194: 2 | E194: 194 | F194: 193 | G194: 0.2951723396 | H194: 1.957426639 | I194: 194 | J194: 193 | K194: 1.409595746 | L194: 1.701893213 | M194: 194 | N194: 193 | O194: 0.3993300843 | P194: 0.7248187676 | Q194: 194 | R194: 193 | S194: 1.312970223 | T194: 0.9176799274 | U194: 194 | V194: 193 | W194: 1.342374786 | X194: 0.8520128456 | Y194: 194 | Z194: 193 | AA194: 0.2761087336 | AB194: 2 | AC194: 194 | AD194: 193 | AE194: 0.2953576205 | AF194: 1.957012866 | AG194: 194 | AH194: 193 | AI194: 1.409177109 | AJ194: 1.702828106 | AK194: 194 | AL194: 193 | AM194: 0.4040803492 | AN194: 0.7142103544 | AO194: 194 | AP194: 193 | AQ194: 1.318354237 | AR194: 0.9056562116 | AS194: 194 | AT194: 193 | AU194: 1.345745006 | AV194: 0.8444864091
A195: 195 | B195: 194 | C195: 0.2775393488 | D195: 1 | E195: 195 | F195: 194 | G195: 0.2964811426 | H195: 1.042573361 | I195: 195 | J195: 194 | K195: 1.410173409 | L195: 1.298106787 | M195: 195 | N195: 194 | O195: 0.3999733426 | P195: 0.2751812324 | Q195: 195 | R195: 194 | S195: 1.314165302 | T195: 0.0823200726 | U195: 195 | V195: 194 | W195: 1.343381976 | X195: 0.1479871544 | Y195: 195 | Z195: 194 | AA195: 0.2775393488 | AB195: 1 | AC195: 195 | AD195: 194 | AE195: 0.2966652396 | AF195: 1.042987134 | AG195: 195 | AH195: 194 | AI195: 1.409757447 | AJ195: 1.297171894 | AK195: 195 | AL195: 194 | AM195: 0.4046932544 | AN195: 0.2857896456 | AO195: 195 | AP195: 194 | AQ195: 1.319514913 | AR195: 0.0943437884 | AS195: 195 | AT195: 194 | AU195: 1.346730661 | AV195: 0.1555135909
A196: 196 | B196: 195 | C196: 0.278969964 | D196: 2 | E196: 196 | F196: 195 | G196: 0.2977899456 | H196: 1.957426639 | I196: 196 | J196: 195 | K196: 1.410751072 | L196: 1.701893213 | M196: 196 | N196: 195 | O196: 0.4006166009 | P196: 0.7248187676 | Q196: 196 | R196: 195 | S196: 1.31536038 | T196: 0.9176799274 | U196: 196 | V196: 195 | W196: 1.344389165 | X196: 0.8520128456 | Y196: 196 | Z196: 195 | AA196: 0.278969964 | AB196: 2 | AC196: 196 | AD196: 195 | AE196: 0.2979728587 | AF196: 1.957012866 | AG196: 196 | AH196: 195 | AI196: 1.410337785 | AJ196: 1.702828106 | AK196: 196 | AL196: 195 | AM196: 0.4053061596 | AN196: 0.7142103544 | AO196: 196 | AP196: 195 | AQ196: 1.320675589 | AR196: 0.9056562116 | AS196: 196 | AT196: 195 | AU196: 1.347716316 | AV196: 0.8444864091
A197: 197 | B197: 196 | C197: 0.2804005792 | D197: 1 | E197: 197 | F197: 196 | G197: 0.2990987486 | H197: 1.042573361 | I197: 197 | J197: 196 | K197: 1.411328735 | L197: 1.298106787 | M197: 197 | N197: 196 | O197: 0.4012598592 | P197: 0.2751812324 | Q197: 197 | R197: 196 | S197: 1.316555459 | T197: 0.0823200726 | U197: 197 | V197: 196 | W197: 1.345396355 | X197: 0.1479871544 | Y197: 197 | Z197: 196 | AA197: 0.2804005792 | AB197: 1 | AC197: 197 | AD197: 196 | AE197: 0.2992804778 | AF197: 1.042987134 | AG197: 197 | AH197: 196 | AI197: 1.410918123 | AJ197: 1.297171894 | AK197: 197 | AL197: 196 | AM197: 0.4059190648 | AN197: 0.2857896456 | AO197: 197 | AP197: 196 | AQ197: 1.321836265 | AR197: 0.0943437884 | AS197: 197 | AT197: 196 | AU197: 1.348701971 | AV197: 0.1555135909
A198: 198 | B198: 197 | C198: 0.2818311944 | D198: 2 | E198: 198 | F198: 197 | G198: 0.3004075516 | H198: 1.957426639 | I198: 198 | J198: 197 | K198: 1.411906398 | L198: 1.701893213 | M198: 198 | N198: 197 | O198: 0.4019031175 | P198: 0.7248187676 | Q198: 198 | R198: 197 | S198: 1.317750537 | T198: 0.9176799274 | U198: 198 | V198: 197 | W198: 1.346403545 | X198: 0.8520128456 | Y198: 198 | Z198: 197 | AA198: 0.2818311944 | AB198: 2 | AC198: 198 | AD198: 197 | AE198: 0.3005880969 | AF198: 1.957012866 | AG198: 198 | AH198: 197 | AI198: 1.41149846 | AJ198: 1.702828106 | AK198: 198 | AL198: 197 | AM198: 0.40653197 | AN198: 0.7142103544 | AO198: 198 | AP198: 197 | AQ198: 1.322996941 | AR198: 0.9056562116 | AS198: 198 | AT198: 197 | AU198: 1.349687626 | AV198: 0.8444864091
A199: 199 | B199: 198 | C199: 0.2832618096 | D199: 1 | E199: 199 | F199: 198 | G199: 0.3017163546 | H199: 1.042573361 | I199: 199 | J199: 198 | K199: 1.412484061 | L199: 1.298106787 | M199: 199 | N199: 198 | O199: 0.4025463758 | P199: 0.2751812324 | Q199: 199 | R199: 198 | S199: 1.318945616 | T199: 0.0823200726 | U199: 199 | V199: 198 | W199: 1.347410735 | X199: 0.1479871544 | Y199: 199 | Z199: 198 | AA199: 0.2832618096 | AB199: 1 | AC199: 199 | AD199: 198 | AE199: 0.301895716 | AF199: 1.042987134 | AG199: 199 | AH199: 198 | AI199: 1.412078798 | AJ199: 1.297171894 | AK199: 199 | AL199: 198 | AM199: 0.4071448752 | AN199: 0.2857896456 | AO199: 199 | AP199: 198 | AQ199: 1.324157617 | AR199: 0.0943437884 | AS199: 199 | AT199: 198 | AU199: 1.350673281 | AV199: 0.1555135909
A200: 200 | B200: 199 | C200: 0.2846924248 | D200: 2 | E200: 200 | F200: 199 | G200: 0.3030251576 | H200: 1.957426639 | I200: 200 | J200: 199 | K200: 1.413061724 | L200: 1.701893213 | M200: 200 | N200: 199 | O200: 0.4031896341 | P200: 0.7248187676 | Q200: 200 | R200: 199 | S200: 1.320140694 | T200: 0.9176799274 | U200: 200 | V200: 199 | W200: 1.348417925 | X200: 0.8520128456 | Y200: 200 | Z200: 199 | AA200: 0.2846924248 | AB200: 2 | AC200: 200 | AD200: 199 | AE200: 0.3032033351 | AF200: 1.957012866 | AG200: 200 | AH200: 199 | AI200: 1.412659136 | AJ200: 1.702828106 | AK200: 200 | AL200: 199 | AM200: 0.4077577804 | AN200: 0.7142103544 | AO200: 200 | AP200: 199 | AQ200: 1.325318292 | AR200: 0.9056562116 | AS200: 200 | AT200: 199 | AU200: 1.351658936 | AV200: 0.8444864091
... 500 more rows

Sheet XLSTAT_20220330_163506_1_HID (hidden)

Sheet Easy Predict1
B1: XLSTAT 2022.1.2.12345 - Easy Predict - Start time: 30/03/2022 at 16:36:08 / End time: 30/03/2022 at 16:36:09 / Microsoft Excel 16.014931
B2: Predictions: X / Quantitative variables: Workbook = demoEasyFitAndPred.xlsm / Sheet = Data / Range = Data!$Q$1:$T$5 / 4 rows and 4 columns
B3: Predictions: X / Qualitative variables: Workbook = demoEasyFitAndPred.xlsm / Sheet = Data / Range = Data!$N$1:$P$5 / 4 rows and 3 columns
B4: Observation labels: Workbook = demoEasyFitAndPred.xlsm / Sheet = Data / Range = Data!$M$1:$M$5 / 4 rows and 1 column
B5: Seed (random numbers): 123456789
B10: Logistic regression
B12: Predictions for the new observations (Variable SURVIVED):
B14: Observation | C14: Pred(SURVIVED) | D14: Pr(0) | E14: Pr(1)
B15: Thalia | C15: 1 | D15: 0.07376168137 | E15: 0.9262383186
B16: Alexandre | C16: 1 | D16: 0.3269675392 | E16: 0.6730324608
B17: Damien | C17: 0 | D17: 0.7376344155 | E17: 0.2623655845
B18: Clemence | C18: 1 | D18: 0.04587900533 | E18: 0.9541209947

Sheet Easy Fit_HID1 (hidden)
A1: Source | B1: 1
A2: AGE | B2: -0.2752851739
A3: SIBSP | B3: -0.1870177464
A4: PARCH | B4: 0.01577308823
A5: FARE | B5: -0.02921892861
A6: PCLASS-1 | B6: 0
A7: PCLASS-2 | B7: -0.3114815484
A8: PCLASS-3 | B8: -0.6163387529
A9: SEX-female | B9: 0
A10: SEX-male | B10: -0.6912785079
A11: EMBARKED-C | B11: 0
A12: EMBARKED-Q | B12: -0.1006677362
A13: EMBARKED-S | B13: -0.1106235348

Sheet Easy Fit_HID2 (hidden)
A1: Source | B1: 1
A2: AGE | B2: -0.2752851739
A3: SIBSP | B3: -0.1870177464
A4: PARCH | B4: 0.01577308823
A5: FARE | B5: -0.02921892861
A6: PCLASS-1 | B6: 0
A7: PCLASS-2 | B7: -0.3114815484
A8: PCLASS-3 | B8: -0.6163387529
A9: SEX-female | B9: 0
A10: SEX-male | B10: -0.6912785079
A11: EMBARKED-C | B11: 0
A12: EMBARKED-Q | B12: -0.1006677362
A13: EMBARKED-S | B13: -0.1106235348

Sheet Easy Fit_HID (hidden)
A1: Source | B1: 1
A2: AGE | B2: -0.2752851739
A3: SIBSP | B3: -0.1870177464
A4: PARCH | B4: 0.01577308823
A5: FARE | B5: -0.02921892861
A6: PCLASS-1 | B6: 0
A7: PCLASS-2 | B7: -0.3114815484
A8: PCLASS-3 | B8: -0.6163387529
A9: SEX-female | B9: 0
A10: SEX-male | B10: -0.6912785079
A11: EMBARKED-C | B11: 0
A12: EMBARKED-Q | B12: -0.1006677362
A13: EMBARKED-S | B13: -0.1106235348
